{"text_format":"1","workbook":"xlsx","n_sheets":7,"sheets":["Emissions Calculator","TACList","Emissions Output","Concentrations for Tier 3","Instructions for Conc. for T3","Revision History","Reference"],"not_rendered":{"charts":0,"images":1,"macros":1,"external_links":1,"defined_names":3,"comments":0,"pivot_tables":0},"unopened":[],"bounds":{"document_bytes":16777216,"sheet_cells":100000,"rows_first":2000,"rows_last":500,"rows_between":2000,"halvings":0,"cell_chars":16384,"cell_head_chars":4096},"cells_cut":0,"cells_raw":0,"read":"whole","date_system":"1900"}

{"sheet":"Emissions Calculator","index":0,"n_rows":290,"n_cols":29,"rows_kept":290,"cut":false,"hidden":false,"merged":[[237,8,239,8],[237,9,238,9],[237,11,238,11],[237,15,237,16],[237,0,239,0],[237,1,239,1],[237,2,238,2],[237,3,238,3],[237,7,239,7],[160,2,161,2],[160,3,161,3],[160,1,162,1],[160,0,162,0],[215,0,217,0],[215,1,217,1],[215,2,216,2],[215,3,216,3],[215,7,217,7],[215,8,217,8],[215,9,216,9],[215,11,216,11],[215,15,215,16],[160,15,160,16],[160,11,161,11],[160,9,161,9],[160,7,162,7],[160,8,162,8],[11,17,11,19],[30,14,30,15],[29,17,29,19],[128,4,128,5],[12,10,12,11],[12,12,12,13],[30,10,30,11],[30,12,30,13],[56,11,56,12],[56,13,56,14],[124,3,125,5],[56,15,56,16],[55,18,55,19],[90,18,90,19],[91,11,91,12],[91,13,91,14],[2,7,4,15],[12,14,12,15],[7,0,8,0],[130,1,131,1],[8,1,8,5],[13,8,14,8],[13,7,14,7],[31,7,32,7],[31,8,32,8],[57,7,58,7],[57,8,58,8],[92,8,93,8],[91,15,91,16],[136,7,137,7],[136,8,137,8],[135,14,135,15],[30,1,30,3],[132,0,133,5],[127,0,127,1],[127,2,127,3]]}
["TAC Emissions Calculator V3.02"]
["Equipment Details","Input","Units",null,null,null,null,"INSTRUCTIONS to Generate TAC Emissions To Upload Into HRA Tool"]
["Hours/Day",null,"hrs/day",null,null,null,null,"Purpose: This tool uses standard default emission factors and TAC speciations for standard types of equipment. If the equipment is not one of the listed source types, please enter the TACs and emission rates directly in the HRA Tool."]
["Days/Week",null,"days/wk"]
["Weeks/Year",null,"wks/yr"]
["Control Efficiency",null,"value between 0-1",null,null,null,null,"1. Select the Source Type in Cell B9. (This will generate related input data fields below.)"]
[null,null,null,null,null,null,null,"2. Input operating schedule, control efficiency, and required data for the selected source type. (Fields highlighted in light yellow.)"]
["Source Type",null,null,null,null,null,null,"3. Review \"Emissions Output\" sheet to verify TACs and emissions."]
[null,null,null,null,null,null,null,"4. Click Refresh button below, then save file for uploading into the HRA Tool."]
["Source Category on HRA Tool ->",{"$f":"IF(B9=\"Boiler\",\"Gaseous Fuel Fired (Natural Gas) Boilers\",IF(B9=\"Crematories\",\"Crematories\",IF(B9=\"Diesel ICE\",\"Diesel Reciprocating Internal Combustion Engines\",IF(B9=\"Diesel Pressure Washer\",\"Diesel Reciprocating Internal Combustion Engines\",IF(OR(B9=\"Lean Burn ICE\",B9=\"Rich Burn ICE\"),\"Natural Gas Reciprocating Internal Combustion Engines\",IF(B9=\"Spray Booth\",\"Spray Booth\",IF(B9=\"Other\",\"Please select the applicable equipment type on the HRA Tool.\",IF(B9=\"\",\"\",B9))))))))","v":""},null,null,null,null,null,"5. Select Health Risk Assessments -> Tier II Screening Risk Assessment ->Source Category = Cell B10."]
["Boiler"]
[null,null,null,null,null,null,null,null,null,null,null,null,null,null,null,null,null,"Boiler Rating"]
["Max Burner Rating",null,"MMBtu/hr",null,null,null,null,null,null,null,null,null,null,null,"Toxic NSR Entry",null,null,"<10 mmbtu/hr","10-100 mmbtu/hr",">100 mmbtu/hr"]
["Equipment w/ SNCR, SCR or Other",null,null,null,null,null,null,"Compound*","CAS #","EF (*)","R1","R2","R1","R2","R1 (Uncontrolled)","R2 (Controlled)",null,"EF","EF","EF"]
["Fuel HHV",1050,"Btu/ft³",null,null,null,null,null,null,"(lbs/mmcf)","(lbs/hr)","(lbs/hr)","(lbs/yr)","(lbs/yr)","(E-06 lbs/hr)","(E-06 lbs/hr)",null,"(lbs/mmcf)","(lbs/mmcf)","(lbs/mmcf)"]
["Fuel Rate",{"$f":"(B13*1000000)/B15","v":0},"ft³/hr",null,null,null,null,{"$f":"_xlfn.XLOOKUP(_xlfn.NUMBERVALUE(IFERROR(SUBSTITUTE(SUBSTITUTE(SUBSTITUTE(I16, \"-\", \"\", 1), \"-\", \"\", 1), \"-\", \"\", 1), I16)),TACList!$B:$B,TACList!$A:$A)","v":"Acetaldehyde"},"75-07-0",{"$f":"IF($B$13<10,R16, IF(AND($B$13>=10, $B$13<=100 ),S16, T16))","v":4.3E-3},{"$f":"J16*$B$17","v":0},{"$f":"K16*(1-$B$6)","v":0},{"$f":"K16*$B$3*$B$4*$B$5","v":0},{"$f":"L16*$B$3*$B$4*$B$5","v":0},{"$f":"K16*1000000","v":0},{"$f":"L16*1000000","v":0},null,4.3E-3,3.0999999999999999E-3,8.9999999999999998E-4]
["MMCF Fuel Rate",{"$f":"B16/1000000","v":0},"mmcf/hr",null,null,null,null,{"$f":"_xlfn.XLOOKUP(_xlfn.NUMBERVALUE(IFERROR(SUBSTITUTE(SUBSTITUTE(SUBSTITUTE(I17, \"-\", \"\", 1), \"-\", \"\", 1), \"-\", \"\", 1), I17)),TACList!$B:$B,TACList!$A:$A)","v":"Acrolein"},"107-02-8",2.7000000000000001E-3,0,{"$f":"K17*(1-$B$6)","v":0},{"$f":"K17*$B$3*$B$4*$B$5","v":0},{"$f":"L17*$B$3*$B$4*$B$5","v":0},0,0,null,2.7000000000000001E-3,2.7000000000000001E-3,8.0000000000000004E-4]
[null,null,null,null,null,null,null,{"$f":"_xlfn.XLOOKUP(_xlfn.NUMBERVALUE(IFERROR(SUBSTITUTE(SUBSTITUTE(SUBSTITUTE(I18, \"-\", \"\", 1), \"-\", \"\", 1), \"-\", \"\", 1), I18)),TACList!$B:$B,TACList!$A:$A)","v":"Ammonia"},"7664-41-7",{"$f":"IF($B$13<10,R18, IF(AND($B$13>=10, $B$13<=100 ),S18, T18))","v":{"$error":"#N/A"}},{"$error":"#N/A"},{"$error":"#N/A"},{"$error":"#N/A"},{"$error":"#N/A"},{"$error":"#N/A"},{"$error":"#N/A"},null,{"$f":"VLOOKUP($B$14,$A$20:$B$23,2,FALSE)","v":{"$error":"#N/A"}},{"$f":"VLOOKUP($B$14,$A$20:$B$23,2,FALSE)","v":{"$error":"#N/A"}},{"$f":"VLOOKUP($B$14,$A$20:$B$23,2,FALSE)","v":{"$error":"#N/A"}}]
[null,"Ammonia EF",null,null,null,null,null,{"$f":"_xlfn.XLOOKUP(_xlfn.NUMBERVALUE(IFERROR(SUBSTITUTE(SUBSTITUTE(SUBSTITUTE(I19, \"-\", \"\", 1), \"-\", \"\", 1), \"-\", \"\", 1), I19)),TACList!$B:$B,TACList!$A:$A)","v":"Benzene"},"71-43-2",8.0000000000000002E-3,0,0,0,0,0,0,null,8.0000000000000002E-3,5.7999999999999996E-3,1.6999999999999999E-3]
["CONTROL","(lbs/mmcf)",null,null,null,null,null,{"$f":"_xlfn.XLOOKUP(_xlfn.NUMBERVALUE(IFERROR(SUBSTITUTE(SUBSTITUTE(SUBSTITUTE(I20, \"-\", \"\", 1), \"-\", \"\", 1), \"-\", \"\", 1), I20)),TACList!$B:$B,TACList!$A:$A)","v":"Ethyl benzene"},"100-41-4",9.4999999999999998E-3,0,0,0,0,0,0,null,9.4999999999999998E-3,6.8999999999999999E-3,2E-3]
["SNCR",18,null,null,null,null,null,{"$f":"_xlfn.XLOOKUP(_xlfn.NUMBERVALUE(IFERROR(SUBSTITUTE(SUBSTITUTE(SUBSTITUTE(I21, \"-\", \"\", 1), \"-\", \"\", 1), \"-\", \"\", 1), I21)),TACList!$B:$B,TACList!$A:$A)","v":"Formaldehyde"},"50-00-0",1.7000000000000001E-2,0,0,0,0,0,0,null,1.7000000000000001E-2,1.23E-2,3.5999999999999999E-3]
["SCR",9.1,null,null,null,null,null,{"$f":"_xlfn.XLOOKUP(_xlfn.NUMBERVALUE(IFERROR(SUBSTITUTE(SUBSTITUTE(SUBSTITUTE(I22, \"-\", \"\", 1), \"-\", \"\", 1), \"-\", \"\", 1), I22)),TACList!$B:$B,TACList!$A:$A)","v":"Hexane"},"110-54-3",6.3E-3,0,0,0,0,0,0,null,6.3E-3,4.5999999999999999E-3,1.2999999999999999E-3]
["OTHER",3.2,null,null,null,null,null,{"$f":"_xlfn.XLOOKUP(_xlfn.NUMBERVALUE(IFERROR(SUBSTITUTE(SUBSTITUTE(SUBSTITUTE(I23, \"-\", \"\", 1), \"-\", \"\", 1), \"-\", \"\", 1), I23)),TACList!$B:$B,TACList!$A:$A)","v":"PAHs, total, w/o individ. components reported [Treated as B(a)P for HRA]"},1151,1E-4,0,0,0,0,0,0,null,1E-4,1E-4,1E-4]
["Note:  Select \"OTHER\" when there is no control or when the control type is not SNCR or SCR.",null,null,null,null,null,null,{"$f":"_xlfn.XLOOKUP(_xlfn.NUMBERVALUE(IFERROR(SUBSTITUTE(SUBSTITUTE(SUBSTITUTE(I24, \"-\", \"\", 1), \"-\", \"\", 1), \"-\", \"\", 1), I24)),TACList!$B:$B,TACList!$A:$A)","v":"Naphthalene"},"91-20-3",2.9999999999999997E-4,0,0,0,0,0,0,null,2.9999999999999997E-4,2.9999999999999997E-4,2.9999999999999997E-4]
[null,null,null,null,null,null,null,{"$f":"_xlfn.XLOOKUP(_xlfn.NUMBERVALUE(IFERROR(SUBSTITUTE(SUBSTITUTE(SUBSTITUTE(I25, \"-\", \"\", 1), \"-\", \"\", 1), \"-\", \"\", 1), I25)),TACList!$B:$B,TACList!$A:$A)","v":"Toluene"},"108-88-3",3.6600000000000001E-2,0,0,0,0,0,0,null,3.6600000000000001E-2,2.6499999999999999E-2,7.7999999999999996E-3]
[null,null,null,null,null,null,null,{"$f":"_xlfn.XLOOKUP(_xlfn.NUMBERVALUE(IFERROR(SUBSTITUTE(SUBSTITUTE(SUBSTITUTE(I26, \"-\", \"\", 1), \"-\", \"\", 1), \"-\", \"\", 1), I26)),TACList!$B:$B,TACList!$A:$A)","v":"Xylenes (mixed)"},"1330-20-7",2.7199999999999998E-2,0,0,0,0,0,0,null,2.7199999999999998E-2,1.9699999999999999E-2,5.7999999999999996E-3]
[null,null,null,null,null,null,null,null,null,null,null,null,null,null,null,null,null,"*Data from AB2588 Reporting Procedure - Dec 2014"]
[]
["Crematories"]
[]
["Crematory Type (Human or Animal)",null,null,null,null,null,null,null,null,null,null,null,null,null,"Toxic NSR Entry",null,null,"Human Cremation","Animal Cremation"]
["Maximum Burn Rate",null,"lbs/hr",null,null,null,null,"Compound*","CAS #","EF (*)","R1","R2","R1","R2","R1 (Uncontrolled)","R2 (Controlled)",null,"EF","EF"]
["Combustion Control Efficiency",{"$f":"$B$6","v":0},"value between 0-1",null,null,null,null,null,null,"(lbs/ton)","(lbs/hr)","(lbs/hr)","(lbs/yr)","(lbs/yr)","(E-06 lbs/hr)","(E-06 lbs/hr)",null,"(lbs/ton)","(lbs/ton)"]
[null,null,null,null,null,null,null,{"$f":"_xlfn.XLOOKUP(_xlfn.NUMBERVALUE(IFERROR(SUBSTITUTE(SUBSTITUTE(SUBSTITUTE(I34, \"-\", \"\", 1), \"-\", \"\", 1), \"-\", \"\", 1), I34)),TACList!$B:$B,TACList!$A:$A)","v":"Acetaldehyde"},75070,{"$f":"IF(B$31=\"Human Cremation\",R34,S34)","v":1.5E-3},{"$f":"J34*$B$32/2000","v":0},{"$f":"K34*(1-$B$6)","v":0},{"$f":"K34*$B$3*$B$4*$B$5","v":0},{"$f":"L34*$B$3*$B$4*$B$5","v":0},{"$f":"K34*1000000","v":0},{"$f":"L34*1000000","v":0},null,1.5E-3,1.5E-3]
[null,null,null,null,null,null,null,{"$f":"_xlfn.XLOOKUP(_xlfn.NUMBERVALUE(IFERROR(SUBSTITUTE(SUBSTITUTE(SUBSTITUTE(I35, \"-\", \"\", 1), \"-\", \"\", 1), \"-\", \"\", 1), I35)),TACList!$B:$B,TACList!$A:$A)","v":"Arsenic"},"7440-38-2",{"$f":"IF(B$31=\"Human Cremation\",R35,S35)","v":5.8E-4},0,{"$f":"K35*(1-$B$6)","v":0},{"$f":"K35*$B$3*$B$4*$B$5","v":0},{"$f":"L35*$B$3*$B$4*$B$5","v":0},{"$f":"K35*1000000","v":0},{"$f":"L35*1000000","v":0},null,5.8E-4,5.8E-4]
[null,null,null,null,null,null,null,{"$f":"_xlfn.XLOOKUP(_xlfn.NUMBERVALUE(IFERROR(SUBSTITUTE(SUBSTITUTE(SUBSTITUTE(I36, \"-\", \"\", 1), \"-\", \"\", 1), \"-\", \"\", 1), I36)),TACList!$B:$B,TACList!$A:$A)","v":"Benzene"},71432,7.2000000000000005E-4,0,0,0,0,0,0,null,7.2000000000000005E-4,7.2000000000000005E-4]
[null,null,null,null,null,null,null,{"$f":"_xlfn.XLOOKUP(_xlfn.NUMBERVALUE(IFERROR(SUBSTITUTE(SUBSTITUTE(SUBSTITUTE(I37, \"-\", \"\", 1), \"-\", \"\", 1), \"-\", \"\", 1), I37)),TACList!$B:$B,TACList!$A:$A)","v":"Beryllium"},"7440-41-7",2.0000000000000002E-5,0,0,0,0,0,0,null,2.0000000000000002E-5,2.0000000000000002E-5]
[null,null,null,null,null,null,null,{"$f":"_xlfn.XLOOKUP(_xlfn.NUMBERVALUE(IFERROR(SUBSTITUTE(SUBSTITUTE(SUBSTITUTE(I38, \"-\", \"\", 1), \"-\", \"\", 1), \"-\", \"\", 1), I38)),TACList!$B:$B,TACList!$A:$A)","v":"Cadmium"},"7440-43-9",1.6000000000000001E-4,0,0,0,0,0,0,null,1.6000000000000001E-4,1.6000000000000001E-4]
[null,null,null,null,null,null,null,{"$f":"_xlfn.XLOOKUP(_xlfn.NUMBERVALUE(IFERROR(SUBSTITUTE(SUBSTITUTE(SUBSTITUTE(I39, \"-\", \"\", 1), \"-\", \"\", 1), \"-\", \"\", 1), I39)),TACList!$B:$B,TACList!$A:$A)","v":"Chromium, hexavalent (& compounds)"},"18540-29-9",1.9000000000000001E-4,0,0,0,0,0,0,null,1.9000000000000001E-4,1.9000000000000001E-4]
[null,null,null,null,null,null,null,{"$f":"_xlfn.XLOOKUP(_xlfn.NUMBERVALUE(IFERROR(SUBSTITUTE(SUBSTITUTE(SUBSTITUTE(I40, \"-\", \"\", 1), \"-\", \"\", 1), \"-\", \"\", 1), I40)),TACList!$B:$B,TACList!$A:$A)","v":"Copper"},7440508,4.0000000000000002E-4,0,0,0,0,0,0,null,4.0000000000000002E-4,4.0000000000000002E-4]
[null,null,null,null,null,null,null,{"$f":"_xlfn.XLOOKUP(_xlfn.NUMBERVALUE(IFERROR(SUBSTITUTE(SUBSTITUTE(SUBSTITUTE(I41, \"-\", \"\", 1), \"-\", \"\", 1), \"-\", \"\", 1), I41)),TACList!$B:$B,TACList!$A:$A)","v":"Formaldehyde"},"50-00-0",4.0000000000000002E-4,0,0,0,0,0,0,null,4.0000000000000002E-4,4.0000000000000002E-4]
[null,null,null,null,null,null,null,{"$f":"_xlfn.XLOOKUP(_xlfn.NUMBERVALUE(IFERROR(SUBSTITUTE(SUBSTITUTE(SUBSTITUTE(I42, \"-\", \"\", 1), \"-\", \"\", 1), \"-\", \"\", 1), I42)),TACList!$B:$B,TACList!$A:$A)","v":"Hydrochloric acid"},"7647-01-0",0.86,0,0,0,0,0,0,null,0.86,0.86]
[null,null,null,null,null,null,null,{"$f":"_xlfn.XLOOKUP(_xlfn.NUMBERVALUE(IFERROR(SUBSTITUTE(SUBSTITUTE(SUBSTITUTE(I43, \"-\", \"\", 1), \"-\", \"\", 1), \"-\", \"\", 1), I43)),TACList!$B:$B,TACList!$A:$A)","v":"Hydrogen fluoride"},7664393,7.7999999999999996E-3,0,0,0,0,0,0,null,7.7999999999999996E-3,7.7999999999999996E-3]
[null,null,null,null,null,null,null,{"$f":"_xlfn.XLOOKUP(_xlfn.NUMBERVALUE(IFERROR(SUBSTITUTE(SUBSTITUTE(SUBSTITUTE(I44, \"-\", \"\", 1), \"-\", \"\", 1), \"-\", \"\", 1), I44)),TACList!$B:$B,TACList!$A:$A)","v":"Lead"},"7439-92-1",9.7999999999999997E-4,0,0,0,0,0,0,null,9.7999999999999997E-4,9.7999999999999997E-4]
[null,null,null,null,null,null,null,{"$f":"_xlfn.XLOOKUP(_xlfn.NUMBERVALUE(IFERROR(SUBSTITUTE(SUBSTITUTE(SUBSTITUTE(I45, \"-\", \"\", 1), \"-\", \"\", 1), \"-\", \"\", 1), I45)),TACList!$B:$B,TACList!$A:$A)","v":"Mercury"},"7439-97-6",0,0,0,0,0,0,0,null,2.1800000000000001E-3,0]
[null,null,null,null,null,null,null,{"$f":"_xlfn.XLOOKUP(_xlfn.NUMBERVALUE(IFERROR(SUBSTITUTE(SUBSTITUTE(SUBSTITUTE(I46, \"-\", \"\", 1), \"-\", \"\", 1), \"-\", \"\", 1), I46)),TACList!$B:$B,TACList!$A:$A)","v":"Nickel"},"7440-02-0",5.6999999999999998E-4,0,{"$f":"K46*(1-$B$6)","v":0},{"$f":"K46*$B$3*$B$4*$B$5","v":0},{"$f":"L46*$B$3*$B$4*$B$5","v":0},{"$f":"K46*1000000","v":0},{"$f":"L46*1000000","v":0},null,5.6999999999999998E-4,5.6999999999999998E-4]
[null,null,null,null,null,null,null,{"$f":"_xlfn.XLOOKUP(_xlfn.NUMBERVALUE(IFERROR(SUBSTITUTE(SUBSTITUTE(SUBSTITUTE(I47, \"-\", \"\", 1), \"-\", \"\", 1), \"-\", \"\", 1), I47)),TACList!$B:$B,TACList!$A:$A)","v":"PAHs, total, w/o individ. components reported [Treated as B(a)P for HRA]"},1151,5.1999999999999997E-5,0,0,0,0,0,0,null,5.1999999999999997E-5,5.1999999999999997E-5]
[null,null,null,null,null,null,null,{"$f":"_xlfn.XLOOKUP(_xlfn.NUMBERVALUE(IFERROR(SUBSTITUTE(SUBSTITUTE(SUBSTITUTE(I48, \"-\", \"\", 1), \"-\", \"\", 1), \"-\", \"\", 1), I48)),TACList!$B:$B,TACList!$A:$A)","v":"Selenium"},7782492,6.4999999999999997E-4,0,0,0,0,0,0,null,6.4999999999999997E-4,6.4999999999999997E-4]
[null,null,null,null,null,null,null,{"$f":"_xlfn.XLOOKUP(_xlfn.NUMBERVALUE(IFERROR(SUBSTITUTE(SUBSTITUTE(SUBSTITUTE(I49, \"-\", \"\", 1), \"-\", \"\", 1), \"-\", \"\", 1), I49)),TACList!$B:$B,TACList!$A:$A)","v":"Toluene"},108883,9.9000000000000008E-3,0,0,0,0,0,0,null,9.9000000000000008E-3,9.9000000000000008E-3]
[null,null,null,null,null,null,null,{"$f":"_xlfn.XLOOKUP(_xlfn.NUMBERVALUE(IFERROR(SUBSTITUTE(SUBSTITUTE(SUBSTITUTE(I50, \"-\", \"\", 1), \"-\", \"\", 1), \"-\", \"\", 1), I50)),TACList!$B:$B,TACList!$A:$A)","v":"Xylenes (mixed)"},1330207,2.8E-3,0,0,0,0,0,0,null,2.8E-3,2.8E-3]
[null,null,null,null,null,null,null,"Zinc","-",5.1999999999999995E-4,0,0,0,0,0,0,null,5.1999999999999995E-4,5.1999999999999995E-4]
[null,null,null,null,null,null,null,"*Emission Factors based on Toxic Air Contaminant Emission Factors for Crematories Guideline Document by South Coast AQMD. "]
[null,null,null,null,null,null,null,"*Zinc is not on the Rule 1401 TACs List or the Consolidated Table of OEHHA/ARB Approved Risk Assessment Health Values. As a result, emissions from Zinc will not be carried over to the Emissions Output sheet for upload to the HRA Web tool."]
[]
["Lean Burn ICE"]
[null,null,null,null,null,null,null,null,null,null,null,null,null,null,null,null,null,null,"Lean Burn",null,"Rich Burn"]
["Engine Horse Power",null,"bhp",null,null,null,null,null,null,null,null,null,null,null,null,"Toxic NSR Entry",null,null,"2-Stroke","4-Stroke","4-Stroke"]
["Equipment with SNCR, SCR, or OTHER",null,null,null,null,null,null,"Compound*","CAS #","EF (*)","EF (*)","R1","R2","R1","R2","R1 (Uncontrolled)","R2 (Controlled)",null,"EF","EF","EF"]
["Engine efficiency (37% default)",null,"value between 0-1",null,null,null,null,null,null,"(lbs/mmbtu)","(lbs/mmcf)","(lbs/hr)","(lbs/hr)","(lbs/yr)","(lbs/yr)","(E-06 lbs/hr)","(E-06 lbs/hr)",null,"(lbs/mmcf)","(lbs/mmcf)","(lbs/mmcf)"]
["Fuel rate for nat gas (actual if available)",null,null,null,null,null,null,{"$f":"_xlfn.XLOOKUP(_xlfn.NUMBERVALUE(IFERROR(SUBSTITUTE(SUBSTITUTE(SUBSTITUTE(I60, \"-\", \"\", 1), \"-\", \"\", 1), \"-\", \"\", 1), I60)),TACList!$B:$B,TACList!$A:$A)","v":"Benzene"},"71-43-2",{"$f":"K60/$B$61","v":4.2761904761904761E-4},{"$f":"T60","v":0.44900000000000001},{"$f":"K60*$B$63/1000000","v":{"$error":"#DIV/0!"}},{"$f":"L60*(1-$B$67)","v":{"$error":"#DIV/0!"}},{"$f":"L60*$B$3*$B$4*$B$5","v":{"$error":"#DIV/0!"}},{"$f":"M60*$B$3*$B$4*$B$5","v":{"$error":"#DIV/0!"}},{"$f":"L60*1000000","v":{"$error":"#DIV/0!"}},{"$f":"M60*1000000","v":{"$error":"#DIV/0!"}},null,1.98,0.44900000000000001,1.61]
["HHV-Natural gas",1050,"Btu/ft³",null,null,null,null,{"$f":"_xlfn.XLOOKUP(_xlfn.NUMBERVALUE(IFERROR(SUBSTITUTE(SUBSTITUTE(SUBSTITUTE(I61, \"-\", \"\", 1), \"-\", \"\", 1), \"-\", \"\", 1), I61)),TACList!$B:$B,TACList!$A:$A)","v":"1,3-Butadiene"},"106-99-0",{"$f":"K61/$B$61","v":2.5904761904761909E-4},0.27200000000000002,{"$error":"#DIV/0!"},{"$error":"#DIV/0!"},{"$error":"#DIV/0!"},{"$error":"#DIV/0!"},{"$error":"#DIV/0!"},{"$error":"#DIV/0!"},null,0.83599999999999997,0.27200000000000002,0.67600000000000005]
["Conversion factor to Btu/hr",2544.5,"Btu/hr",null,null,null,null,{"$f":"_xlfn.XLOOKUP(_xlfn.NUMBERVALUE(IFERROR(SUBSTITUTE(SUBSTITUTE(SUBSTITUTE(I62, \"-\", \"\", 1), \"-\", \"\", 1), \"-\", \"\", 1), I62)),TACList!$B:$B,TACList!$A:$A)","v":"Carbon tetrachloride"},"56-23-5",3.561904761904762E-5,3.7400000000000003E-2,{"$error":"#DIV/0!"},{"$error":"#DIV/0!"},{"$error":"#DIV/0!"},{"$error":"#DIV/0!"},{"$error":"#DIV/0!"},{"$error":"#DIV/0!"},null,6.1899999999999997E-2,3.7400000000000003E-2,1.8100000000000002E-2]
["Fuel rate nat gas (default)",{"$f":"IF(B60=0,(B57*B62/B61)/B59,B60)","v":{"$error":"#DIV/0!"}},"ft³/hr",null,null,null,null,{"$f":"_xlfn.XLOOKUP(_xlfn.NUMBERVALUE(IFERROR(SUBSTITUTE(SUBSTITUTE(SUBSTITUTE(I63, \"-\", \"\", 1), \"-\", \"\", 1), \"-\", \"\", 1), I63)),TACList!$B:$B,TACList!$A:$A)","v":"Ethylene dibromide {EDB}"},"106-93-4",4.3047619047619043E-5,4.5199999999999997E-2,{"$error":"#DIV/0!"},{"$error":"#DIV/0!"},{"$error":"#DIV/0!"},{"$error":"#DIV/0!"},{"$error":"#DIV/0!"},{"$error":"#DIV/0!"},null,7.4899999999999994E-2,4.5199999999999997E-2,2.1700000000000001E-2]
[null,null,null,null,null,null,null,{"$f":"_xlfn.XLOOKUP(_xlfn.NUMBERVALUE(IFERROR(SUBSTITUTE(SUBSTITUTE(SUBSTITUTE(I64, \"-\", \"\", 1), \"-\", \"\", 1), \"-\", \"\", 1), I64)),TACList!$B:$B,TACList!$A:$A)","v":"Ethylene dichloride {EDC}"},"107-06-2",2.2952380952380952E-5,2.41E-2,{"$error":"#DIV/0!"},{"$error":"#DIV/0!"},{"$error":"#DIV/0!"},{"$error":"#DIV/0!"},{"$error":"#DIV/0!"},{"$error":"#DIV/0!"},null,4.2999999999999997E-2,2.41E-2,1.15E-2]
["Pollutant","Control Efficiency",null,null,null,null,null,{"$f":"_xlfn.XLOOKUP(_xlfn.NUMBERVALUE(IFERROR(SUBSTITUTE(SUBSTITUTE(SUBSTITUTE(I65, \"-\", \"\", 1), \"-\", \"\", 1), \"-\", \"\", 1), I65)),TACList!$B:$B,TACList!$A:$A)","v":"Formaldehyde"},"50-00-0",5.1333333333333335E-2,53.9,{"$error":"#DIV/0!"},{"$error":"#DIV/0!"},{"$error":"#DIV/0!"},{"$error":"#DIV/0!"},{"$error":"#DIV/0!"},{"$error":"#DIV/0!"},null,56.3,53.9,20.9]
["PAHs",null,"value between 0-1",null,null,null,null,{"$f":"_xlfn.XLOOKUP(_xlfn.NUMBERVALUE(IFERROR(SUBSTITUTE(SUBSTITUTE(SUBSTITUTE(I66, \"-\", \"\", 1), \"-\", \"\", 1), \"-\", \"\", 1), I66)),TACList!$B:$B,TACList!$A:$A)","v":"Methylene chloride {Dichloromethane}"},"75-09-2",1.942857142857143E-5,2.0400000000000001E-2,{"$error":"#DIV/0!"},{"$error":"#DIV/0!"},{"$error":"#DIV/0!"},{"$error":"#DIV/0!"},{"$error":"#DIV/0!"},{"$error":"#DIV/0!"},null,0.15,2.0400000000000001E-2,4.2000000000000003E-2]
["VOCs",null,"value between 0-1",null,null,null,null,{"$f":"_xlfn.XLOOKUP(_xlfn.NUMBERVALUE(IFERROR(SUBSTITUTE(SUBSTITUTE(SUBSTITUTE(I67, \"-\", \"\", 1), \"-\", \"\", 1), \"-\", \"\", 1), I67)),TACList!$B:$B,TACList!$A:$A)","v":"Benz[a]anthracene"},"56-55-3",0,0,{"$error":"#DIV/0!"},{"$error":"#DIV/0!"},{"$error":"#DIV/0!"},{"$error":"#DIV/0!"},{"$error":"#DIV/0!"},{"$error":"#DIV/0!"},null,3.4299999999999999E-4,0,0]
[null,null,null,null,null,null,null,{"$f":"_xlfn.XLOOKUP(_xlfn.NUMBERVALUE(IFERROR(SUBSTITUTE(SUBSTITUTE(SUBSTITUTE(I68, \"-\", \"\", 1), \"-\", \"\", 1), \"-\", \"\", 1), I68)),TACList!$B:$B,TACList!$A:$A)","v":"Benzo[a]pyrene"},"50-32-8",0,0,{"$error":"#DIV/0!"},{"$error":"#DIV/0!"},{"$error":"#DIV/0!"},{"$error":"#DIV/0!"},{"$error":"#DIV/0!"},{"$error":"#DIV/0!"},null,5.7899999999999996E-6,0,0]
[null,null,null,null,null,null,null,{"$f":"_xlfn.XLOOKUP(_xlfn.NUMBERVALUE(IFERROR(SUBSTITUTE(SUBSTITUTE(SUBSTITUTE(I69, \"-\", \"\", 1), \"-\", \"\", 1), \"-\", \"\", 1), I69)),TACList!$B:$B,TACList!$A:$A)","v":"Benzo[b]fluoranthene"},"205-99-2",1.6095238095238095E-7,1.6899999999999999E-4,{"$error":"#DIV/0!"},{"$error":"#DIV/0!"},{"$error":"#DIV/0!"},{"$error":"#DIV/0!"},{"$error":"#DIV/0!"},{"$error":"#DIV/0!"},null,8.6799999999999999E-6,1.6899999999999999E-4,0]
[null,null,null,null,null,null,null,{"$f":"_xlfn.XLOOKUP(_xlfn.NUMBERVALUE(IFERROR(SUBSTITUTE(SUBSTITUTE(SUBSTITUTE(I70, \"-\", \"\", 1), \"-\", \"\", 1), \"-\", \"\", 1), I70)),TACList!$B:$B,TACList!$A:$A)","v":"Benzo[k]fluoranthene"},"207-08-9",0,0,{"$error":"#DIV/0!"},{"$error":"#DIV/0!"},{"$error":"#DIV/0!"},{"$error":"#DIV/0!"},{"$error":"#DIV/0!"},{"$error":"#DIV/0!"},null,5.7899999999999996E-6,0,0]
[null,null,null,null,null,null,null,{"$f":"_xlfn.XLOOKUP(_xlfn.NUMBERVALUE(IFERROR(SUBSTITUTE(SUBSTITUTE(SUBSTITUTE(I71, \"-\", \"\", 1), \"-\", \"\", 1), \"-\", \"\", 1), I71)),TACList!$B:$B,TACList!$A:$A)","v":"Chrysene"},"218-01-9",6.7333333333333327E-7,7.0699999999999995E-4,{"$error":"#DIV/0!"},{"$error":"#DIV/0!"},{"$error":"#DIV/0!"},{"$error":"#DIV/0!"},{"$error":"#DIV/0!"},{"$error":"#DIV/0!"},null,6.8499999999999995E-4,7.0699999999999995E-4,0]
[null,null,null,null,null,null,null,{"$f":"_xlfn.XLOOKUP(_xlfn.NUMBERVALUE(IFERROR(SUBSTITUTE(SUBSTITUTE(SUBSTITUTE(I72, \"-\", \"\", 1), \"-\", \"\", 1), \"-\", \"\", 1), I72)),TACList!$B:$B,TACList!$A:$A)","v":"Indeno[1,2,3-cd]pyrene"},"193-39-5",0,0,{"$error":"#DIV/0!"},{"$error":"#DIV/0!"},{"$error":"#DIV/0!"},{"$error":"#DIV/0!"},{"$error":"#DIV/0!"},{"$error":"#DIV/0!"},null,1.01E-5,0,0]
[null,null,null,null,null,null,null,{"$f":"_xlfn.XLOOKUP(_xlfn.NUMBERVALUE(IFERROR(SUBSTITUTE(SUBSTITUTE(SUBSTITUTE(I73, \"-\", \"\", 1), \"-\", \"\", 1), \"-\", \"\", 1), I73)),TACList!$B:$B,TACList!$A:$A)","v":"Naphthalene"},"91-20-3",7.2285714285714279E-5,7.5899999999999995E-2,{"$error":"#DIV/0!"},{"$error":"#DIV/0!"},{"$error":"#DIV/0!"},{"$error":"#DIV/0!"},{"$error":"#DIV/0!"},{"$error":"#DIV/0!"},null,9.8229999999999998E-2,7.5899999999999995E-2,9.9000000000000005E-2]
[null,null,null,null,null,null,null,{"$f":"_xlfn.XLOOKUP(_xlfn.NUMBERVALUE(IFERROR(SUBSTITUTE(SUBSTITUTE(SUBSTITUTE(I74, \"-\", \"\", 1), \"-\", \"\", 1), \"-\", \"\", 1), I74)),TACList!$B:$B,TACList!$A:$A)","v":"Vinyl chloride"},"75-01-4",1.4476190476190476E-5,1.52E-2,{"$error":"#DIV/0!"},{"$error":"#DIV/0!"},{"$error":"#DIV/0!"},{"$error":"#DIV/0!"},{"$error":"#DIV/0!"},{"$error":"#DIV/0!"},null,2.52E-2,1.52E-2,7.3200000000000001E-3]
[null,null,null,null,null,null,null,{"$f":"_xlfn.XLOOKUP(_xlfn.NUMBERVALUE(IFERROR(SUBSTITUTE(SUBSTITUTE(SUBSTITUTE(I75, \"-\", \"\", 1), \"-\", \"\", 1), \"-\", \"\", 1), I75)),TACList!$B:$B,TACList!$A:$A)","v":"1,1,2,2-Tetrachloroethane"},"79-34-5",3.8857142857142861E-5,4.0800000000000003E-2,{"$error":"#DIV/0!"},{"$error":"#DIV/0!"},{"$error":"#DIV/0!"},{"$error":"#DIV/0!"},{"$error":"#DIV/0!"},{"$error":"#DIV/0!"},null,6.7599999999999993E-2,4.0800000000000003E-2,2.58E-2]
[null,null,null,null,null,null,null,{"$f":"_xlfn.XLOOKUP(_xlfn.NUMBERVALUE(IFERROR(SUBSTITUTE(SUBSTITUTE(SUBSTITUTE(I76, \"-\", \"\", 1), \"-\", \"\", 1), \"-\", \"\", 1), I76)),TACList!$B:$B,TACList!$A:$A)","v":"1,1,2-Trichloroethane"},"79-00-5",3.0857142857142856E-5,3.2399999999999998E-2,{"$error":"#DIV/0!"},{"$error":"#DIV/0!"},{"$error":"#DIV/0!"},{"$error":"#DIV/0!"},{"$error":"#DIV/0!"},{"$error":"#DIV/0!"},null,5.3800000000000001E-2,3.2399999999999998E-2,1.5599999999999999E-2]
[null,null,null,null,null,null,null,{"$f":"_xlfn.XLOOKUP(_xlfn.NUMBERVALUE(IFERROR(SUBSTITUTE(SUBSTITUTE(SUBSTITUTE(I77, \"-\", \"\", 1), \"-\", \"\", 1), \"-\", \"\", 1), I77)),TACList!$B:$B,TACList!$A:$A)","v":"Acetaldehyde"},"75-07-0",8.1238095238095227E-3,8.5299999999999994,{"$error":"#DIV/0!"},{"$error":"#DIV/0!"},{"$error":"#DIV/0!"},{"$error":"#DIV/0!"},{"$error":"#DIV/0!"},{"$error":"#DIV/0!"},null,7.92,8.5299999999999994,2.85]
[null,null,null,null,null,null,null,{"$f":"_xlfn.XLOOKUP(_xlfn.NUMBERVALUE(IFERROR(SUBSTITUTE(SUBSTITUTE(SUBSTITUTE(I78, \"-\", \"\", 1), \"-\", \"\", 1), \"-\", \"\", 1), I78)),TACList!$B:$B,TACList!$A:$A)","v":"Acrolein"},"107-02-8",4.990476190476191E-3,5.24,{"$error":"#DIV/0!"},{"$error":"#DIV/0!"},{"$error":"#DIV/0!"},{"$error":"#DIV/0!"},{"$error":"#DIV/0!"},{"$error":"#DIV/0!"},null,7.94,5.24,2.68]
[null,null,null,null,null,null,null,{"$f":"_xlfn.XLOOKUP(_xlfn.NUMBERVALUE(IFERROR(SUBSTITUTE(SUBSTITUTE(SUBSTITUTE(I79, \"-\", \"\", 1), \"-\", \"\", 1), \"-\", \"\", 1), I79)),TACList!$B:$B,TACList!$A:$A)","v":"Ammonia"},"7664-41-7",{"$error":"#N/A"},{"$error":"#N/A"},{"$error":"#N/A"},{"$error":"#N/A"},{"$error":"#N/A"},{"$error":"#N/A"},{"$error":"#N/A"},{"$error":"#N/A"},null,{"$f":"VLOOKUP($B$58,$A$20:$B$23,2,FALSE)","v":{"$error":"#N/A"}},{"$f":"VLOOKUP($B$58,$A$20:$B$23,2,FALSE)","v":{"$error":"#N/A"}},{"$f":"VLOOKUP($B$58,$A$20:$B$23,2,FALSE)","v":{"$error":"#N/A"}}]
[null,null,null,null,null,null,null,{"$f":"_xlfn.XLOOKUP(_xlfn.NUMBERVALUE(IFERROR(SUBSTITUTE(SUBSTITUTE(SUBSTITUTE(I80, \"-\", \"\", 1), \"-\", \"\", 1), \"-\", \"\", 1), I80)),TACList!$B:$B,TACList!$A:$A)","v":"Chloroform"},"67-66-3",2.7714285714285716E-5,2.9100000000000001E-2,{"$error":"#DIV/0!"},{"$error":"#DIV/0!"},{"$error":"#DIV/0!"},{"$error":"#DIV/0!"},{"$error":"#DIV/0!"},{"$error":"#DIV/0!"},null,4.8000000000000001E-2,2.9100000000000001E-2,1.4E-2]
[null,null,null,null,null,null,null,{"$f":"_xlfn.XLOOKUP(_xlfn.NUMBERVALUE(IFERROR(SUBSTITUTE(SUBSTITUTE(SUBSTITUTE(I81, \"-\", \"\", 1), \"-\", \"\", 1), \"-\", \"\", 1), I81)),TACList!$B:$B,TACList!$A:$A)","v":"Ethyl benzene"},"100-41-4",3.857142857142857E-5,4.0500000000000001E-2,{"$error":"#DIV/0!"},{"$error":"#DIV/0!"},{"$error":"#DIV/0!"},{"$error":"#DIV/0!"},{"$error":"#DIV/0!"},{"$error":"#DIV/0!"},null,0.11,4.0500000000000001E-2,2.53E-2]
[null,null,null,null,null,null,null,{"$f":"_xlfn.XLOOKUP(_xlfn.NUMBERVALUE(IFERROR(SUBSTITUTE(SUBSTITUTE(SUBSTITUTE(I82, \"-\", \"\", 1), \"-\", \"\", 1), \"-\", \"\", 1), I82)),TACList!$B:$B,TACList!$A:$A)","v":"Hexane"},"110-54-3",1.076190476190476E-3,1.1299999999999999,{"$error":"#DIV/0!"},{"$error":"#DIV/0!"},{"$error":"#DIV/0!"},{"$error":"#DIV/0!"},{"$error":"#DIV/0!"},{"$error":"#DIV/0!"},null,0.45400000000000001,1.1299999999999999,0]
[null,null,null,null,null,null,null,{"$f":"_xlfn.XLOOKUP(_xlfn.NUMBERVALUE(IFERROR(SUBSTITUTE(SUBSTITUTE(SUBSTITUTE(I83, \"-\", \"\", 1), \"-\", \"\", 1), \"-\", \"\", 1), I83)),TACList!$B:$B,TACList!$A:$A)","v":"Methanol"},"67-56-1",2.4285714285714284E-3,2.5499999999999998,{"$error":"#DIV/0!"},{"$error":"#DIV/0!"},{"$error":"#DIV/0!"},{"$error":"#DIV/0!"},{"$error":"#DIV/0!"},{"$error":"#DIV/0!"},null,2.5299999999999998,2.5499999999999998,3.12]
[null,null,null,null,null,null,null,{"$f":"_xlfn.XLOOKUP(_xlfn.NUMBERVALUE(IFERROR(SUBSTITUTE(SUBSTITUTE(SUBSTITUTE(I84, \"-\", \"\", 1), \"-\", \"\", 1), \"-\", \"\", 1), I84)),TACList!$B:$B,TACList!$A:$A)","v":"Styrene"},"100-42-5",2.2952380952380952E-5,2.41E-2,{"$error":"#DIV/0!"},{"$error":"#DIV/0!"},{"$error":"#DIV/0!"},{"$error":"#DIV/0!"},{"$error":"#DIV/0!"},{"$error":"#DIV/0!"},null,5.5899999999999998E-2,2.41E-2,1.21E-2]
[null,null,null,null,null,null,null,{"$f":"_xlfn.XLOOKUP(_xlfn.NUMBERVALUE(IFERROR(SUBSTITUTE(SUBSTITUTE(SUBSTITUTE(I85, \"-\", \"\", 1), \"-\", \"\", 1), \"-\", \"\", 1), I85)),TACList!$B:$B,TACList!$A:$A)","v":"Toluene"},"108-88-3",3.961904761904762E-4,0.41599999999999998,{"$error":"#DIV/0!"},{"$error":"#DIV/0!"},{"$error":"#DIV/0!"},{"$error":"#DIV/0!"},{"$error":"#DIV/0!"},{"$error":"#DIV/0!"},null,0.98199999999999998,0.41599999999999998,0.56899999999999995]
[null,null,null,null,null,null,null,{"$f":"_xlfn.XLOOKUP(_xlfn.NUMBERVALUE(IFERROR(SUBSTITUTE(SUBSTITUTE(SUBSTITUTE(I86, \"-\", \"\", 1), \"-\", \"\", 1), \"-\", \"\", 1), I86)),TACList!$B:$B,TACList!$A:$A)","v":"Xylenes (mixed)"},"1330-20-7",1.7904761904761904E-4,0.188,{"$error":"#DIV/0!"},{"$error":"#DIV/0!"},{"$error":"#DIV/0!"},{"$error":"#DIV/0!"},{"$error":"#DIV/0!"},{"$error":"#DIV/0!"},null,0.27300000000000002,0.188,0.19900000000000001]
[]
[]
[]
["Rich Burn Internal Combustion Engine"]
[null,null,null,null,null,null,null,null,null,null,null,null,null,null,null,null,null,null,"Lean Burn",null,"Rich Burn"]
["Engine Horse Power",null,"bhp",null,null,null,null,null,null,null,null,null,null,null,null,"Toxic NSR Entry",null,null,"2-Stroke","4-Stroke","4-Stroke"]
["Equipment with SNCR, SCR, or OTHER",null,null,null,null,null,null,null,"CAS #","EF (*)","EF (*)","R1","R2","R1","R2","R1 (Uncontrolled)","R2 (Controlled)",null,"EF","EF","EF"]
["Engine efficiency (33% default)",null,"value between 0-1",null,null,null,null,"Compound",null,"(lbs/mmbtu)","(lbs/mmcf)","(lbs/hr)","(lbs/hr)","(lbs/yr)","(lbs/yr)","(E-06 lbs/hr)","(E-06 lbs/hr)",null,"(lbs/mmcf)","(lbs/mmcf)","(lbs/mmcf)"]
["Fuel rate nat gas (actual if available)",null,null,null,null,null,null,{"$f":"_xlfn.XLOOKUP(_xlfn.NUMBERVALUE(IFERROR(SUBSTITUTE(SUBSTITUTE(SUBSTITUTE(I95, \"-\", \"\", 1), \"-\", \"\", 1), \"-\", \"\", 1), I95)),TACList!$B:$B,TACList!$A:$A)","v":"Benzene"},"71-43-2",{"$f":"K95/$B$96","v":1.5333333333333334E-3},{"$f":"U95","v":1.61},{"$f":"K95*$B$98/1000000","v":{"$error":"#DIV/0!"}},{"$f":"L95*(1-$B$102)","v":{"$error":"#DIV/0!"}},{"$f":"L95*$B$3*$B$4*$B$5","v":{"$error":"#DIV/0!"}},{"$f":"M95*$B$3*$B$4*$B$5","v":{"$error":"#DIV/0!"}},{"$f":"L95*1000000","v":{"$error":"#DIV/0!"}},{"$f":"M95*1000000","v":{"$error":"#DIV/0!"}},null,1.98,0.44900000000000001,1.61]
["HHV-Natural gas",1050,"Btu/ft³",null,null,null,null,{"$f":"_xlfn.XLOOKUP(_xlfn.NUMBERVALUE(IFERROR(SUBSTITUTE(SUBSTITUTE(SUBSTITUTE(I96, \"-\", \"\", 1), \"-\", \"\", 1), \"-\", \"\", 1), I96)),TACList!$B:$B,TACList!$A:$A)","v":"1,3-Butadiene"},"106-99-0",{"$f":"K96/$B$96","v":6.4380952380952382E-4},{"$f":"U96","v":0.67600000000000005},{"$f":"K96*$B$98/1000000","v":{"$error":"#DIV/0!"}},{"$error":"#DIV/0!"},{"$f":"L96*$B$3*$B$4*$B$5","v":{"$error":"#DIV/0!"}},{"$f":"M96*$B$3*$B$4*$B$5","v":{"$error":"#DIV/0!"}},{"$f":"L96*1000000","v":{"$error":"#DIV/0!"}},{"$f":"M96*1000000","v":{"$error":"#DIV/0!"}},null,0.83599999999999997,0.27200000000000002,0.67600000000000005]
["Conversion factor to Btu/hr",2542.4699999999998,"Btu/hr-hp",null,null,null,null,{"$f":"_xlfn.XLOOKUP(_xlfn.NUMBERVALUE(IFERROR(SUBSTITUTE(SUBSTITUTE(SUBSTITUTE(I97, \"-\", \"\", 1), \"-\", \"\", 1), \"-\", \"\", 1), I97)),TACList!$B:$B,TACList!$A:$A)","v":"Carbon tetrachloride"},"56-23-5",1.7238095238095239E-5,1.8100000000000002E-2,{"$error":"#DIV/0!"},{"$error":"#DIV/0!"},{"$error":"#DIV/0!"},{"$error":"#DIV/0!"},{"$error":"#DIV/0!"},{"$error":"#DIV/0!"},null,6.1899999999999997E-2,3.7400000000000003E-2,1.8100000000000002E-2]
["Fuel rate nat gas (actual)",{"$f":"IF(B95=0,(B92*B97/B96)/B94,B95)","v":{"$error":"#DIV/0!"}},"ft³/hr",null,null,null,null,{"$f":"_xlfn.XLOOKUP(_xlfn.NUMBERVALUE(IFERROR(SUBSTITUTE(SUBSTITUTE(SUBSTITUTE(I98, \"-\", \"\", 1), \"-\", \"\", 1), \"-\", \"\", 1), I98)),TACList!$B:$B,TACList!$A:$A)","v":"Ethylene dibromide {EDB}"},"106-93-4",2.0666666666666666E-5,2.1700000000000001E-2,{"$error":"#DIV/0!"},{"$error":"#DIV/0!"},{"$error":"#DIV/0!"},{"$error":"#DIV/0!"},{"$error":"#DIV/0!"},{"$error":"#DIV/0!"},null,7.4899999999999994E-2,4.5199999999999997E-2,2.1700000000000001E-2]
[null,null,null,null,null,null,null,{"$f":"_xlfn.XLOOKUP(_xlfn.NUMBERVALUE(IFERROR(SUBSTITUTE(SUBSTITUTE(SUBSTITUTE(I99, \"-\", \"\", 1), \"-\", \"\", 1), \"-\", \"\", 1), I99)),TACList!$B:$B,TACList!$A:$A)","v":"Ethylene dichloride {EDC}"},"107-06-2",1.0952380952380953E-5,1.15E-2,{"$error":"#DIV/0!"},{"$error":"#DIV/0!"},{"$error":"#DIV/0!"},{"$error":"#DIV/0!"},{"$error":"#DIV/0!"},{"$error":"#DIV/0!"},null,4.2999999999999997E-2,2.41E-2,1.15E-2]
["Pollutant","Control Efficiency",null,null,null,null,null,{"$f":"_xlfn.XLOOKUP(_xlfn.NUMBERVALUE(IFERROR(SUBSTITUTE(SUBSTITUTE(SUBSTITUTE(I100, \"-\", \"\", 1), \"-\", \"\", 1), \"-\", \"\", 1), I100)),TACList!$B:$B,TACList!$A:$A)","v":"Formaldehyde"},"50-00-0",1.9904761904761904E-2,20.9,{"$error":"#DIV/0!"},{"$error":"#DIV/0!"},{"$error":"#DIV/0!"},{"$error":"#DIV/0!"},{"$error":"#DIV/0!"},{"$error":"#DIV/0!"},null,56.3,53.9,20.9]
["PAHs",null,"value between 0-1",null,null,null,null,{"$f":"_xlfn.XLOOKUP(_xlfn.NUMBERVALUE(IFERROR(SUBSTITUTE(SUBSTITUTE(SUBSTITUTE(I101, \"-\", \"\", 1), \"-\", \"\", 1), \"-\", \"\", 1), I101)),TACList!$B:$B,TACList!$A:$A)","v":"Methylene chloride {Dichloromethane}"},"75-09-2",4.0000000000000003E-5,4.2000000000000003E-2,{"$error":"#DIV/0!"},{"$error":"#DIV/0!"},{"$error":"#DIV/0!"},{"$error":"#DIV/0!"},{"$error":"#DIV/0!"},{"$error":"#DIV/0!"},null,0.15,2.0400000000000001E-2,4.2000000000000003E-2]
["VOCs",null,"value between 0-1",null,null,null,null,{"$f":"_xlfn.XLOOKUP(_xlfn.NUMBERVALUE(IFERROR(SUBSTITUTE(SUBSTITUTE(SUBSTITUTE(I102, \"-\", \"\", 1), \"-\", \"\", 1), \"-\", \"\", 1), I102)),TACList!$B:$B,TACList!$A:$A)","v":"Benz[a]anthracene"},"56-55-3",0,0,{"$error":"#DIV/0!"},{"$error":"#DIV/0!"},{"$error":"#DIV/0!"},{"$error":"#DIV/0!"},{"$error":"#DIV/0!"},{"$error":"#DIV/0!"},null,3.4299999999999999E-4,0,0]
[null,null,null,null,null,null,null,{"$f":"_xlfn.XLOOKUP(_xlfn.NUMBERVALUE(IFERROR(SUBSTITUTE(SUBSTITUTE(SUBSTITUTE(I103, \"-\", \"\", 1), \"-\", \"\", 1), \"-\", \"\", 1), I103)),TACList!$B:$B,TACList!$A:$A)","v":"Benzo[a]pyrene"},"50-32-8",0,0,{"$error":"#DIV/0!"},{"$error":"#DIV/0!"},{"$error":"#DIV/0!"},{"$error":"#DIV/0!"},{"$error":"#DIV/0!"},{"$error":"#DIV/0!"},null,5.7899999999999996E-6,0,0]
[null,null,null,null,null,null,null,{"$f":"_xlfn.XLOOKUP(_xlfn.NUMBERVALUE(IFERROR(SUBSTITUTE(SUBSTITUTE(SUBSTITUTE(I104, \"-\", \"\", 1), \"-\", \"\", 1), \"-\", \"\", 1), I104)),TACList!$B:$B,TACList!$A:$A)","v":"Benzo[b]fluoranthene"},"205-99-2",0,0,{"$error":"#DIV/0!"},{"$error":"#DIV/0!"},{"$error":"#DIV/0!"},{"$error":"#DIV/0!"},{"$error":"#DIV/0!"},{"$error":"#DIV/0!"},null,8.6799999999999999E-6,1.6899999999999999E-4,0]
[null,null,null,null,null,null,null,{"$f":"_xlfn.XLOOKUP(_xlfn.NUMBERVALUE(IFERROR(SUBSTITUTE(SUBSTITUTE(SUBSTITUTE(I105, \"-\", \"\", 1), \"-\", \"\", 1), \"-\", \"\", 1), I105)),TACList!$B:$B,TACList!$A:$A)","v":"Benzo[k]fluoranthene"},"207-08-9",0,0,{"$error":"#DIV/0!"},{"$error":"#DIV/0!"},{"$error":"#DIV/0!"},{"$error":"#DIV/0!"},{"$error":"#DIV/0!"},{"$error":"#DIV/0!"},null,5.7899999999999996E-6,0,0]
[null,null,null,null,null,null,null,{"$f":"_xlfn.XLOOKUP(_xlfn.NUMBERVALUE(IFERROR(SUBSTITUTE(SUBSTITUTE(SUBSTITUTE(I106, \"-\", \"\", 1), \"-\", \"\", 1), \"-\", \"\", 1), I106)),TACList!$B:$B,TACList!$A:$A)","v":"Chrysene"},"218-01-9",0,0,{"$error":"#DIV/0!"},{"$error":"#DIV/0!"},{"$error":"#DIV/0!"},{"$error":"#DIV/0!"},{"$error":"#DIV/0!"},{"$error":"#DIV/0!"},null,6.8499999999999995E-4,7.0699999999999995E-4,0]
[null,null,null,null,null,null,null,{"$f":"_xlfn.XLOOKUP(_xlfn.NUMBERVALUE(IFERROR(SUBSTITUTE(SUBSTITUTE(SUBSTITUTE(I107, \"-\", \"\", 1), \"-\", \"\", 1), \"-\", \"\", 1), I107)),TACList!$B:$B,TACList!$A:$A)","v":"Indeno[1,2,3-cd]pyrene"},"193-39-5",0,0,{"$error":"#DIV/0!"},{"$error":"#DIV/0!"},{"$error":"#DIV/0!"},{"$error":"#DIV/0!"},{"$error":"#DIV/0!"},{"$error":"#DIV/0!"},null,1.01E-5,0,0]
[null,null,null,null,null,null,null,{"$f":"_xlfn.XLOOKUP(_xlfn.NUMBERVALUE(IFERROR(SUBSTITUTE(SUBSTITUTE(SUBSTITUTE(I108, \"-\", \"\", 1), \"-\", \"\", 1), \"-\", \"\", 1), I108)),TACList!$B:$B,TACList!$A:$A)","v":"Naphthalene"},"91-20-3",9.4285714285714285E-5,9.9000000000000005E-2,{"$error":"#DIV/0!"},{"$error":"#DIV/0!"},{"$error":"#DIV/0!"},{"$error":"#DIV/0!"},{"$error":"#DIV/0!"},{"$error":"#DIV/0!"},null,9.8229999999999998E-2,7.5899999999999995E-2,9.9000000000000005E-2]
[null,null,null,null,null,null,null,{"$f":"_xlfn.XLOOKUP(_xlfn.NUMBERVALUE(IFERROR(SUBSTITUTE(SUBSTITUTE(SUBSTITUTE(I109, \"-\", \"\", 1), \"-\", \"\", 1), \"-\", \"\", 1), I109)),TACList!$B:$B,TACList!$A:$A)","v":"Vinyl chloride"},"75-01-4",6.9714285714285718E-6,7.3200000000000001E-3,{"$error":"#DIV/0!"},{"$error":"#DIV/0!"},{"$error":"#DIV/0!"},{"$error":"#DIV/0!"},{"$error":"#DIV/0!"},{"$error":"#DIV/0!"},null,2.52E-2,1.52E-2,7.3200000000000001E-3]
[null,null,null,null,null,null,null,{"$f":"_xlfn.XLOOKUP(_xlfn.NUMBERVALUE(IFERROR(SUBSTITUTE(SUBSTITUTE(SUBSTITUTE(I110, \"-\", \"\", 1), \"-\", \"\", 1), \"-\", \"\", 1), I110)),TACList!$B:$B,TACList!$A:$A)","v":"1,1,2,2-Tetrachloroethane"},"79-34-5",2.4571428571428572E-5,2.58E-2,{"$error":"#DIV/0!"},{"$error":"#DIV/0!"},{"$error":"#DIV/0!"},{"$error":"#DIV/0!"},{"$error":"#DIV/0!"},{"$error":"#DIV/0!"},null,6.7599999999999993E-2,4.0800000000000003E-2,2.58E-2]
[null,null,null,null,null,null,null,{"$f":"_xlfn.XLOOKUP(_xlfn.NUMBERVALUE(IFERROR(SUBSTITUTE(SUBSTITUTE(SUBSTITUTE(I111, \"-\", \"\", 1), \"-\", \"\", 1), \"-\", \"\", 1), I111)),TACList!$B:$B,TACList!$A:$A)","v":"1,1,2-Trichloroethane"},"79-00-5",1.4857142857142857E-5,1.5599999999999999E-2,{"$error":"#DIV/0!"},{"$error":"#DIV/0!"},{"$error":"#DIV/0!"},{"$error":"#DIV/0!"},{"$error":"#DIV/0!"},{"$error":"#DIV/0!"},null,5.3800000000000001E-2,3.2399999999999998E-2,1.5599999999999999E-2]
[null,null,null,null,null,null,null,{"$f":"_xlfn.XLOOKUP(_xlfn.NUMBERVALUE(IFERROR(SUBSTITUTE(SUBSTITUTE(SUBSTITUTE(I112, \"-\", \"\", 1), \"-\", \"\", 1), \"-\", \"\", 1), I112)),TACList!$B:$B,TACList!$A:$A)","v":"Acetaldehyde"},"75-07-0",2.7142857142857142E-3,2.85,{"$error":"#DIV/0!"},{"$error":"#DIV/0!"},{"$error":"#DIV/0!"},{"$error":"#DIV/0!"},{"$error":"#DIV/0!"},{"$error":"#DIV/0!"},null,7.92,8.5299999999999994,2.85]
[null,null,null,null,null,null,null,{"$f":"_xlfn.XLOOKUP(_xlfn.NUMBERVALUE(IFERROR(SUBSTITUTE(SUBSTITUTE(SUBSTITUTE(I113, \"-\", \"\", 1), \"-\", \"\", 1), \"-\", \"\", 1), I113)),TACList!$B:$B,TACList!$A:$A)","v":"Acrolein"},"107-02-8",2.5523809523809527E-3,2.68,{"$error":"#DIV/0!"},{"$error":"#DIV/0!"},{"$error":"#DIV/0!"},{"$error":"#DIV/0!"},{"$error":"#DIV/0!"},{"$error":"#DIV/0!"},null,7.94,5.24,2.68]
[null,null,null,null,null,null,null,{"$f":"_xlfn.XLOOKUP(_xlfn.NUMBERVALUE(IFERROR(SUBSTITUTE(SUBSTITUTE(SUBSTITUTE(I114, \"-\", \"\", 1), \"-\", \"\", 1), \"-\", \"\", 1), I114)),TACList!$B:$B,TACList!$A:$A)","v":"Ammonia"},"7664-41-7",{"$error":"#N/A"},{"$error":"#N/A"},{"$error":"#N/A"},{"$error":"#N/A"},{"$error":"#N/A"},{"$error":"#N/A"},{"$error":"#N/A"},{"$error":"#N/A"},null,{"$f":"VLOOKUP($B$93,$A$20:$B$23,2,FALSE)","v":{"$error":"#N/A"}},{"$f":"VLOOKUP($B$93,$A$20:$B$23,2,FALSE)","v":{"$error":"#N/A"}},{"$f":"VLOOKUP($B$93,$A$20:$B$23,2,FALSE)","v":{"$error":"#N/A"}}]
[null,null,null,null,null,null,null,{"$f":"_xlfn.XLOOKUP(_xlfn.NUMBERVALUE(IFERROR(SUBSTITUTE(SUBSTITUTE(SUBSTITUTE(I115, \"-\", \"\", 1), \"-\", \"\", 1), \"-\", \"\", 1), I115)),TACList!$B:$B,TACList!$A:$A)","v":"Chloroform"},"67-66-3",1.3333333333333333E-5,1.4E-2,{"$error":"#DIV/0!"},{"$error":"#DIV/0!"},{"$error":"#DIV/0!"},{"$error":"#DIV/0!"},{"$error":"#DIV/0!"},{"$error":"#DIV/0!"},null,4.8000000000000001E-2,2.9100000000000001E-2,1.4E-2]
[null,null,null,null,null,null,null,{"$f":"_xlfn.XLOOKUP(_xlfn.NUMBERVALUE(IFERROR(SUBSTITUTE(SUBSTITUTE(SUBSTITUTE(I116, \"-\", \"\", 1), \"-\", \"\", 1), \"-\", \"\", 1), I116)),TACList!$B:$B,TACList!$A:$A)","v":"Ethyl benzene"},"100-41-4",2.4095238095238094E-5,2.53E-2,{"$error":"#DIV/0!"},{"$error":"#DIV/0!"},{"$error":"#DIV/0!"},{"$error":"#DIV/0!"},{"$error":"#DIV/0!"},{"$error":"#DIV/0!"},null,0.11,4.0500000000000001E-2,2.53E-2]
[null,null,null,null,null,null,null,{"$f":"_xlfn.XLOOKUP(_xlfn.NUMBERVALUE(IFERROR(SUBSTITUTE(SUBSTITUTE(SUBSTITUTE(I117, \"-\", \"\", 1), \"-\", \"\", 1), \"-\", \"\", 1), I117)),TACList!$B:$B,TACList!$A:$A)","v":"Hexane"},"110-54-3",0,0,{"$error":"#DIV/0!"},{"$error":"#DIV/0!"},{"$error":"#DIV/0!"},{"$error":"#DIV/0!"},{"$error":"#DIV/0!"},{"$error":"#DIV/0!"},null,0.45400000000000001,1.1299999999999999,0]
[null,null,null,null,null,null,null,{"$f":"_xlfn.XLOOKUP(_xlfn.NUMBERVALUE(IFERROR(SUBSTITUTE(SUBSTITUTE(SUBSTITUTE(I118, \"-\", \"\", 1), \"-\", \"\", 1), \"-\", \"\", 1), I118)),TACList!$B:$B,TACList!$A:$A)","v":"Methanol"},"67-56-1",2.9714285714285715E-3,3.12,{"$error":"#DIV/0!"},{"$error":"#DIV/0!"},{"$error":"#DIV/0!"},{"$error":"#DIV/0!"},{"$error":"#DIV/0!"},{"$error":"#DIV/0!"},null,2.5299999999999998,2.5499999999999998,3.12]
[null,null,null,null,null,null,null,{"$f":"_xlfn.XLOOKUP(_xlfn.NUMBERVALUE(IFERROR(SUBSTITUTE(SUBSTITUTE(SUBSTITUTE(I119, \"-\", \"\", 1), \"-\", \"\", 1), \"-\", \"\", 1), I119)),TACList!$B:$B,TACList!$A:$A)","v":"Styrene"},"100-42-5",1.1523809523809524E-5,1.21E-2,{"$error":"#DIV/0!"},{"$error":"#DIV/0!"},{"$error":"#DIV/0!"},{"$error":"#DIV/0!"},{"$error":"#DIV/0!"},{"$error":"#DIV/0!"},null,5.5899999999999998E-2,2.41E-2,1.21E-2]
[null,null,null,null,null,null,null,{"$f":"_xlfn.XLOOKUP(_xlfn.NUMBERVALUE(IFERROR(SUBSTITUTE(SUBSTITUTE(SUBSTITUTE(I120, \"-\", \"\", 1), \"-\", \"\", 1), \"-\", \"\", 1), I120)),TACList!$B:$B,TACList!$A:$A)","v":"Toluene"},"108-88-3",5.4190476190476189E-4,0.56899999999999995,{"$error":"#DIV/0!"},{"$error":"#DIV/0!"},{"$error":"#DIV/0!"},{"$error":"#DIV/0!"},{"$error":"#DIV/0!"},{"$error":"#DIV/0!"},null,0.98199999999999998,0.41599999999999998,0.56899999999999995]
[null,null,null,null,null,null,null,{"$f":"_xlfn.XLOOKUP(_xlfn.NUMBERVALUE(IFERROR(SUBSTITUTE(SUBSTITUTE(SUBSTITUTE(I121, \"-\", \"\", 1), \"-\", \"\", 1), \"-\", \"\", 1), I121)),TACList!$B:$B,TACList!$A:$A)","v":"Xylenes (mixed)"},"1330-20-7",1.8952380952380954E-4,0.19900000000000001,{"$error":"#DIV/0!"},{"$error":"#DIV/0!"},{"$error":"#DIV/0!"},{"$error":"#DIV/0!"},{"$error":"#DIV/0!"},{"$error":"#DIV/0!"},null,0.27300000000000002,0.188,0.19900000000000001]
[]
["Diesel Reciprocating Internal Combustion Engines"]
["Engine Horse Power",null,"bhp",null,null,null,null,"Rating (BHP)",1995,1996,1997,1998,1999,2000,2001,2002,2003,2004,2005,2006,2007,2008,2009,2010,2011,2012,2013,2014,2015]
["Engine Year Built",null,null,null,null,null,null,"50-75",0,0,0,0,0,0,0,0,0,0.3,0.3,0.3,0.3,0.22,0.22,0.22,0.22,0.22,0.02,0.02,0.02]
["Generator Engine ? ",null,null,null,null,null,null,"75-100",0,0,0,0,0,0,0,0,0,0.3,0.3,0.3,0.3,0.3,0.3,0.3,0.3,0.01,0.01,0.01,0.01]
["Emission Factor from applicant or engine manufacturer's specification (*)",null,null,null,null,"g/bhp-hr",null,"100-175",0,0,0,0,0,0,0,0,0.22,0.22,0.22,0.22,0.22,0.22,0.22,0.22,0.22,0.01,0.01,0.01,0.01]
["EPA's PM non-road exhaust emission standards (**)",null,{"$f":"_xlfn.IFNA(HLOOKUP($B$125,$I$124:$AC$133,IF($B$124<75,2,IF($B$124<100,3,IF($B$124<175,4,IF($B$124<300,5,IF($B$124<600,6,IF($B$124<750,7,IF($B$124<1207,8,9))))))),FALSE),\"Invalid Value\")","v":"Invalid Value"},null,"g/bhp-hr",null,null,"175-300",0,0.4,0.4,0.4,0.4,0.4,0.4,0.4,0.15,0.15,0.15,0.15,0.15,0.15,0.15,0.15,1.4999999999999999E-2,1.4999999999999999E-2,1.4999999999999999E-2,0.01,0.01]
[null,null,null,null,null,null,null,"300-600",0,0.4,0.4,0.4,0.4,0.4,0.15,0.15,0.15,0.15,0.15,0.15,0.15,0.15,0.15,0.15,1.4999999999999999E-2,1.4999999999999999E-2,1.4999999999999999E-2,0.01,0.01]
["Compound (CAS: 9901)","R1 (lbs/hr)","Efficiency","R2 (lbs/hr)","R1 (lbs/yr)","R2 (lbs/yr)",null,"600-750",0,0.4,0.4,0.4,0.4,0.4,0.4,0.15,0.15,0.15,0.15,0.15,0.15,0.15,0.15,0.15,1.4999999999999999E-2,1.4999999999999999E-2,1.4999999999999999E-2,0.01,0.01]
[{"$f":"_xlfn.XLOOKUP(9901,TACList!$B:$B,TACList!$A:$A)","v":"Diesel engine exhaust, particulate matter (Diesel PM)"},{"$f":"IF(E127<>0,$E$127*$B$124/454,IF(OR(C128=0,ISTEXT(C128)),\"Need E127 Value\",$C$128*$B$124/454))","v":"Need E127 Value"},null,{"$f":"IFERROR(B131*(1-$C131),\"\")","v":""},{"$f":"IFERROR(B131*$B$3*$B$4*$B$5,\"\")","v":""},{"$f":"IFERROR(D131*$B$3*$B$4*$B$5,\"\")","v":""},null,"> 750",0,0,0,0,0,0.4,0.4,0.4,0.4,0.4,0.4,0.15,0.15,0.15,0.15,0.15,7.0000000000000007E-2,7.0000000000000007E-2,7.0000000000000007E-2,7.0000000000000007E-2,0.03]
["(*) From applicant or engine manufaturer's specifications. ",null,null,null,null,null,null,"(750,1207]",0,0,0,0,0,0.4,0.4,0.4,0.4,0.4,0.4,0.15,0.15,0.15,0.15,0.15,7.0000000000000007E-2,7.0000000000000007E-2,7.0000000000000007E-2,7.0000000000000007E-2,0.02]
["(**) From EPA non-road engine exhaust emission standards for Diesel ICE based on engine HP,  engine year built and engine type.  (http://www.arb.ca.gov/msprog/offroad/offroad.htm & http://www.epa.gov/otaq/standards/nonroad/nonroadci.htm)",null,null,null,null,null,null,"> 1207",0,0,0,0,0,0.4,0.4,0.4,0.4,0.4,0.4,0.15,0.15,0.15,0.15,0.15,7.0000000000000007E-2,7.0000000000000007E-2,7.0000000000000007E-2,7.0000000000000007E-2,0.02]
[]
["Pressure Washer (Diesel) "]
[null,null,null,null,null,null,null,null,null,null,null,null,null,null,"Toxic NSR Entry"]
["Max burner rating",null,"Btu/hr",null,null,null,null,"Compound*","CAS #","EF (*)","R1","R2","R1","R2","R1 (Uncontrolled)","R2 (Controlled)"]
["Fuel HHV (Diesel)",137,"Btu/gal",null,null,null,null,null,null,"(lbs/1,000 gal)","(lbs/hr)","(lbs/hr)","(lbs/yr)","(lbs/yr)","(E-06 lbs/hr)","(E-06 lbs/hr)"]
["Fuel rate",{"$f":"B137/B138","v":0},"gal/hr",null,null,null,null,{"$f":"_xlfn.XLOOKUP(_xlfn.NUMBERVALUE(IFERROR(SUBSTITUTE(SUBSTITUTE(SUBSTITUTE(I139, \"-\", \"\", 1), \"-\", \"\", 1), \"-\", \"\", 1), I139)),TACList!$B:$B,TACList!$A:$A)","v":"Benzene"},"71-43-2",2.8500000000000001E-3,{"$f":"J139*$B$139/1000","v":0},{"$f":"K139*(1-$B$6)","v":0},{"$f":"K139*$B$3*$B$4*$B$5","v":0},{"$f":"L139*$B$3*$B$4*$B$5","v":0},{"$f":"K139*1000000","v":0},{"$f":"L139*1000000","v":0}]
[null,null,null,null,null,null,null,{"$f":"_xlfn.XLOOKUP(_xlfn.NUMBERVALUE(IFERROR(SUBSTITUTE(SUBSTITUTE(SUBSTITUTE(I140, \"-\", \"\", 1), \"-\", \"\", 1), \"-\", \"\", 1), I140)),TACList!$B:$B,TACList!$A:$A)","v":"Ethyl benzene"},"100-41-4",1.65E-3,{"$f":"J140*$B$139/1000","v":0},{"$f":"K140*(1-$B$6)","v":0},{"$f":"K140*$B$3*$B$4*$B$5","v":0},{"$f":"L140*$B$3*$B$4*$B$5","v":0},{"$f":"K140*1000000","v":0},{"$f":"L140*1000000","v":0}]
[null,null,null,null,null,null,null,{"$f":"_xlfn.XLOOKUP(_xlfn.NUMBERVALUE(IFERROR(SUBSTITUTE(SUBSTITUTE(SUBSTITUTE(I141, \"-\", \"\", 1), \"-\", \"\", 1), \"-\", \"\", 1), I141)),TACList!$B:$B,TACList!$A:$A)","v":"Formaldehyde"},"50-00-0",1.75,0,0,0,0,0,0]
[null,null,null,null,null,null,null,{"$f":"_xlfn.XLOOKUP(_xlfn.NUMBERVALUE(IFERROR(SUBSTITUTE(SUBSTITUTE(SUBSTITUTE(I142, \"-\", \"\", 1), \"-\", \"\", 1), \"-\", \"\", 1), I142)),TACList!$B:$B,TACList!$A:$A)","v":"Hexane"},"110-54-3",1.34E-3,0,0,0,0,0,0]
[null,null,null,null,null,null,null,{"$f":"_xlfn.XLOOKUP(_xlfn.NUMBERVALUE(IFERROR(SUBSTITUTE(SUBSTITUTE(SUBSTITUTE(I143, \"-\", \"\", 1), \"-\", \"\", 1), \"-\", \"\", 1), I143)),TACList!$B:$B,TACList!$A:$A)","v":"Naphthalene"},"91-20-3",2.78,0,0,0,0,0,0]
[null,null,null,null,null,null,null,{"$f":"_xlfn.XLOOKUP(_xlfn.NUMBERVALUE(IFERROR(SUBSTITUTE(SUBSTITUTE(SUBSTITUTE(I144, \"-\", \"\", 1), \"-\", \"\", 1), \"-\", \"\", 1), I144)),TACList!$B:$B,TACList!$A:$A)","v":"PAHs, total, w/o individ. components reported [Treated as B(a)P for HRA]"},1151,9.9500000000000001E-4,0,0,0,0,0,0]
[null,null,null,null,null,null,null,{"$f":"_xlfn.XLOOKUP(_xlfn.NUMBERVALUE(IFERROR(SUBSTITUTE(SUBSTITUTE(SUBSTITUTE(I145, \"-\", \"\", 1), \"-\", \"\", 1), \"-\", \"\", 1), I145)),TACList!$B:$B,TACList!$A:$A)","v":"Propylene"},"115-07-1",1.8E-3,0,0,0,0,0,0]
[null,null,null,null,null,null,null,{"$f":"_xlfn.XLOOKUP(_xlfn.NUMBERVALUE(IFERROR(SUBSTITUTE(SUBSTITUTE(SUBSTITUTE(I146, \"-\", \"\", 1), \"-\", \"\", 1), \"-\", \"\", 1), I146)),TACList!$B:$B,TACList!$A:$A)","v":"Toluene"},"108-88-3",1.6999999999999999E-3,0,0,0,0,0,0]
[null,null,null,null,null,null,null,{"$f":"_xlfn.XLOOKUP(_xlfn.NUMBERVALUE(IFERROR(SUBSTITUTE(SUBSTITUTE(SUBSTITUTE(I147, \"-\", \"\", 1), \"-\", \"\", 1), \"-\", \"\", 1), I147)),TACList!$B:$B,TACList!$A:$A)","v":"Xylenes (mixed)"},"1330-20-7",1.65E-3,0,0,0,0,0,0]
[]
["Spray Booth",null,null,null,null,null,null,"INSTRUCTIONS"]
["Spray Booth Type",null,null,null,null,null,null,"1. Type in CAS Numbers (with or without hyphens) into the yellow cells in Column B."]
["Burner Rating, if applicable",null,"MMBtu/hr",null,null,null,null,"2. Enter Emissions in lbs/hr in Column C and Control Factor (value from 0-1) in Column D."]
[]
["Is there a Permit Limit?"]
["Please enter the Permit Fuel Limit here:",null,"mmscf/day"]
[{"$f":"IF(B153=\"\",\"\",IF(B153=\"No\",\"*If there is no permit limit, the policy for combustion emissions is to calcuate emissions using the maximum operating schedule. \"&CHAR(40)&\"24/7/52\"&CHAR(41),\"\"))","v":""}]
["*This tool only calculates Natural Gas Combustion Emissions. Propane has different emissions factors."]
["*Burner emission is calculated based on 24/7/52 operating schedule."]
["*Certain componds may not be explicitly listed in the tool, but are still subject to Rule 1401 and emissions of these compounds need to be accounted for. (Arsenic, Beryllium, Cadmium, Chromium (Hexavalent), Copper, Cresols/Cresylic Acid, Fluorides, Lead, Mercury, Nickel, Phosphorous, Selenium, Zinc)"]
["TAC Emissions from Coating Materials"]
[]
["Compound*","CAS #","Emission Rate","Control Factor",null,null,null,"Compound*","CAS #","Emission Rate",null,"Control Factor",null,null,null,"Toxic NSR Entry"]
[null,null,null,null,null,null,null,null,null,null,"R1",null,"R2","R1","R2","R1 (Uncontrolled)","R2 (Controlled)"]
[null,null,"(lbs/hr)","(0-1)",null,null,null,null,null,"(lbs/hr)","(lbs/hr)","(0-1)","(lbs/hr)","(lbs/yr)","(lbs/yr)","(E-06 lbs/hr)","(E-06 lbs/hr)"]
[{"$f":"IF(B164=\"\",\"\",_xlfn.IFNA(IF(_xlfn.XLOOKUP(_xlfn.NUMBERVALUE(IFERROR(SUBSTITUTE(SUBSTITUTE(SUBSTITUTE(B164, \"-\", \"\", 1), \"-\", \"\", 1), \"-\", \"\", 1), B164)),TACList!$B:$B,TACList!$A:$A)=0,\"Enter CAS Number w/ Dashes Here ->\",_xlfn.XLOOKUP(_xlfn.NUMBERVALUE(IFERROR(SUBSTITUTE(SUBSTITUTE(SUBSTITUTE(B164, \"-\", \"\", 1), \"-\", \"\", 1), \"-\", \"\", 1), B164)),TACList!$B:$B,TACList!$A:$A)),\"Compound Not Found, Please Remove\"))","v":""},null,null,null,null,null,null,{"$f":"IF(OR(B164=\"\",A164=\"Toxic Not Found, Please Remove\"),\"\",A164)","v":""},{"$f":"IF(H164=\"\",\"\",B164)","v":""},{"$f":"IF(H164=\"\",\"\",C164)","v":""},{"$f":"IF(H164=\"\",\"\",C164)","v":""},{"$f":"IF(H164=\"\",\"\",D164)","v":""},{"$f":"IF(K164=\"\",\"\",K164*(1-L164))","v":""},{"$f":"IF(H164=\"\",\"\",K164*$B$3*$B$4*$B$5)","v":""},{"$f":"IF(H164=\"\",\"\",M164*$B$3*$B$4*$B$5)","v":""},{"$f":"IF(H164<>\"\",K164*1000000,\"\")","v":""},{"$f":"IF(H164<>\"\",M164*1000000,\"\")","v":""}]
[{"$f":"IF(B165=\"\",\"\",_xlfn.IFNA(IF(_xlfn.XLOOKUP(_xlfn.NUMBERVALUE(IFERROR(SUBSTITUTE(SUBSTITUTE(SUBSTITUTE(B165, \"-\", \"\", 1), \"-\", \"\", 1), \"-\", \"\", 1), B165)),TACList!$B:$B,TACList!$A:$A)=0,\"Enter CAS Number w/ Dashes Here ->\",_xlfn.XLOOKUP(_xlfn.NUMBERVALUE(IFERROR(SUBSTITUTE(SUBSTITUTE(SUBSTITUTE(B165, \"-\", \"\", 1), \"-\", \"\", 1), \"-\", \"\", 1), B165)),TACList!$B:$B,TACList!$A:$A)),\"Compound Not Found, Please Remove\"))","v":""},null,null,null,null,null,null,{"$f":"IF(OR(B165=\"\",A165=\"Toxic Not Found, Please Remove\"),\"\",A165)","v":""},{"$f":"IF(H165=\"\",\"\",B165)","v":""},{"$f":"IF(H165=\"\",\"\",C165)","v":""},{"$f":"IF(H165=\"\",\"\",C165)","v":""},{"$f":"IF(H165=\"\",\"\",D165)","v":""},{"$f":"IF(K165=\"\",\"\",K165*(1-L165))","v":""},{"$f":"IF(H165=\"\",\"\",K165*$B$3*$B$4*$B$5)","v":""},{"$f":"IF(H165=\"\",\"\",M165*$B$3*$B$4*$B$5)","v":""},{"$f":"IF(H165<>\"\",K165*1000000,\"\")","v":""},{"$f":"IF(H165<>\"\",M165*1000000,\"\")","v":""}]
[{"$f":"IF(B166=\"\",\"\",_xlfn.IFNA(IF(_xlfn.XLOOKUP(_xlfn.NUMBERVALUE(IFERROR(SUBSTITUTE(SUBSTITUTE(SUBSTITUTE(B166, \"-\", \"\", 1), \"-\", \"\", 1), \"-\", \"\", 1), B166)),TACList!$B:$B,TACList!$A:$A)=0,\"Enter CAS Number w/ Dashes Here ->\",_xlfn.XLOOKUP(_xlfn.NUMBERVALUE(IFERROR(SUBSTITUTE(SUBSTITUTE(SUBSTITUTE(B166, \"-\", \"\", 1), \"-\", \"\", 1), \"-\", \"\", 1), B166)),TACList!$B:$B,TACList!$A:$A)),\"Compound Not Found, Please Remove\"))","v":""},null,null,null,null,null,null,"","","","","","","","","",""]
[{"$f":"IF(B167=\"\",\"\",_xlfn.IFNA(IF(_xlfn.XLOOKUP(_xlfn.NUMBERVALUE(IFERROR(SUBSTITUTE(SUBSTITUTE(SUBSTITUTE(B167, \"-\", \"\", 1), \"-\", \"\", 1), \"-\", \"\", 1), B167)),TACList!$B:$B,TACList!$A:$A)=0,\"Enter CAS Number w/ Dashes Here ->\",_xlfn.XLOOKUP(_xlfn.NUMBERVALUE(IFERROR(SUBSTITUTE(SUBSTITUTE(SUBSTITUTE(B167, \"-\", \"\", 1), \"-\", \"\", 1), \"-\", \"\", 1), B167)),TACList!$B:$B,TACList!$A:$A)),\"Compound Not Found, Please Remove\"))","v":""},null,null,null,null,null,null,"","","","","","","","","",""]
[{"$f":"IF(B168=\"\",\"\",_xlfn.IFNA(IF(_xlfn.XLOOKUP(_xlfn.NUMBERVALUE(IFERROR(SUBSTITUTE(SUBSTITUTE(SUBSTITUTE(B168, \"-\", \"\", 1), \"-\", \"\", 1), \"-\", \"\", 1), B168)),TACList!$B:$B,TACList!$A:$A)=0,\"Enter CAS Number w/ Dashes Here ->\",_xlfn.XLOOKUP(_xlfn.NUMBERVALUE(IFERROR(SUBSTITUTE(SUBSTITUTE(SUBSTITUTE(B168, \"-\", \"\", 1), \"-\", \"\", 1), \"-\", \"\", 1), B168)),TACList!$B:$B,TACList!$A:$A)),\"Compound Not Found, Please Remove\"))","v":""},null,null,null,null,null,null,"","","","","","","","","",""]
[{"$f":"IF(B169=\"\",\"\",_xlfn.IFNA(IF(_xlfn.XLOOKUP(_xlfn.NUMBERVALUE(IFERROR(SUBSTITUTE(SUBSTITUTE(SUBSTITUTE(B169, \"-\", \"\", 1), \"-\", \"\", 1), \"-\", \"\", 1), B169)),TACList!$B:$B,TACList!$A:$A)=0,\"Enter CAS Number w/ Dashes Here ->\",_xlfn.XLOOKUP(_xlfn.NUMBERVALUE(IFERROR(SUBSTITUTE(SUBSTITUTE(SUBSTITUTE(B169, \"-\", \"\", 1), \"-\", \"\", 1), \"-\", \"\", 1), B169)),TACList!$B:$B,TACList!$A:$A)),\"Compound Not Found, Please Remove\"))","v":""},null,null,null,null,null,null,"","","","","","","","","",""]
[{"$f":"IF(B170=\"\",\"\",_xlfn.IFNA(IF(_xlfn.XLOOKUP(_xlfn.NUMBERVALUE(IFERROR(SUBSTITUTE(SUBSTITUTE(SUBSTITUTE(B170, \"-\", \"\", 1), \"-\", \"\", 1), \"-\", \"\", 1), B170)),TACList!$B:$B,TACList!$A:$A)=0,\"Enter CAS Number w/ Dashes Here ->\",_xlfn.XLOOKUP(_xlfn.NUMBERVALUE(IFERROR(SUBSTITUTE(SUBSTITUTE(SUBSTITUTE(B170, \"-\", \"\", 1), \"-\", \"\", 1), \"-\", \"\", 1), B170)),TACList!$B:$B,TACList!$A:$A)),\"Compound Not Found, Please Remove\"))","v":""},null,null,null,null,null,null,"","","","","","","","","",""]
[{"$f":"IF(B171=\"\",\"\",_xlfn.IFNA(IF(_xlfn.XLOOKUP(_xlfn.NUMBERVALUE(IFERROR(SUBSTITUTE(SUBSTITUTE(SUBSTITUTE(B171, \"-\", \"\", 1), \"-\", \"\", 1), \"-\", \"\", 1), B171)),TACList!$B:$B,TACList!$A:$A)=0,\"Enter CAS Number w/ Dashes Here ->\",_xlfn.XLOOKUP(_xlfn.NUMBERVALUE(IFERROR(SUBSTITUTE(SUBSTITUTE(SUBSTITUTE(B171, \"-\", \"\", 1), \"-\", \"\", 1), \"-\", \"\", 1), B171)),TACList!$B:$B,TACList!$A:$A)),\"Compound Not Found, Please Remove\"))","v":""},null,null,null,null,null,null,"","","","","","","","","",""]
[{"$f":"IF(B172=\"\",\"\",_xlfn.IFNA(IF(_xlfn.XLOOKUP(_xlfn.NUMBERVALUE(IFERROR(SUBSTITUTE(SUBSTITUTE(SUBSTITUTE(B172, \"-\", \"\", 1), \"-\", \"\", 1), \"-\", \"\", 1), B172)),TACList!$B:$B,TACList!$A:$A)=0,\"Enter CAS Number w/ Dashes Here ->\",_xlfn.XLOOKUP(_xlfn.NUMBERVALUE(IFERROR(SUBSTITUTE(SUBSTITUTE(SUBSTITUTE(B172, \"-\", \"\", 1), \"-\", \"\", 1), \"-\", \"\", 1), B172)),TACList!$B:$B,TACList!$A:$A)),\"Compound Not Found, Please Remove\"))","v":""},null,null,null,null,null,null,"","","","","","","","","",""]
[{"$f":"IF(B173=\"\",\"\",_xlfn.IFNA(IF(_xlfn.XLOOKUP(_xlfn.NUMBERVALUE(IFERROR(SUBSTITUTE(SUBSTITUTE(SUBSTITUTE(B173, \"-\", \"\", 1), \"-\", \"\", 1), \"-\", \"\", 1), B173)),TACList!$B:$B,TACList!$A:$A)=0,\"Enter CAS Number w/ Dashes Here ->\",_xlfn.XLOOKUP(_xlfn.NUMBERVALUE(IFERROR(SUBSTITUTE(SUBSTITUTE(SUBSTITUTE(B173, \"-\", \"\", 1), \"-\", \"\", 1), \"-\", \"\", 1), B173)),TACList!$B:$B,TACList!$A:$A)),\"Compound Not Found, Please Remove\"))","v":""},null,null,null,null,null,null,"","","","","","","","","",""]
[{"$f":"IF(B174=\"\",\"\",_xlfn.IFNA(IF(_xlfn.XLOOKUP(_xlfn.NUMBERVALUE(IFERROR(SUBSTITUTE(SUBSTITUTE(SUBSTITUTE(B174, \"-\", \"\", 1), \"-\", \"\", 1), \"-\", \"\", 1), B174)),TACList!$B:$B,TACList!$A:$A)=0,\"Enter CAS Number w/ Dashes Here ->\",_xlfn.XLOOKUP(_xlfn.NUMBERVALUE(IFERROR(SUBSTITUTE(SUBSTITUTE(SUBSTITUTE(B174, \"-\", \"\", 1), \"-\", \"\", 1), \"-\", \"\", 1), B174)),TACList!$B:$B,TACList!$A:$A)),\"Compound Not Found, Please Remove\"))","v":""},null,null,null,null,null,null,"","","","","","","","","",""]
[{"$f":"IF(B175=\"\",\"\",_xlfn.IFNA(IF(_xlfn.XLOOKUP(_xlfn.NUMBERVALUE(IFERROR(SUBSTITUTE(SUBSTITUTE(SUBSTITUTE(B175, \"-\", \"\", 1), \"-\", \"\", 1), \"-\", \"\", 1), B175)),TACList!$B:$B,TACList!$A:$A)=0,\"Enter CAS Number w/ Dashes Here ->\",_xlfn.XLOOKUP(_xlfn.NUMBERVALUE(IFERROR(SUBSTITUTE(SUBSTITUTE(SUBSTITUTE(B175, \"-\", \"\", 1), \"-\", \"\", 1), \"-\", \"\", 1), B175)),TACList!$B:$B,TACList!$A:$A)),\"Compound Not Found, Please Remove\"))","v":""},null,null,null,null,null,null,"","","","","","","","","",""]
[{"$f":"IF(B176=\"\",\"\",_xlfn.IFNA(IF(_xlfn.XLOOKUP(_xlfn.NUMBERVALUE(IFERROR(SUBSTITUTE(SUBSTITUTE(SUBSTITUTE(B176, \"-\", \"\", 1), \"-\", \"\", 1), \"-\", \"\", 1), B176)),TACList!$B:$B,TACList!$A:$A)=0,\"Enter CAS Number w/ Dashes Here ->\",_xlfn.XLOOKUP(_xlfn.NUMBERVALUE(IFERROR(SUBSTITUTE(SUBSTITUTE(SUBSTITUTE(B176, \"-\", \"\", 1), \"-\", \"\", 1), \"-\", \"\", 1), B176)),TACList!$B:$B,TACList!$A:$A)),\"Compound Not Found, Please Remove\"))","v":""},null,null,null,null,null,null,"","","","","","","","","",""]
[{"$f":"IF(B177=\"\",\"\",_xlfn.IFNA(IF(_xlfn.XLOOKUP(_xlfn.NUMBERVALUE(IFERROR(SUBSTITUTE(SUBSTITUTE(SUBSTITUTE(B177, \"-\", \"\", 1), \"-\", \"\", 1), \"-\", \"\", 1), B177)),TACList!$B:$B,TACList!$A:$A)=0,\"Enter CAS Number w/ Dashes Here ->\",_xlfn.XLOOKUP(_xlfn.NUMBERVALUE(IFERROR(SUBSTITUTE(SUBSTITUTE(SUBSTITUTE(B177, \"-\", \"\", 1), \"-\", \"\", 1), \"-\", \"\", 1), B177)),TACList!$B:$B,TACList!$A:$A)),\"Compound Not Found, Please Remove\"))","v":""},null,null,null,null,null,null,"","","","","","","","","",""]
[{"$f":"IF(B178=\"\",\"\",_xlfn.IFNA(IF(_xlfn.XLOOKUP(_xlfn.NUMBERVALUE(IFERROR(SUBSTITUTE(SUBSTITUTE(SUBSTITUTE(B178, \"-\", \"\", 1), \"-\", \"\", 1), \"-\", \"\", 1), B178)),TACList!$B:$B,TACList!$A:$A)=0,\"Enter CAS Number w/ Dashes Here ->\",_xlfn.XLOOKUP(_xlfn.NUMBERVALUE(IFERROR(SUBSTITUTE(SUBSTITUTE(SUBSTITUTE(B178, \"-\", \"\", 1), \"-\", \"\", 1), \"-\", \"\", 1), B178)),TACList!$B:$B,TACList!$A:$A)),\"Compound Not Found, Please Remove\"))","v":""},null,null,null,null,null,null,"","","","","","","","","",""]
[{"$f":"IF(B179=\"\",\"\",_xlfn.IFNA(IF(_xlfn.XLOOKUP(_xlfn.NUMBERVALUE(IFERROR(SUBSTITUTE(SUBSTITUTE(SUBSTITUTE(B179, \"-\", \"\", 1), \"-\", \"\", 1), \"-\", \"\", 1), B179)),TACList!$B:$B,TACList!$A:$A)=0,\"Enter CAS Number w/ Dashes Here ->\",_xlfn.XLOOKUP(_xlfn.NUMBERVALUE(IFERROR(SUBSTITUTE(SUBSTITUTE(SUBSTITUTE(B179, \"-\", \"\", 1), \"-\", \"\", 1), \"-\", \"\", 1), B179)),TACList!$B:$B,TACList!$A:$A)),\"Compound Not Found, Please Remove\"))","v":""},null,null,null,null,null,null,"","","","","","","","","",""]
[{"$f":"IF(B180=\"\",\"\",_xlfn.IFNA(IF(_xlfn.XLOOKUP(_xlfn.NUMBERVALUE(IFERROR(SUBSTITUTE(SUBSTITUTE(SUBSTITUTE(B180, \"-\", \"\", 1), \"-\", \"\", 1), \"-\", \"\", 1), B180)),TACList!$B:$B,TACList!$A:$A)=0,\"Enter CAS Number w/ Dashes Here ->\",_xlfn.XLOOKUP(_xlfn.NUMBERVALUE(IFERROR(SUBSTITUTE(SUBSTITUTE(SUBSTITUTE(B180, \"-\", \"\", 1), \"-\", \"\", 1), \"-\", \"\", 1), B180)),TACList!$B:$B,TACList!$A:$A)),\"Compound Not Found, Please Remove\"))","v":""},null,null,null,null,null,null,"","","","","","","","","",""]
[{"$f":"IF(B181=\"\",\"\",_xlfn.IFNA(IF(_xlfn.XLOOKUP(_xlfn.NUMBERVALUE(IFERROR(SUBSTITUTE(SUBSTITUTE(SUBSTITUTE(B181, \"-\", \"\", 1), \"-\", \"\", 1), \"-\", \"\", 1), B181)),TACList!$B:$B,TACList!$A:$A)=0,\"Enter CAS Number w/ Dashes Here ->\",_xlfn.XLOOKUP(_xlfn.NUMBERVALUE(IFERROR(SUBSTITUTE(SUBSTITUTE(SUBSTITUTE(B181, \"-\", \"\", 1), \"-\", \"\", 1), \"-\", \"\", 1), B181)),TACList!$B:$B,TACList!$A:$A)),\"Compound Not Found, Please Remove\"))","v":""},null,null,null,null,null,null,"","","","","","","","","",""]
[{"$f":"IF(B182=\"\",\"\",_xlfn.IFNA(IF(_xlfn.XLOOKUP(_xlfn.NUMBERVALUE(IFERROR(SUBSTITUTE(SUBSTITUTE(SUBSTITUTE(B182, \"-\", \"\", 1), \"-\", \"\", 1), \"-\", \"\", 1), B182)),TACList!$B:$B,TACList!$A:$A)=0,\"Enter CAS Number w/ Dashes Here ->\",_xlfn.XLOOKUP(_xlfn.NUMBERVALUE(IFERROR(SUBSTITUTE(SUBSTITUTE(SUBSTITUTE(B182, \"-\", \"\", 1), \"-\", \"\", 1), \"-\", \"\", 1), B182)),TACList!$B:$B,TACList!$A:$A)),\"Compound Not Found, Please Remove\"))","v":""},null,null,null,null,null,null,"","","","","","","","","",""]
[{"$f":"IF(B183=\"\",\"\",_xlfn.IFNA(IF(_xlfn.XLOOKUP(_xlfn.NUMBERVALUE(IFERROR(SUBSTITUTE(SUBSTITUTE(SUBSTITUTE(B183, \"-\", \"\", 1), \"-\", \"\", 1), \"-\", \"\", 1), B183)),TACList!$B:$B,TACList!$A:$A)=0,\"Enter CAS Number w/ Dashes Here ->\",_xlfn.XLOOKUP(_xlfn.NUMBERVALUE(IFERROR(SUBSTITUTE(SUBSTITUTE(SUBSTITUTE(B183, \"-\", \"\", 1), \"-\", \"\", 1), \"-\", \"\", 1), B183)),TACList!$B:$B,TACList!$A:$A)),\"Compound Not Found, Please Remove\"))","v":""},null,null,null,null,null,null,"","","","","","","","","",""]
[{"$f":"IF(B184=\"\",\"\",_xlfn.IFNA(IF(_xlfn.XLOOKUP(_xlfn.NUMBERVALUE(IFERROR(SUBSTITUTE(SUBSTITUTE(SUBSTITUTE(B184, \"-\", \"\", 1), \"-\", \"\", 1), \"-\", \"\", 1), B184)),TACList!$B:$B,TACList!$A:$A)=0,\"Enter CAS Number w/ Dashes Here ->\",_xlfn.XLOOKUP(_xlfn.NUMBERVALUE(IFERROR(SUBSTITUTE(SUBSTITUTE(SUBSTITUTE(B184, \"-\", \"\", 1), \"-\", \"\", 1), \"-\", \"\", 1), B184)),TACList!$B:$B,TACList!$A:$A)),\"Compound Not Found, Please Remove\"))","v":""},null,null,null,null,null,null,"","","","","","","","","",""]
[{"$f":"IF(B185=\"\",\"\",_xlfn.IFNA(IF(_xlfn.XLOOKUP(_xlfn.NUMBERVALUE(IFERROR(SUBSTITUTE(SUBSTITUTE(SUBSTITUTE(B185, \"-\", \"\", 1), \"-\", \"\", 1), \"-\", \"\", 1), B185)),TACList!$B:$B,TACList!$A:$A)=0,\"Enter CAS Number w/ Dashes Here ->\",_xlfn.XLOOKUP(_xlfn.NUMBERVALUE(IFERROR(SUBSTITUTE(SUBSTITUTE(SUBSTITUTE(B185, \"-\", \"\", 1), \"-\", \"\", 1), \"-\", \"\", 1), B185)),TACList!$B:$B,TACList!$A:$A)),\"Compound Not Found, Please Remove\"))","v":""},null,null,null,null,null,null,"","","","","","","","","",""]
[{"$f":"IF(B186=\"\",\"\",_xlfn.IFNA(IF(_xlfn.XLOOKUP(_xlfn.NUMBERVALUE(IFERROR(SUBSTITUTE(SUBSTITUTE(SUBSTITUTE(B186, \"-\", \"\", 1), \"-\", \"\", 1), \"-\", \"\", 1), B186)),TACList!$B:$B,TACList!$A:$A)=0,\"Enter CAS Number w/ Dashes Here ->\",_xlfn.XLOOKUP(_xlfn.NUMBERVALUE(IFERROR(SUBSTITUTE(SUBSTITUTE(SUBSTITUTE(B186, \"-\", \"\", 1), \"-\", \"\", 1), \"-\", \"\", 1), B186)),TACList!$B:$B,TACList!$A:$A)),\"Compound Not Found, Please Remove\"))","v":""},null,null,null,null,null,null,"","","","","","","","","",""]
[{"$f":"IF(B187=\"\",\"\",_xlfn.IFNA(IF(_xlfn.XLOOKUP(_xlfn.NUMBERVALUE(IFERROR(SUBSTITUTE(SUBSTITUTE(SUBSTITUTE(B187, \"-\", \"\", 1), \"-\", \"\", 1), \"-\", \"\", 1), B187)),TACList!$B:$B,TACList!$A:$A)=0,\"Enter CAS Number w/ Dashes Here ->\",_xlfn.XLOOKUP(_xlfn.NUMBERVALUE(IFERROR(SUBSTITUTE(SUBSTITUTE(SUBSTITUTE(B187, \"-\", \"\", 1), \"-\", \"\", 1), \"-\", \"\", 1), B187)),TACList!$B:$B,TACList!$A:$A)),\"Compound Not Found, Please Remove\"))","v":""},null,null,null,null,null,null,"","","","","","","","","",""]
[{"$f":"IF(B188=\"\",\"\",_xlfn.IFNA(IF(_xlfn.XLOOKUP(_xlfn.NUMBERVALUE(IFERROR(SUBSTITUTE(SUBSTITUTE(SUBSTITUTE(B188, \"-\", \"\", 1), \"-\", \"\", 1), \"-\", \"\", 1), B188)),TACList!$B:$B,TACList!$A:$A)=0,\"Enter CAS Number w/ Dashes Here ->\",_xlfn.XLOOKUP(_xlfn.NUMBERVALUE(IFERROR(SUBSTITUTE(SUBSTITUTE(SUBSTITUTE(B188, \"-\", \"\", 1), \"-\", \"\", 1), \"-\", \"\", 1), B188)),TACList!$B:$B,TACList!$A:$A)),\"Compound Not Found, Please Remove\"))","v":""},null,null,null,null,null,null,"","","","","","","","","",""]
[{"$f":"IF(B189=\"\",\"\",_xlfn.IFNA(IF(_xlfn.XLOOKUP(_xlfn.NUMBERVALUE(IFERROR(SUBSTITUTE(SUBSTITUTE(SUBSTITUTE(B189, \"-\", \"\", 1), \"-\", \"\", 1), \"-\", \"\", 1), B189)),TACList!$B:$B,TACList!$A:$A)=0,\"Enter CAS Number w/ Dashes Here ->\",_xlfn.XLOOKUP(_xlfn.NUMBERVALUE(IFERROR(SUBSTITUTE(SUBSTITUTE(SUBSTITUTE(B189, \"-\", \"\", 1), \"-\", \"\", 1), \"-\", \"\", 1), B189)),TACList!$B:$B,TACList!$A:$A)),\"Compound Not Found, Please Remove\"))","v":""},null,null,null,null,null,null,{"$f":"IF(OR(B189=\"\",A189=\"Toxic Not Found, Please Remove\"),\"\",A189)","v":""},{"$f":"IF(H189=\"\",\"\",B189)","v":""},{"$f":"IF(H189=\"\",\"\",C189)","v":""},{"$f":"IF(H189=\"\",\"\",C189)","v":""},{"$f":"IF(H189=\"\",\"\",D189)","v":""},"",{"$f":"IF(H189=\"\",\"\",K189*$B$3*$B$4*$B$5)","v":""},{"$f":"IF(H189=\"\",\"\",M189*$B$3*$B$4*$B$5)","v":""},"",""]
[{"$f":"IF(B190=\"\",\"\",_xlfn.IFNA(IF(_xlfn.XLOOKUP(_xlfn.NUMBERVALUE(IFERROR(SUBSTITUTE(SUBSTITUTE(SUBSTITUTE(B190, \"-\", \"\", 1), \"-\", \"\", 1), \"-\", \"\", 1), B190)),TACList!$B:$B,TACList!$A:$A)=0,\"Enter CAS Number w/ Dashes Here ->\",_xlfn.XLOOKUP(_xlfn.NUMBERVALUE(IFERROR(SUBSTITUTE(SUBSTITUTE(SUBSTITUTE(B190, \"-\", \"\", 1), \"-\", \"\", 1), \"-\", \"\", 1), B190)),TACList!$B:$B,TACList!$A:$A)),\"Compound Not Found, Please Remove\"))","v":""},null,null,null,null,null,null,{"$f":"IF(OR(B190=\"\",A190=\"Toxic Not Found, Please Remove\"),\"\",A190)","v":""},{"$f":"IF(H190=\"\",\"\",B190)","v":""},{"$f":"IF(H190=\"\",\"\",C190)","v":""},{"$f":"IF(H190=\"\",\"\",C190)","v":""},{"$f":"IF(H190=\"\",\"\",D190)","v":""},{"$f":"IF(K190=\"\",\"\",K190*(1-L190))","v":""},{"$f":"IF(H190=\"\",\"\",K190*$B$3*$B$4*$B$5)","v":""},{"$f":"IF(H190=\"\",\"\",M190*$B$3*$B$4*$B$5)","v":""},{"$f":"IF(H190<>\"\",K190*1000000,\"\")","v":""},{"$f":"IF(H190<>\"\",M190*1000000,\"\")","v":""}]
[{"$f":"IF(B191=\"\",\"\",_xlfn.IFNA(IF(_xlfn.XLOOKUP(_xlfn.NUMBERVALUE(IFERROR(SUBSTITUTE(SUBSTITUTE(SUBSTITUTE(B191, \"-\", \"\", 1), \"-\", \"\", 1), \"-\", \"\", 1), B191)),TACList!$B:$B,TACList!$A:$A)=0,\"Enter CAS Number w/ Dashes Here ->\",_xlfn.XLOOKUP(_xlfn.NUMBERVALUE(IFERROR(SUBSTITUTE(SUBSTITUTE(SUBSTITUTE(B191, \"-\", \"\", 1), \"-\", \"\", 1), \"-\", \"\", 1), B191)),TACList!$B:$B,TACList!$A:$A)),\"Compound Not Found, Please Remove\"))","v":""},null,null,null,null,null,null,"","","","","","","","","",""]
[{"$f":"IF(B192=\"\",\"\",_xlfn.IFNA(IF(_xlfn.XLOOKUP(_xlfn.NUMBERVALUE(IFERROR(SUBSTITUTE(SUBSTITUTE(SUBSTITUTE(B192, \"-\", \"\", 1), \"-\", \"\", 1), \"-\", \"\", 1), B192)),TACList!$B:$B,TACList!$A:$A)=0,\"Enter CAS Number w/ Dashes Here ->\",_xlfn.XLOOKUP(_xlfn.NUMBERVALUE(IFERROR(SUBSTITUTE(SUBSTITUTE(SUBSTITUTE(B192, \"-\", \"\", 1), \"-\", \"\", 1), \"-\", \"\", 1), B192)),TACList!$B:$B,TACList!$A:$A)),\"Compound Not Found, Please Remove\"))","v":""},null,null,null,null,null,null,"","","","","","","","","",""]
[{"$f":"IF(B193=\"\",\"\",_xlfn.IFNA(IF(_xlfn.XLOOKUP(_xlfn.NUMBERVALUE(IFERROR(SUBSTITUTE(SUBSTITUTE(SUBSTITUTE(B193, \"-\", \"\", 1), \"-\", \"\", 1), \"-\", \"\", 1), B193)),TACList!$B:$B,TACList!$A:$A)=0,\"Enter CAS Number w/ Dashes Here ->\",_xlfn.XLOOKUP(_xlfn.NUMBERVALUE(IFERROR(SUBSTITUTE(SUBSTITUTE(SUBSTITUTE(B193, \"-\", \"\", 1), \"-\", \"\", 1), \"-\", \"\", 1), B193)),TACList!$B:$B,TACList!$A:$A)),\"Compound Not Found, Please Remove\"))","v":""},null,null,null,null,null,null,"","","","","","","","","",""]
[{"$f":"IF(B194=\"\",\"\",_xlfn.IFNA(IF(_xlfn.XLOOKUP(_xlfn.NUMBERVALUE(IFERROR(SUBSTITUTE(SUBSTITUTE(SUBSTITUTE(B194, \"-\", \"\", 1), \"-\", \"\", 1), \"-\", \"\", 1), B194)),TACList!$B:$B,TACList!$A:$A)=0,\"Enter CAS Number w/ Dashes Here ->\",_xlfn.XLOOKUP(_xlfn.NUMBERVALUE(IFERROR(SUBSTITUTE(SUBSTITUTE(SUBSTITUTE(B194, \"-\", \"\", 1), \"-\", \"\", 1), \"-\", \"\", 1), B194)),TACList!$B:$B,TACList!$A:$A)),\"Compound Not Found, Please Remove\"))","v":""},null,null,null,null,null,null,"","","","","","","","","",""]
[{"$f":"IF(B195=\"\",\"\",_xlfn.IFNA(IF(_xlfn.XLOOKUP(_xlfn.NUMBERVALUE(IFERROR(SUBSTITUTE(SUBSTITUTE(SUBSTITUTE(B195, \"-\", \"\", 1), \"-\", \"\", 1), \"-\", \"\", 1), B195)),TACList!$B:$B,TACList!$A:$A)=0,\"Enter CAS Number w/ Dashes Here ->\",_xlfn.XLOOKUP(_xlfn.NUMBERVALUE(IFERROR(SUBSTITUTE(SUBSTITUTE(SUBSTITUTE(B195, \"-\", \"\", 1), \"-\", \"\", 1), \"-\", \"\", 1), B195)),TACList!$B:$B,TACList!$A:$A)),\"Compound Not Found, Please Remove\"))","v":""},null,null,null,null,null,null,"","","","","","","","","",""]
[{"$f":"IF(B196=\"\",\"\",_xlfn.IFNA(IF(_xlfn.XLOOKUP(_xlfn.NUMBERVALUE(IFERROR(SUBSTITUTE(SUBSTITUTE(SUBSTITUTE(B196, \"-\", \"\", 1), \"-\", \"\", 1), \"-\", \"\", 1), B196)),TACList!$B:$B,TACList!$A:$A)=0,\"Enter CAS Number w/ Dashes Here ->\",_xlfn.XLOOKUP(_xlfn.NUMBERVALUE(IFERROR(SUBSTITUTE(SUBSTITUTE(SUBSTITUTE(B196, \"-\", \"\", 1), \"-\", \"\", 1), \"-\", \"\", 1), B196)),TACList!$B:$B,TACList!$A:$A)),\"Compound Not Found, Please Remove\"))","v":""},null,null,null,null,null,null,"","","","","","","","","",""]
[{"$f":"IF(B197=\"\",\"\",_xlfn.IFNA(IF(_xlfn.XLOOKUP(_xlfn.NUMBERVALUE(IFERROR(SUBSTITUTE(SUBSTITUTE(SUBSTITUTE(B197, \"-\", \"\", 1), \"-\", \"\", 1), \"-\", \"\", 1), B197)),TACList!$B:$B,TACList!$A:$A)=0,\"Enter CAS Number w/ Dashes Here ->\",_xlfn.XLOOKUP(_xlfn.NUMBERVALUE(IFERROR(SUBSTITUTE(SUBSTITUTE(SUBSTITUTE(B197, \"-\", \"\", 1), \"-\", \"\", 1), \"-\", \"\", 1), B197)),TACList!$B:$B,TACList!$A:$A)),\"Compound Not Found, Please Remove\"))","v":""},null,null,null,null,null,null,"","","","","","","","","",""]
[{"$f":"IF(B198=\"\",\"\",_xlfn.IFNA(IF(_xlfn.XLOOKUP(_xlfn.NUMBERVALUE(IFERROR(SUBSTITUTE(SUBSTITUTE(SUBSTITUTE(B198, \"-\", \"\", 1), \"-\", \"\", 1), \"-\", \"\", 1), B198)),TACList!$B:$B,TACList!$A:$A)=0,\"Enter CAS Number w/ Dashes Here ->\",_xlfn.XLOOKUP(_xlfn.NUMBERVALUE(IFERROR(SUBSTITUTE(SUBSTITUTE(SUBSTITUTE(B198, \"-\", \"\", 1), \"-\", \"\", 1), \"-\", \"\", 1), B198)),TACList!$B:$B,TACList!$A:$A)),\"Compound Not Found, Please Remove\"))","v":""},null,null,null,null,null,null,"","","","","","","","","",""]
[{"$f":"IF(B199=\"\",\"\",_xlfn.IFNA(IF(_xlfn.XLOOKUP(_xlfn.NUMBERVALUE(IFERROR(SUBSTITUTE(SUBSTITUTE(SUBSTITUTE(B199, \"-\", \"\", 1), \"-\", \"\", 1), \"-\", \"\", 1), B199)),TACList!$B:$B,TACList!$A:$A)=0,\"Enter CAS Number w/ Dashes Here ->\",_xlfn.XLOOKUP(_xlfn.NUMBERVALUE(IFERROR(SUBSTITUTE(SUBSTITUTE(SUBSTITUTE(B199, \"-\", \"\", 1), \"-\", \"\", 1), \"-\", \"\", 1), B199)),TACList!$B:$B,TACList!$A:$A)),\"Compound Not Found, Please Remove\"))","v":""},null,null,null,null,null,null,"","","","","","","","","",""]
[{"$f":"IF(B200=\"\",\"\",_xlfn.IFNA(IF(_xlfn.XLOOKUP(_xlfn.NUMBERVALUE(IFERROR(SUBSTITUTE(SUBSTITUTE(SUBSTITUTE(B200, \"-\", \"\", 1), \"-\", \"\", 1), \"-\", \"\", 1), B200)),TACList!$B:$B,TACList!$A:$A)=0,\"Enter CAS Number w/ Dashes Here ->\",_xlfn.XLOOKUP(_xlfn.NUMBERVALUE(IFERROR(SUBSTITUTE(SUBSTITUTE(SUBSTITUTE(B200, \"-\", \"\", 1), \"-\", \"\", 1), \"-\", \"\", 1), B200)),TACList!$B:$B,TACList!$A:$A)),\"Compound Not Found, Please Remove\"))","v":""},null,null,null,null,null,null,"","","","","","","","","",""]
[{"$f":"IF(B201=\"\",\"\",_xlfn.IFNA(IF(_xlfn.XLOOKUP(_xlfn.NUMBERVALUE(IFERROR(SUBSTITUTE(SUBSTITUTE(SUBSTITUTE(B201, \"-\", \"\", 1), \"-\", \"\", 1), \"-\", \"\", 1), B201)),TACList!$B:$B,TACList!$A:$A)=0,\"Enter CAS Number w/ Dashes Here ->\",_xlfn.XLOOKUP(_xlfn.NUMBERVALUE(IFERROR(SUBSTITUTE(SUBSTITUTE(SUBSTITUTE(B201, \"-\", \"\", 1), \"-\", \"\", 1), \"-\", \"\", 1), B201)),TACList!$B:$B,TACList!$A:$A)),\"Compound Not Found, Please Remove\"))","v":""},null,null,null,null,null,null,"","","","","","","","","",""]
[{"$f":"IF(B202=\"\",\"\",_xlfn.IFNA(IF(_xlfn.XLOOKUP(_xlfn.NUMBERVALUE(IFERROR(SUBSTITUTE(SUBSTITUTE(SUBSTITUTE(B202, \"-\", \"\", 1), \"-\", \"\", 1), \"-\", \"\", 1), B202)),TACList!$B:$B,TACList!$A:$A)=0,\"Enter CAS Number w/ Dashes Here ->\",_xlfn.XLOOKUP(_xlfn.NUMBERVALUE(IFERROR(SUBSTITUTE(SUBSTITUTE(SUBSTITUTE(B202, \"-\", \"\", 1), \"-\", \"\", 1), \"-\", \"\", 1), B202)),TACList!$B:$B,TACList!$A:$A)),\"Compound Not Found, Please Remove\"))","v":""},null,null,null,null,null,null,"","","","","","","","","",""]
[{"$f":"IF(B203=\"\",\"\",_xlfn.IFNA(IF(_xlfn.XLOOKUP(_xlfn.NUMBERVALUE(IFERROR(SUBSTITUTE(SUBSTITUTE(SUBSTITUTE(B203, \"-\", \"\", 1), \"-\", \"\", 1), \"-\", \"\", 1), B203)),TACList!$B:$B,TACList!$A:$A)=0,\"Enter CAS Number w/ Dashes Here ->\",_xlfn.XLOOKUP(_xlfn.NUMBERVALUE(IFERROR(SUBSTITUTE(SUBSTITUTE(SUBSTITUTE(B203, \"-\", \"\", 1), \"-\", \"\", 1), \"-\", \"\", 1), B203)),TACList!$B:$B,TACList!$A:$A)),\"Compound Not Found, Please Remove\"))","v":""},null,null,null,null,null,null,"","","","","","","","","",""]
[{"$f":"IF(B204=\"\",\"\",_xlfn.IFNA(IF(_xlfn.XLOOKUP(_xlfn.NUMBERVALUE(IFERROR(SUBSTITUTE(SUBSTITUTE(SUBSTITUTE(B204, \"-\", \"\", 1), \"-\", \"\", 1), \"-\", \"\", 1), B204)),TACList!$B:$B,TACList!$A:$A)=0,\"Enter CAS Number w/ Dashes Here ->\",_xlfn.XLOOKUP(_xlfn.NUMBERVALUE(IFERROR(SUBSTITUTE(SUBSTITUTE(SUBSTITUTE(B204, \"-\", \"\", 1), \"-\", \"\", 1), \"-\", \"\", 1), B204)),TACList!$B:$B,TACList!$A:$A)),\"Compound Not Found, Please Remove\"))","v":""},null,null,null,null,null,null,"","","","","","","","","",""]
[{"$f":"IF(B205=\"\",\"\",_xlfn.IFNA(IF(_xlfn.XLOOKUP(_xlfn.NUMBERVALUE(IFERROR(SUBSTITUTE(SUBSTITUTE(SUBSTITUTE(B205, \"-\", \"\", 1), \"-\", \"\", 1), \"-\", \"\", 1), B205)),TACList!$B:$B,TACList!$A:$A)=0,\"Enter CAS Number w/ Dashes Here ->\",_xlfn.XLOOKUP(_xlfn.NUMBERVALUE(IFERROR(SUBSTITUTE(SUBSTITUTE(SUBSTITUTE(B205, \"-\", \"\", 1), \"-\", \"\", 1), \"-\", \"\", 1), B205)),TACList!$B:$B,TACList!$A:$A)),\"Compound Not Found, Please Remove\"))","v":""},null,null,null,null,null,null,"","","","","","","","","",""]
[{"$f":"IF(B206=\"\",\"\",_xlfn.IFNA(IF(_xlfn.XLOOKUP(_xlfn.NUMBERVALUE(IFERROR(SUBSTITUTE(SUBSTITUTE(SUBSTITUTE(B206, \"-\", \"\", 1), \"-\", \"\", 1), \"-\", \"\", 1), B206)),TACList!$B:$B,TACList!$A:$A)=0,\"Enter CAS Number w/ Dashes Here ->\",_xlfn.XLOOKUP(_xlfn.NUMBERVALUE(IFERROR(SUBSTITUTE(SUBSTITUTE(SUBSTITUTE(B206, \"-\", \"\", 1), \"-\", \"\", 1), \"-\", \"\", 1), B206)),TACList!$B:$B,TACList!$A:$A)),\"Compound Not Found, Please Remove\"))","v":""},null,null,null,null,null,null,"","","","","","","","","",""]
[{"$f":"IF(B207=\"\",\"\",_xlfn.IFNA(IF(_xlfn.XLOOKUP(_xlfn.NUMBERVALUE(IFERROR(SUBSTITUTE(SUBSTITUTE(SUBSTITUTE(B207, \"-\", \"\", 1), \"-\", \"\", 1), \"-\", \"\", 1), B207)),TACList!$B:$B,TACList!$A:$A)=0,\"Enter CAS Number w/ Dashes Here ->\",_xlfn.XLOOKUP(_xlfn.NUMBERVALUE(IFERROR(SUBSTITUTE(SUBSTITUTE(SUBSTITUTE(B207, \"-\", \"\", 1), \"-\", \"\", 1), \"-\", \"\", 1), B207)),TACList!$B:$B,TACList!$A:$A)),\"Compound Not Found, Please Remove\"))","v":""},null,null,null,null,null,null,"","","","","","","","","",""]
[{"$f":"IF(B208=\"\",\"\",_xlfn.IFNA(IF(_xlfn.XLOOKUP(_xlfn.NUMBERVALUE(IFERROR(SUBSTITUTE(SUBSTITUTE(SUBSTITUTE(B208, \"-\", \"\", 1), \"-\", \"\", 1), \"-\", \"\", 1), B208)),TACList!$B:$B,TACList!$A:$A)=0,\"Enter CAS Number w/ Dashes Here ->\",_xlfn.XLOOKUP(_xlfn.NUMBERVALUE(IFERROR(SUBSTITUTE(SUBSTITUTE(SUBSTITUTE(B208, \"-\", \"\", 1), \"-\", \"\", 1), \"-\", \"\", 1), B208)),TACList!$B:$B,TACList!$A:$A)),\"Compound Not Found, Please Remove\"))","v":""},null,null,null,null,null,null,"","","","","","","","","",""]
[{"$f":"IF(B209=\"\",\"\",_xlfn.IFNA(IF(_xlfn.XLOOKUP(_xlfn.NUMBERVALUE(IFERROR(SUBSTITUTE(SUBSTITUTE(SUBSTITUTE(B209, \"-\", \"\", 1), \"-\", \"\", 1), \"-\", \"\", 1), B209)),TACList!$B:$B,TACList!$A:$A)=0,\"Enter CAS Number w/ Dashes Here ->\",_xlfn.XLOOKUP(_xlfn.NUMBERVALUE(IFERROR(SUBSTITUTE(SUBSTITUTE(SUBSTITUTE(B209, \"-\", \"\", 1), \"-\", \"\", 1), \"-\", \"\", 1), B209)),TACList!$B:$B,TACList!$A:$A)),\"Compound Not Found, Please Remove\"))","v":""},null,null,null,null,null,null,"","","","","","","","","",""]
[{"$f":"IF(B210=\"\",\"\",_xlfn.IFNA(IF(_xlfn.XLOOKUP(_xlfn.NUMBERVALUE(IFERROR(SUBSTITUTE(SUBSTITUTE(SUBSTITUTE(B210, \"-\", \"\", 1), \"-\", \"\", 1), \"-\", \"\", 1), B210)),TACList!$B:$B,TACList!$A:$A)=0,\"Enter CAS Number w/ Dashes Here ->\",_xlfn.XLOOKUP(_xlfn.NUMBERVALUE(IFERROR(SUBSTITUTE(SUBSTITUTE(SUBSTITUTE(B210, \"-\", \"\", 1), \"-\", \"\", 1), \"-\", \"\", 1), B210)),TACList!$B:$B,TACList!$A:$A)),\"Compound Not Found, Please Remove\"))","v":""},null,null,null,null,null,null,"","","","","","","","","",""]
[{"$f":"IF(B211=\"\",\"\",_xlfn.IFNA(IF(_xlfn.XLOOKUP(_xlfn.NUMBERVALUE(IFERROR(SUBSTITUTE(SUBSTITUTE(SUBSTITUTE(B211, \"-\", \"\", 1), \"-\", \"\", 1), \"-\", \"\", 1), B211)),TACList!$B:$B,TACList!$A:$A)=0,\"Enter CAS Number w/ Dashes Here ->\",_xlfn.XLOOKUP(_xlfn.NUMBERVALUE(IFERROR(SUBSTITUTE(SUBSTITUTE(SUBSTITUTE(B211, \"-\", \"\", 1), \"-\", \"\", 1), \"-\", \"\", 1), B211)),TACList!$B:$B,TACList!$A:$A)),\"Compound Not Found, Please Remove\"))","v":""},null,null,null,null,null,null,"","","","","","","","","",""]
[{"$f":"IF(B212=\"\",\"\",_xlfn.IFNA(IF(_xlfn.XLOOKUP(_xlfn.NUMBERVALUE(IFERROR(SUBSTITUTE(SUBSTITUTE(SUBSTITUTE(B212, \"-\", \"\", 1), \"-\", \"\", 1), \"-\", \"\", 1), B212)),TACList!$B:$B,TACList!$A:$A)=0,\"Enter CAS Number w/ Dashes Here ->\",_xlfn.XLOOKUP(_xlfn.NUMBERVALUE(IFERROR(SUBSTITUTE(SUBSTITUTE(SUBSTITUTE(B212, \"-\", \"\", 1), \"-\", \"\", 1), \"-\", \"\", 1), B212)),TACList!$B:$B,TACList!$A:$A)),\"Compound Not Found, Please Remove\"))","v":""},null,null,null,null,null,null,"","","","","","","","","",""]
[{"$f":"IF(B213=\"\",\"\",_xlfn.IFNA(IF(_xlfn.XLOOKUP(_xlfn.NUMBERVALUE(IFERROR(SUBSTITUTE(SUBSTITUTE(SUBSTITUTE(B213, \"-\", \"\", 1), \"-\", \"\", 1), \"-\", \"\", 1), B213)),TACList!$B:$B,TACList!$A:$A)=0,\"Enter CAS Number w/ Dashes Here ->\",_xlfn.XLOOKUP(_xlfn.NUMBERVALUE(IFERROR(SUBSTITUTE(SUBSTITUTE(SUBSTITUTE(B213, \"-\", \"\", 1), \"-\", \"\", 1), \"-\", \"\", 1), B213)),TACList!$B:$B,TACList!$A:$A)),\"Compound Not Found, Please Remove\"))","v":""},null,null,null,null,null,null,"","","","","","","","","",""]
[]
["Combustion TAC Emissions *This tool only calculates Natural Gas Combustion Emissions. Propane has different emissions factors."]
["Compound*","CAS #","Emission Rate","Control Factor",null,null,null,"Compound*","CAS #","Emission Rate",null,"Control Factor",null,null,null,"Toxic NSR Entry"]
[null,null,null,null,null,null,null,null,null,null,"R1",null,"R2","R1","R2","R1 (Uncontrolled)","R2 (Controlled)"]
[null,null,"(lbs/mmscf)","(0-1)",null,null,null,null,null,"(lbs/mmscf)","(lbs/hr)","(0-1)","(lbs/hr)","(lbs/yr)","(lbs/yr)","(E-06 lbs/hr)","(E-06 lbs/hr)"]
[{"$f":"IF(B219=\"\",\"\",_xlfn.IFNA(IF(_xlfn.XLOOKUP(_xlfn.NUMBERVALUE(IFERROR(SUBSTITUTE(SUBSTITUTE(SUBSTITUTE(B219, \"-\", \"\", 1), \"-\", \"\", 1), \"-\", \"\", 1), B219)),TACList!$B:$B,TACList!$A:$A)=0,\"Enter CAS Number w/ Dashes Here ->\",_xlfn.XLOOKUP(_xlfn.NUMBERVALUE(IFERROR(SUBSTITUTE(SUBSTITUTE(SUBSTITUTE(B219, \"-\", \"\", 1), \"-\", \"\", 1), \"-\", \"\", 1), B219)),TACList!$B:$B,TACList!$A:$A)),\"Toxic Not Found, Please Remove\"))","v":"Acetaldehyde"},{"$f":"IF($B$150=\"Without Burner\",\"\",\"75-07-0\")","v":"75-07-0"},{"$f":"IF($B$150=\"Without Burner\",\"\",0.0043)","v":4.3E-3},null,null,null,null,{"$f":"A219","v":"Acetaldehyde"},{"$f":"IF($B$150=\"Without Burner\",\"\",\"75-07-0\")","v":"75-07-0"},{"$f":"C219","v":4.3E-3},{"$f":"IF(A219=\"\",\"\",$B$151/1050*C219)","v":0},null,{"$f":"IF(K219=\"\",\"\",K219*(1-D219))","v":0},{"$f":"IF(H219=\"\",\"\",IF($B$153=\"Yes\",J219*$B$154*$B$4*$B$5,K219*24*7*52))","v":0},{"$f":"IF(H219=\"\",\"\",IF($B$153=\"Yes\",J219*$B$154*$B$4*$B$5,M219*24*7*52))","v":0},{"$f":"IF(K219=\"\",\"\",K219*1000000)","v":0},{"$f":"IF(M219=\"\",\"\",M219*1000000)","v":0}]
[{"$f":"IF(B220=\"\",\"\",_xlfn.IFNA(IF(_xlfn.XLOOKUP(_xlfn.NUMBERVALUE(IFERROR(SUBSTITUTE(SUBSTITUTE(SUBSTITUTE(B220, \"-\", \"\", 1), \"-\", \"\", 1), \"-\", \"\", 1), B220)),TACList!$B:$B,TACList!$A:$A)=0,\"Enter CAS Number w/ Dashes Here ->\",_xlfn.XLOOKUP(_xlfn.NUMBERVALUE(IFERROR(SUBSTITUTE(SUBSTITUTE(SUBSTITUTE(B220, \"-\", \"\", 1), \"-\", \"\", 1), \"-\", \"\", 1), B220)),TACList!$B:$B,TACList!$A:$A)),\"Toxic Not Found, Please Remove\"))","v":"Acrolein"},{"$f":"IF($B$150=\"Without Burner\",\"\",\"107-02-8\")","v":"107-02-8"},{"$f":"IF($B$150=\"Without Burner\",\"\",0.0027)","v":2.7000000000000001E-3},null,null,null,null,{"$f":"A220","v":"Acrolein"},{"$f":"IF($B$150=\"Without Burner\",\"\",\"107-02-8\")","v":"107-02-8"},{"$f":"C220","v":2.7000000000000001E-3},{"$f":"IF(A220=\"\",\"\",$B$151/1050*C220)","v":0},null,0,{"$f":"IF(H220=\"\",\"\",IF($B$153=\"Yes\",J220*$B$154*$B$4*$B$5,K220*24*7*52))","v":0},{"$f":"IF(H220=\"\",\"\",IF($B$153=\"Yes\",J220*$B$154*$B$4*$B$5,M220*24*7*52))","v":0},0,0]
[{"$f":"IF(B221=\"\",\"\",_xlfn.IFNA(IF(_xlfn.XLOOKUP(_xlfn.NUMBERVALUE(IFERROR(SUBSTITUTE(SUBSTITUTE(SUBSTITUTE(B221, \"-\", \"\", 1), \"-\", \"\", 1), \"-\", \"\", 1), B221)),TACList!$B:$B,TACList!$A:$A)=0,\"Enter CAS Number w/ Dashes Here ->\",_xlfn.XLOOKUP(_xlfn.NUMBERVALUE(IFERROR(SUBSTITUTE(SUBSTITUTE(SUBSTITUTE(B221, \"-\", \"\", 1), \"-\", \"\", 1), \"-\", \"\", 1), B221)),TACList!$B:$B,TACList!$A:$A)),\"Toxic Not Found, Please Remove\"))","v":"Ammonia"},{"$f":"IF($B$150=\"Without Burner\",\"\",\"7664-41-7\")","v":"7664-41-7"},{"$f":"IF($B$150=\"Without Burner\",\"\",18)","v":18},null,null,null,null,"Ammonia",{"$f":"IF($B$150=\"Without Burner\",\"\",\"7664-41-7\")","v":"7664-41-7"},18,0,null,0,0,0,0,0]
[{"$f":"IF(B222=\"\",\"\",_xlfn.IFNA(IF(_xlfn.XLOOKUP(_xlfn.NUMBERVALUE(IFERROR(SUBSTITUTE(SUBSTITUTE(SUBSTITUTE(B222, \"-\", \"\", 1), \"-\", \"\", 1), \"-\", \"\", 1), B222)),TACList!$B:$B,TACList!$A:$A)=0,\"Enter CAS Number w/ Dashes Here ->\",_xlfn.XLOOKUP(_xlfn.NUMBERVALUE(IFERROR(SUBSTITUTE(SUBSTITUTE(SUBSTITUTE(B222, \"-\", \"\", 1), \"-\", \"\", 1), \"-\", \"\", 1), B222)),TACList!$B:$B,TACList!$A:$A)),\"Toxic Not Found, Please Remove\"))","v":"Benzene"},{"$f":"IF($B$150=\"Without Burner\",\"\",\"71-43-2\")","v":"71-43-2"},{"$f":"IF($B$150=\"Without Burner\",\"\",0.008)","v":8.0000000000000002E-3},null,null,null,null,"Benzene",{"$f":"IF($B$150=\"Without Burner\",\"\",\"71-43-2\")","v":"71-43-2"},8.0000000000000002E-3,0,null,0,0,0,0,0]
[{"$f":"IF(B223=\"\",\"\",_xlfn.IFNA(IF(_xlfn.XLOOKUP(_xlfn.NUMBERVALUE(IFERROR(SUBSTITUTE(SUBSTITUTE(SUBSTITUTE(B223, \"-\", \"\", 1), \"-\", \"\", 1), \"-\", \"\", 1), B223)),TACList!$B:$B,TACList!$A:$A)=0,\"Enter CAS Number w/ Dashes Here ->\",_xlfn.XLOOKUP(_xlfn.NUMBERVALUE(IFERROR(SUBSTITUTE(SUBSTITUTE(SUBSTITUTE(B223, \"-\", \"\", 1), \"-\", \"\", 1), \"-\", \"\", 1), B223)),TACList!$B:$B,TACList!$A:$A)),\"Toxic Not Found, Please Remove\"))","v":"Ethyl benzene"},{"$f":"IF($B$150=\"Without Burner\",\"\",\"100-41-4\")","v":"100-41-4"},{"$f":"IF($B$150=\"Without Burner\",\"\",0.0095)","v":9.4999999999999998E-3},null,null,null,null,"Ethyl benzene",{"$f":"IF($B$150=\"Without Burner\",\"\",\"100-41-4\")","v":"100-41-4"},9.4999999999999998E-3,0,null,0,0,0,0,0]
[{"$f":"IF(B224=\"\",\"\",_xlfn.IFNA(IF(_xlfn.XLOOKUP(_xlfn.NUMBERVALUE(IFERROR(SUBSTITUTE(SUBSTITUTE(SUBSTITUTE(B224, \"-\", \"\", 1), \"-\", \"\", 1), \"-\", \"\", 1), B224)),TACList!$B:$B,TACList!$A:$A)=0,\"Enter CAS Number w/ Dashes Here ->\",_xlfn.XLOOKUP(_xlfn.NUMBERVALUE(IFERROR(SUBSTITUTE(SUBSTITUTE(SUBSTITUTE(B224, \"-\", \"\", 1), \"-\", \"\", 1), \"-\", \"\", 1), B224)),TACList!$B:$B,TACList!$A:$A)),\"Toxic Not Found, Please Remove\"))","v":"Formaldehyde"},{"$f":"IF($B$150=\"Without Burner\",\"\",\"50-00-0\")","v":"50-00-0"},{"$f":"IF($B$150=\"Without Burner\",\"\",0.017)","v":1.7000000000000001E-2},null,null,null,null,"Formaldehyde",{"$f":"IF($B$150=\"Without Burner\",\"\",\"50-00-0\")","v":"50-00-0"},1.7000000000000001E-2,0,null,0,0,0,0,0]
[{"$f":"IF(B225=\"\",\"\",_xlfn.IFNA(IF(_xlfn.XLOOKUP(_xlfn.NUMBERVALUE(IFERROR(SUBSTITUTE(SUBSTITUTE(SUBSTITUTE(B225, \"-\", \"\", 1), \"-\", \"\", 1), \"-\", \"\", 1), B225)),TACList!$B:$B,TACList!$A:$A)=0,\"Enter CAS Number w/ Dashes Here ->\",_xlfn.XLOOKUP(_xlfn.NUMBERVALUE(IFERROR(SUBSTITUTE(SUBSTITUTE(SUBSTITUTE(B225, \"-\", \"\", 1), \"-\", \"\", 1), \"-\", \"\", 1), B225)),TACList!$B:$B,TACList!$A:$A)),\"Toxic Not Found, Please Remove\"))","v":"Hexane"},{"$f":"IF($B$150=\"Without Burner\",\"\",\"110-54-3\")","v":"110-54-3"},{"$f":"IF($B$150=\"Without Burner\",\"\",0.0063)","v":6.3E-3},null,null,null,null,"Hexane",{"$f":"IF($B$150=\"Without Burner\",\"\",\"110-54-3\")","v":"110-54-3"},6.3E-3,0,null,0,0,0,{"$f":"IF(K225=\"\",\"\",K225*1000000)","v":0},0]
[{"$f":"IF(B226=\"\",\"\",_xlfn.IFNA(IF(_xlfn.XLOOKUP(_xlfn.NUMBERVALUE(IFERROR(SUBSTITUTE(SUBSTITUTE(SUBSTITUTE(B226, \"-\", \"\", 1), \"-\", \"\", 1), \"-\", \"\", 1), B226)),TACList!$B:$B,TACList!$A:$A)=0,\"Enter CAS Number w/ Dashes Here ->\",_xlfn.XLOOKUP(_xlfn.NUMBERVALUE(IFERROR(SUBSTITUTE(SUBSTITUTE(SUBSTITUTE(B226, \"-\", \"\", 1), \"-\", \"\", 1), \"-\", \"\", 1), B226)),TACList!$B:$B,TACList!$A:$A)),\"Toxic Not Found, Please Remove\"))","v":"PAHs, total, w/o individ. components reported [Treated as B(a)P for HRA]"},{"$f":"IF($B$150=\"Without Burner\",\"\",1151)","v":1151},{"$f":"IF($B$150=\"Without Burner\",\"\",0.0001)","v":1E-4},null,null,null,null,"PAHs, total, w/o individ. components reported [Treated as B(a)P for HRA]",{"$f":"IF($B$150=\"Without Burner\",\"\",1151)","v":1151},1E-4,0,null,0,0,0,0,{"$f":"IF(M226=\"\",\"\",M226*1000000)","v":0}]
[{"$f":"IF(B227=\"\",\"\",_xlfn.IFNA(IF(_xlfn.XLOOKUP(_xlfn.NUMBERVALUE(IFERROR(SUBSTITUTE(SUBSTITUTE(SUBSTITUTE(B227, \"-\", \"\", 1), \"-\", \"\", 1), \"-\", \"\", 1), B227)),TACList!$B:$B,TACList!$A:$A)=0,\"Enter CAS Number w/ Dashes Here ->\",_xlfn.XLOOKUP(_xlfn.NUMBERVALUE(IFERROR(SUBSTITUTE(SUBSTITUTE(SUBSTITUTE(B227, \"-\", \"\", 1), \"-\", \"\", 1), \"-\", \"\", 1), B227)),TACList!$B:$B,TACList!$A:$A)),\"Toxic Not Found, Please Remove\"))","v":"Naphthalene"},{"$f":"IF($B$150=\"Without Burner\",\"\",\"91-20-3\")","v":"91-20-3"},{"$f":"IF($B$150=\"Without Burner\",\"\",0.0003)","v":2.9999999999999997E-4},null,null,null,null,"Naphthalene",{"$f":"IF($B$150=\"Without Burner\",\"\",\"91-20-3\")","v":"91-20-3"},2.9999999999999997E-4,0,null,0,0,0,0,0]
[{"$f":"IF(B228=\"\",\"\",_xlfn.IFNA(IF(_xlfn.XLOOKUP(_xlfn.NUMBERVALUE(IFERROR(SUBSTITUTE(SUBSTITUTE(SUBSTITUTE(B228, \"-\", \"\", 1), \"-\", \"\", 1), \"-\", \"\", 1), B228)),TACList!$B:$B,TACList!$A:$A)=0,\"Enter CAS Number w/ Dashes Here ->\",_xlfn.XLOOKUP(_xlfn.NUMBERVALUE(IFERROR(SUBSTITUTE(SUBSTITUTE(SUBSTITUTE(B228, \"-\", \"\", 1), \"-\", \"\", 1), \"-\", \"\", 1), B228)),TACList!$B:$B,TACList!$A:$A)),\"Toxic Not Found, Please Remove\"))","v":"Toluene"},{"$f":"IF($B$150=\"Without Burner\",\"\",\"108-88-3\")","v":"108-88-3"},{"$f":"IF($B$150=\"Without Burner\",\"\",0.0366)","v":3.6600000000000001E-2},null,null,null,null,"Toluene",{"$f":"IF($B$150=\"Without Burner\",\"\",\"108-88-3\")","v":"108-88-3"},3.6600000000000001E-2,0,null,0,0,0,0,0]
[{"$f":"IF(B229=\"\",\"\",_xlfn.IFNA(IF(_xlfn.XLOOKUP(_xlfn.NUMBERVALUE(IFERROR(SUBSTITUTE(SUBSTITUTE(SUBSTITUTE(B229, \"-\", \"\", 1), \"-\", \"\", 1), \"-\", \"\", 1), B229)),TACList!$B:$B,TACList!$A:$A)=0,\"Enter CAS Number w/ Dashes Here ->\",_xlfn.XLOOKUP(_xlfn.NUMBERVALUE(IFERROR(SUBSTITUTE(SUBSTITUTE(SUBSTITUTE(B229, \"-\", \"\", 1), \"-\", \"\", 1), \"-\", \"\", 1), B229)),TACList!$B:$B,TACList!$A:$A)),\"Toxic Not Found, Please Remove\"))","v":"Xylenes (mixed)"},{"$f":"IF($B$150=\"Without Burner\",\"\",\"1330-20-7\")","v":"1330-20-7"},{"$f":"IF($B$150=\"Without Burner\",\"\",0.0272)","v":2.7199999999999998E-2},null,null,null,null,"Xylenes (mixed)",{"$f":"IF($B$150=\"Without Burner\",\"\",\"1330-20-7\")","v":"1330-20-7"},2.7199999999999998E-2,0,null,0,0,0,0,0]
[]
["Warning"]
[{"$f":"IF(OR($B$9=\"Gasoline Aboveground Storage Tanks\",$B$9=\"Ethanol 85 Underground Storage Tanks\",$B$9=\"Gasoline Underground Storage Tanks\",$B$9=\"Mobile Fuelers\"),\"The equipment selected is not supported by this Emissions Calculator spreadsheet. The HRA Tool includes the TAC emissions from this source type.\",\"This equipment does not have standard emission factors. Please either manually input TAC emission rates into HRA Tool or select \"&CHAR(34)&\"Other\"&CHAR(34)&\" source type to generate TAC emissions to upload into the HRA Tool.\")","v":"This equipment does not have standard emission factors. Please either manually input TAC emission rates into HRA Tool or select \"Other\" source type to generate TAC emissions to upload into the HRA Tool."}]
[]
["Other Equipment",null,null,null,null,null,null,"INSTRUCTIONS"]
[null,null,null,null,null,null,null,"1. Type in CAS Numbers (with or without hyphens) into the yellow cells in Column B."]
[null,null,null,null,null,null,null,"2. Enter Emissions in lbs/hr in Column C and Control Factor (value from 0-1) in Column D."]
["*Certain componds may not be explicitly listed in the tool, but are still subject to Rule 1401 and emissions of these compounds need to be accounted for. (Arsenic, Beryllium, Cadmium, Chromium (Hexavalent), Copper, Cresols/Cresylic Acid, Fluorides, Lead, Mercury, Nickel, Phosphorous, Selenium, Zinc)"]
["Compound*","CAS #","Emission Rate","Control Factor",null,null,null,"Compound*","CAS #","Emission Rate",null,"Control Factor",null,null,null,"Toxic NSR Entry"]
[null,null,null,null,null,null,null,null,null,null,"R1",null,"R2","R1","R2","R1 (Uncontrolled)","R2 (Controlled)"]
[null,null,"(lbs/hr)","(0-1)",null,null,null,null,null,"(lbs/hr)","(lbs/hr)","(0-1)","(lbs/hr)","(lbs/yr)","(lbs/yr)","(E-06 lbs/hr)","(E-06 lbs/hr)"]
[{"$f":"IF(B241=\"\",\"\",_xlfn.IFNA(IF(_xlfn.XLOOKUP(_xlfn.NUMBERVALUE(IFERROR(SUBSTITUTE(SUBSTITUTE(SUBSTITUTE(B241, \"-\", \"\", 1), \"-\", \"\", 1), \"-\", \"\", 1), B241)),TACList!$B:$B,TACList!$A:$A)=0,\"Enter CAS Number w/ Dashes Here ->\",_xlfn.XLOOKUP(_xlfn.NUMBERVALUE(IFERROR(SUBSTITUTE(SUBSTITUTE(SUBSTITUTE(B241, \"-\", \"\", 1), \"-\", \"\", 1), \"-\", \"\", 1), B241)),TACList!$B:$B,TACList!$A:$A)),\"Compound Not Found, Please Remove\"))","v":""},null,null,null,null,null,null,{"$f":"IF(OR(B241=\"\",A241=\"Toxic Not Found, Please Remove\"),\"\",A241)","v":""},{"$f":"IF(H241=\"\",\"\",B241)","v":""},{"$f":"IF(H241=\"\",\"\",C241)","v":""},{"$f":"IF(H241=\"\",\"\",C241)","v":""},{"$f":"IF(H241=\"\",\"\",D241)","v":""},{"$f":"IF(K241=\"\",\"\",K241*(1-L241))","v":""},{"$f":"IF(H241=\"\",\"\",K241*$B$3*$B$4*$B$5)","v":""},{"$f":"IF(H241=\"\",\"\",M241*$B$3*$B$4*$B$5)","v":""},{"$f":"IF(H241<>\"\",K241*1000000,\"\")","v":""},{"$f":"IF(H241<>\"\",M241*1000000,\"\")","v":""}]
[{"$f":"IF(B242=\"\",\"\",_xlfn.IFNA(IF(_xlfn.XLOOKUP(_xlfn.NUMBERVALUE(IFERROR(SUBSTITUTE(SUBSTITUTE(SUBSTITUTE(B242, \"-\", \"\", 1), \"-\", \"\", 1), \"-\", \"\", 1), B242)),TACList!$B:$B,TACList!$A:$A)=0,\"Enter CAS Number w/ Dashes Here ->\",_xlfn.XLOOKUP(_xlfn.NUMBERVALUE(IFERROR(SUBSTITUTE(SUBSTITUTE(SUBSTITUTE(B242, \"-\", \"\", 1), \"-\", \"\", 1), \"-\", \"\", 1), B242)),TACList!$B:$B,TACList!$A:$A)),\"Compound Not Found, Please Remove\"))","v":""},null,null,null,null,null,null,{"$f":"IF(OR(B242=\"\",A242=\"Toxic Not Found, Please Remove\"),\"\",A242)","v":""},{"$f":"IF(H242=\"\",\"\",B242)","v":""},{"$f":"IF(H242=\"\",\"\",C242)","v":""},{"$f":"IF(H242=\"\",\"\",C242)","v":""},{"$f":"IF(H242=\"\",\"\",D242)","v":""},{"$f":"IF(K242=\"\",\"\",K242*(1-L242))","v":""},{"$f":"IF(H242=\"\",\"\",K242*$B$3*$B$4*$B$5)","v":""},{"$f":"IF(H242=\"\",\"\",M242*$B$3*$B$4*$B$5)","v":""},{"$f":"IF(H242<>\"\",K242*1000000,\"\")","v":""},{"$f":"IF(H242<>\"\",M242*1000000,\"\")","v":""}]
[{"$f":"IF(B243=\"\",\"\",_xlfn.IFNA(IF(_xlfn.XLOOKUP(_xlfn.NUMBERVALUE(IFERROR(SUBSTITUTE(SUBSTITUTE(SUBSTITUTE(B243, \"-\", \"\", 1), \"-\", \"\", 1), \"-\", \"\", 1), B243)),TACList!$B:$B,TACList!$A:$A)=0,\"Enter CAS Number w/ Dashes Here ->\",_xlfn.XLOOKUP(_xlfn.NUMBERVALUE(IFERROR(SUBSTITUTE(SUBSTITUTE(SUBSTITUTE(B243, \"-\", \"\", 1), \"-\", \"\", 1), \"-\", \"\", 1), B243)),TACList!$B:$B,TACList!$A:$A)),\"Compound Not Found, Please Remove\"))","v":""},null,null,null,null,null,null,"","","","","","","","","",""]
[{"$f":"IF(B244=\"\",\"\",_xlfn.IFNA(IF(_xlfn.XLOOKUP(_xlfn.NUMBERVALUE(IFERROR(SUBSTITUTE(SUBSTITUTE(SUBSTITUTE(B244, \"-\", \"\", 1), \"-\", \"\", 1), \"-\", \"\", 1), B244)),TACList!$B:$B,TACList!$A:$A)=0,\"Enter CAS Number w/ Dashes Here ->\",_xlfn.XLOOKUP(_xlfn.NUMBERVALUE(IFERROR(SUBSTITUTE(SUBSTITUTE(SUBSTITUTE(B244, \"-\", \"\", 1), \"-\", \"\", 1), \"-\", \"\", 1), B244)),TACList!$B:$B,TACList!$A:$A)),\"Compound Not Found, Please Remove\"))","v":""},null,null,null,null,null,null,"","","","","","","","","",""]
[{"$f":"IF(B245=\"\",\"\",_xlfn.IFNA(IF(_xlfn.XLOOKUP(_xlfn.NUMBERVALUE(IFERROR(SUBSTITUTE(SUBSTITUTE(SUBSTITUTE(B245, \"-\", \"\", 1), \"-\", \"\", 1), \"-\", \"\", 1), B245)),TACList!$B:$B,TACList!$A:$A)=0,\"Enter CAS Number w/ Dashes Here ->\",_xlfn.XLOOKUP(_xlfn.NUMBERVALUE(IFERROR(SUBSTITUTE(SUBSTITUTE(SUBSTITUTE(B245, \"-\", \"\", 1), \"-\", \"\", 1), \"-\", \"\", 1), B245)),TACList!$B:$B,TACList!$A:$A)),\"Compound Not Found, Please Remove\"))","v":""},null,null,null,null,null,null,"","","","","","","","","",""]
[{"$f":"IF(B246=\"\",\"\",_xlfn.IFNA(IF(_xlfn.XLOOKUP(_xlfn.NUMBERVALUE(IFERROR(SUBSTITUTE(SUBSTITUTE(SUBSTITUTE(B246, \"-\", \"\", 1), \"-\", \"\", 1), \"-\", \"\", 1), B246)),TACList!$B:$B,TACList!$A:$A)=0,\"Enter CAS Number w/ Dashes Here ->\",_xlfn.XLOOKUP(_xlfn.NUMBERVALUE(IFERROR(SUBSTITUTE(SUBSTITUTE(SUBSTITUTE(B246, \"-\", \"\", 1), \"-\", \"\", 1), \"-\", \"\", 1), B246)),TACList!$B:$B,TACList!$A:$A)),\"Compound Not Found, Please Remove\"))","v":""},null,null,null,null,null,null,"","","","","","","","","",""]
[{"$f":"IF(B247=\"\",\"\",_xlfn.IFNA(IF(_xlfn.XLOOKUP(_xlfn.NUMBERVALUE(IFERROR(SUBSTITUTE(SUBSTITUTE(SUBSTITUTE(B247, \"-\", \"\", 1), \"-\", \"\", 1), \"-\", \"\", 1), B247)),TACList!$B:$B,TACList!$A:$A)=0,\"Enter CAS Number w/ Dashes Here ->\",_xlfn.XLOOKUP(_xlfn.NUMBERVALUE(IFERROR(SUBSTITUTE(SUBSTITUTE(SUBSTITUTE(B247, \"-\", \"\", 1), \"-\", \"\", 1), \"-\", \"\", 1), B247)),TACList!$B:$B,TACList!$A:$A)),\"Compound Not Found, Please Remove\"))","v":""},null,null,null,null,null,null,"","","","","","","","","",""]
[{"$f":"IF(B248=\"\",\"\",_xlfn.IFNA(IF(_xlfn.XLOOKUP(_xlfn.NUMBERVALUE(IFERROR(SUBSTITUTE(SUBSTITUTE(SUBSTITUTE(B248, \"-\", \"\", 1), \"-\", \"\", 1), \"-\", \"\", 1), B248)),TACList!$B:$B,TACList!$A:$A)=0,\"Enter CAS Number w/ Dashes Here ->\",_xlfn.XLOOKUP(_xlfn.NUMBERVALUE(IFERROR(SUBSTITUTE(SUBSTITUTE(SUBSTITUTE(B248, \"-\", \"\", 1), \"-\", \"\", 1), \"-\", \"\", 1), B248)),TACList!$B:$B,TACList!$A:$A)),\"Compound Not Found, Please Remove\"))","v":""},null,null,null,null,null,null,"","","","","","","","","",""]
[{"$f":"IF(B249=\"\",\"\",_xlfn.IFNA(IF(_xlfn.XLOOKUP(_xlfn.NUMBERVALUE(IFERROR(SUBSTITUTE(SUBSTITUTE(SUBSTITUTE(B249, \"-\", \"\", 1), \"-\", \"\", 1), \"-\", \"\", 1), B249)),TACList!$B:$B,TACList!$A:$A)=0,\"Enter CAS Number w/ Dashes Here ->\",_xlfn.XLOOKUP(_xlfn.NUMBERVALUE(IFERROR(SUBSTITUTE(SUBSTITUTE(SUBSTITUTE(B249, \"-\", \"\", 1), \"-\", \"\", 1), \"-\", \"\", 1), B249)),TACList!$B:$B,TACList!$A:$A)),\"Compound Not Found, Please Remove\"))","v":""},null,null,null,null,null,null,"","","","","","","","","",""]
[{"$f":"IF(B250=\"\",\"\",_xlfn.IFNA(IF(_xlfn.XLOOKUP(_xlfn.NUMBERVALUE(IFERROR(SUBSTITUTE(SUBSTITUTE(SUBSTITUTE(B250, \"-\", \"\", 1), \"-\", \"\", 1), \"-\", \"\", 1), B250)),TACList!$B:$B,TACList!$A:$A)=0,\"Enter CAS Number w/ Dashes Here ->\",_xlfn.XLOOKUP(_xlfn.NUMBERVALUE(IFERROR(SUBSTITUTE(SUBSTITUTE(SUBSTITUTE(B250, \"-\", \"\", 1), \"-\", \"\", 1), \"-\", \"\", 1), B250)),TACList!$B:$B,TACList!$A:$A)),\"Compound Not Found, Please Remove\"))","v":""},null,null,null,null,null,null,"","","","","","","","","",""]
[{"$f":"IF(B251=\"\",\"\",_xlfn.IFNA(IF(_xlfn.XLOOKUP(_xlfn.NUMBERVALUE(IFERROR(SUBSTITUTE(SUBSTITUTE(SUBSTITUTE(B251, \"-\", \"\", 1), \"-\", \"\", 1), \"-\", \"\", 1), B251)),TACList!$B:$B,TACList!$A:$A)=0,\"Enter CAS Number w/ Dashes Here ->\",_xlfn.XLOOKUP(_xlfn.NUMBERVALUE(IFERROR(SUBSTITUTE(SUBSTITUTE(SUBSTITUTE(B251, \"-\", \"\", 1), \"-\", \"\", 1), \"-\", \"\", 1), B251)),TACList!$B:$B,TACList!$A:$A)),\"Compound Not Found, Please Remove\"))","v":""},null,null,null,null,null,null,"","","","","","","","","",""]
[{"$f":"IF(B252=\"\",\"\",_xlfn.IFNA(IF(_xlfn.XLOOKUP(_xlfn.NUMBERVALUE(IFERROR(SUBSTITUTE(SUBSTITUTE(SUBSTITUTE(B252, \"-\", \"\", 1), \"-\", \"\", 1), \"-\", \"\", 1), B252)),TACList!$B:$B,TACList!$A:$A)=0,\"Enter CAS Number w/ Dashes Here ->\",_xlfn.XLOOKUP(_xlfn.NUMBERVALUE(IFERROR(SUBSTITUTE(SUBSTITUTE(SUBSTITUTE(B252, \"-\", \"\", 1), \"-\", \"\", 1), \"-\", \"\", 1), B252)),TACList!$B:$B,TACList!$A:$A)),\"Compound Not Found, Please Remove\"))","v":""},null,null,null,null,null,null,"","","","","","","","","",""]
[{"$f":"IF(B253=\"\",\"\",_xlfn.IFNA(IF(_xlfn.XLOOKUP(_xlfn.NUMBERVALUE(IFERROR(SUBSTITUTE(SUBSTITUTE(SUBSTITUTE(B253, \"-\", \"\", 1), \"-\", \"\", 1), \"-\", \"\", 1), B253)),TACList!$B:$B,TACList!$A:$A)=0,\"Enter CAS Number w/ Dashes Here ->\",_xlfn.XLOOKUP(_xlfn.NUMBERVALUE(IFERROR(SUBSTITUTE(SUBSTITUTE(SUBSTITUTE(B253, \"-\", \"\", 1), \"-\", \"\", 1), \"-\", \"\", 1), B253)),TACList!$B:$B,TACList!$A:$A)),\"Compound Not Found, Please Remove\"))","v":""},null,null,null,null,null,null,"","","","","","","","","",""]
[{"$f":"IF(B254=\"\",\"\",_xlfn.IFNA(IF(_xlfn.XLOOKUP(_xlfn.NUMBERVALUE(IFERROR(SUBSTITUTE(SUBSTITUTE(SUBSTITUTE(B254, \"-\", \"\", 1), \"-\", \"\", 1), \"-\", \"\", 1), B254)),TACList!$B:$B,TACList!$A:$A)=0,\"Enter CAS Number w/ Dashes Here ->\",_xlfn.XLOOKUP(_xlfn.NUMBERVALUE(IFERROR(SUBSTITUTE(SUBSTITUTE(SUBSTITUTE(B254, \"-\", \"\", 1), \"-\", \"\", 1), \"-\", \"\", 1), B254)),TACList!$B:$B,TACList!$A:$A)),\"Compound Not Found, Please Remove\"))","v":""},null,null,null,null,null,null,"","","","","","","","","",""]
[{"$f":"IF(B255=\"\",\"\",_xlfn.IFNA(IF(_xlfn.XLOOKUP(_xlfn.NUMBERVALUE(IFERROR(SUBSTITUTE(SUBSTITUTE(SUBSTITUTE(B255, \"-\", \"\", 1), \"-\", \"\", 1), \"-\", \"\", 1), B255)),TACList!$B:$B,TACList!$A:$A)=0,\"Enter CAS Number w/ Dashes Here ->\",_xlfn.XLOOKUP(_xlfn.NUMBERVALUE(IFERROR(SUBSTITUTE(SUBSTITUTE(SUBSTITUTE(B255, \"-\", \"\", 1), \"-\", \"\", 1), \"-\", \"\", 1), B255)),TACList!$B:$B,TACList!$A:$A)),\"Compound Not Found, Please Remove\"))","v":""},null,null,null,null,null,null,"","","","","","","","","",""]
[{"$f":"IF(B256=\"\",\"\",_xlfn.IFNA(IF(_xlfn.XLOOKUP(_xlfn.NUMBERVALUE(IFERROR(SUBSTITUTE(SUBSTITUTE(SUBSTITUTE(B256, \"-\", \"\", 1), \"-\", \"\", 1), \"-\", \"\", 1), B256)),TACList!$B:$B,TACList!$A:$A)=0,\"Enter CAS Number w/ Dashes Here ->\",_xlfn.XLOOKUP(_xlfn.NUMBERVALUE(IFERROR(SUBSTITUTE(SUBSTITUTE(SUBSTITUTE(B256, \"-\", \"\", 1), \"-\", \"\", 1), \"-\", \"\", 1), B256)),TACList!$B:$B,TACList!$A:$A)),\"Compound Not Found, Please Remove\"))","v":""},null,null,null,null,null,null,"","","","","","","","","",""]
[{"$f":"IF(B257=\"\",\"\",_xlfn.IFNA(IF(_xlfn.XLOOKUP(_xlfn.NUMBERVALUE(IFERROR(SUBSTITUTE(SUBSTITUTE(SUBSTITUTE(B257, \"-\", \"\", 1), \"-\", \"\", 1), \"-\", \"\", 1), B257)),TACList!$B:$B,TACList!$A:$A)=0,\"Enter CAS Number w/ Dashes Here ->\",_xlfn.XLOOKUP(_xlfn.NUMBERVALUE(IFERROR(SUBSTITUTE(SUBSTITUTE(SUBSTITUTE(B257, \"-\", \"\", 1), \"-\", \"\", 1), \"-\", \"\", 1), B257)),TACList!$B:$B,TACList!$A:$A)),\"Compound Not Found, Please Remove\"))","v":""},null,null,null,null,null,null,"","","","","","","","","",""]
[{"$f":"IF(B258=\"\",\"\",_xlfn.IFNA(IF(_xlfn.XLOOKUP(_xlfn.NUMBERVALUE(IFERROR(SUBSTITUTE(SUBSTITUTE(SUBSTITUTE(B258, \"-\", \"\", 1), \"-\", \"\", 1), \"-\", \"\", 1), B258)),TACList!$B:$B,TACList!$A:$A)=0,\"Enter CAS Number w/ Dashes Here ->\",_xlfn.XLOOKUP(_xlfn.NUMBERVALUE(IFERROR(SUBSTITUTE(SUBSTITUTE(SUBSTITUTE(B258, \"-\", \"\", 1), \"-\", \"\", 1), \"-\", \"\", 1), B258)),TACList!$B:$B,TACList!$A:$A)),\"Compound Not Found, Please Remove\"))","v":""},null,null,null,null,null,null,"","","","","","","","","",""]
[{"$f":"IF(B259=\"\",\"\",_xlfn.IFNA(IF(_xlfn.XLOOKUP(_xlfn.NUMBERVALUE(IFERROR(SUBSTITUTE(SUBSTITUTE(SUBSTITUTE(B259, \"-\", \"\", 1), \"-\", \"\", 1), \"-\", \"\", 1), B259)),TACList!$B:$B,TACList!$A:$A)=0,\"Enter CAS Number w/ Dashes Here ->\",_xlfn.XLOOKUP(_xlfn.NUMBERVALUE(IFERROR(SUBSTITUTE(SUBSTITUTE(SUBSTITUTE(B259, \"-\", \"\", 1), \"-\", \"\", 1), \"-\", \"\", 1), B259)),TACList!$B:$B,TACList!$A:$A)),\"Compound Not Found, Please Remove\"))","v":""},null,null,null,null,null,null,"","","","","","","","","",""]
[{"$f":"IF(B260=\"\",\"\",_xlfn.IFNA(IF(_xlfn.XLOOKUP(_xlfn.NUMBERVALUE(IFERROR(SUBSTITUTE(SUBSTITUTE(SUBSTITUTE(B260, \"-\", \"\", 1), \"-\", \"\", 1), \"-\", \"\", 1), B260)),TACList!$B:$B,TACList!$A:$A)=0,\"Enter CAS Number w/ Dashes Here ->\",_xlfn.XLOOKUP(_xlfn.NUMBERVALUE(IFERROR(SUBSTITUTE(SUBSTITUTE(SUBSTITUTE(B260, \"-\", \"\", 1), \"-\", \"\", 1), \"-\", \"\", 1), B260)),TACList!$B:$B,TACList!$A:$A)),\"Compound Not Found, Please Remove\"))","v":""},null,null,null,null,null,null,"","","","","","","","","",""]
[{"$f":"IF(B261=\"\",\"\",_xlfn.IFNA(IF(_xlfn.XLOOKUP(_xlfn.NUMBERVALUE(IFERROR(SUBSTITUTE(SUBSTITUTE(SUBSTITUTE(B261, \"-\", \"\", 1), \"-\", \"\", 1), \"-\", \"\", 1), B261)),TACList!$B:$B,TACList!$A:$A)=0,\"Enter CAS Number w/ Dashes Here ->\",_xlfn.XLOOKUP(_xlfn.NUMBERVALUE(IFERROR(SUBSTITUTE(SUBSTITUTE(SUBSTITUTE(B261, \"-\", \"\", 1), \"-\", \"\", 1), \"-\", \"\", 1), B261)),TACList!$B:$B,TACList!$A:$A)),\"Compound Not Found, Please Remove\"))","v":""},null,null,null,null,null,null,"","","","","","","","","",""]
[{"$f":"IF(B262=\"\",\"\",_xlfn.IFNA(IF(_xlfn.XLOOKUP(_xlfn.NUMBERVALUE(IFERROR(SUBSTITUTE(SUBSTITUTE(SUBSTITUTE(B262, \"-\", \"\", 1), \"-\", \"\", 1), \"-\", \"\", 1), B262)),TACList!$B:$B,TACList!$A:$A)=0,\"Enter CAS Number w/ Dashes Here ->\",_xlfn.XLOOKUP(_xlfn.NUMBERVALUE(IFERROR(SUBSTITUTE(SUBSTITUTE(SUBSTITUTE(B262, \"-\", \"\", 1), \"-\", \"\", 1), \"-\", \"\", 1), B262)),TACList!$B:$B,TACList!$A:$A)),\"Compound Not Found, Please Remove\"))","v":""},null,null,null,null,null,null,"","","","","","","","","",""]
[{"$f":"IF(B263=\"\",\"\",_xlfn.IFNA(IF(_xlfn.XLOOKUP(_xlfn.NUMBERVALUE(IFERROR(SUBSTITUTE(SUBSTITUTE(SUBSTITUTE(B263, \"-\", \"\", 1), \"-\", \"\", 1), \"-\", \"\", 1), B263)),TACList!$B:$B,TACList!$A:$A)=0,\"Enter CAS Number w/ Dashes Here ->\",_xlfn.XLOOKUP(_xlfn.NUMBERVALUE(IFERROR(SUBSTITUTE(SUBSTITUTE(SUBSTITUTE(B263, \"-\", \"\", 1), \"-\", \"\", 1), \"-\", \"\", 1), B263)),TACList!$B:$B,TACList!$A:$A)),\"Compound Not Found, Please Remove\"))","v":""},null,null,null,null,null,null,"","","","","","","","","",""]
[{"$f":"IF(B264=\"\",\"\",_xlfn.IFNA(IF(_xlfn.XLOOKUP(_xlfn.NUMBERVALUE(IFERROR(SUBSTITUTE(SUBSTITUTE(SUBSTITUTE(B264, \"-\", \"\", 1), \"-\", \"\", 1), \"-\", \"\", 1), B264)),TACList!$B:$B,TACList!$A:$A)=0,\"Enter CAS Number w/ Dashes Here ->\",_xlfn.XLOOKUP(_xlfn.NUMBERVALUE(IFERROR(SUBSTITUTE(SUBSTITUTE(SUBSTITUTE(B264, \"-\", \"\", 1), \"-\", \"\", 1), \"-\", \"\", 1), B264)),TACList!$B:$B,TACList!$A:$A)),\"Compound Not Found, Please Remove\"))","v":""},null,null,null,null,null,null,"","","","","","","","","",""]
[{"$f":"IF(B265=\"\",\"\",_xlfn.IFNA(IF(_xlfn.XLOOKUP(_xlfn.NUMBERVALUE(IFERROR(SUBSTITUTE(SUBSTITUTE(SUBSTITUTE(B265, \"-\", \"\", 1), \"-\", \"\", 1), \"-\", \"\", 1), B265)),TACList!$B:$B,TACList!$A:$A)=0,\"Enter CAS Number w/ Dashes Here ->\",_xlfn.XLOOKUP(_xlfn.NUMBERVALUE(IFERROR(SUBSTITUTE(SUBSTITUTE(SUBSTITUTE(B265, \"-\", \"\", 1), \"-\", \"\", 1), \"-\", \"\", 1), B265)),TACList!$B:$B,TACList!$A:$A)),\"Compound Not Found, Please Remove\"))","v":""},null,null,null,null,null,null,"","","","","","","","","",""]
[{"$f":"IF(B266=\"\",\"\",_xlfn.IFNA(IF(_xlfn.XLOOKUP(_xlfn.NUMBERVALUE(IFERROR(SUBSTITUTE(SUBSTITUTE(SUBSTITUTE(B266, \"-\", \"\", 1), \"-\", \"\", 1), \"-\", \"\", 1), B266)),TACList!$B:$B,TACList!$A:$A)=0,\"Enter CAS Number w/ Dashes Here ->\",_xlfn.XLOOKUP(_xlfn.NUMBERVALUE(IFERROR(SUBSTITUTE(SUBSTITUTE(SUBSTITUTE(B266, \"-\", \"\", 1), \"-\", \"\", 1), \"-\", \"\", 1), B266)),TACList!$B:$B,TACList!$A:$A)),\"Compound Not Found, Please Remove\"))","v":""},null,null,null,null,null,null,"","","","","","","","","",""]
[{"$f":"IF(B267=\"\",\"\",_xlfn.IFNA(IF(_xlfn.XLOOKUP(_xlfn.NUMBERVALUE(IFERROR(SUBSTITUTE(SUBSTITUTE(SUBSTITUTE(B267, \"-\", \"\", 1), \"-\", \"\", 1), \"-\", \"\", 1), B267)),TACList!$B:$B,TACList!$A:$A)=0,\"Enter CAS Number w/ Dashes Here ->\",_xlfn.XLOOKUP(_xlfn.NUMBERVALUE(IFERROR(SUBSTITUTE(SUBSTITUTE(SUBSTITUTE(B267, \"-\", \"\", 1), \"-\", \"\", 1), \"-\", \"\", 1), B267)),TACList!$B:$B,TACList!$A:$A)),\"Compound Not Found, Please Remove\"))","v":""},null,null,null,null,null,null,"","","","","","","","","",""]
[{"$f":"IF(B268=\"\",\"\",_xlfn.IFNA(IF(_xlfn.XLOOKUP(_xlfn.NUMBERVALUE(IFERROR(SUBSTITUTE(SUBSTITUTE(SUBSTITUTE(B268, \"-\", \"\", 1), \"-\", \"\", 1), \"-\", \"\", 1), B268)),TACList!$B:$B,TACList!$A:$A)=0,\"Enter CAS Number w/ Dashes Here ->\",_xlfn.XLOOKUP(_xlfn.NUMBERVALUE(IFERROR(SUBSTITUTE(SUBSTITUTE(SUBSTITUTE(B268, \"-\", \"\", 1), \"-\", \"\", 1), \"-\", \"\", 1), B268)),TACList!$B:$B,TACList!$A:$A)),\"Compound Not Found, Please Remove\"))","v":""},null,null,null,null,null,null,"","","","","","","","","",""]
[{"$f":"IF(B269=\"\",\"\",_xlfn.IFNA(IF(_xlfn.XLOOKUP(_xlfn.NUMBERVALUE(IFERROR(SUBSTITUTE(SUBSTITUTE(SUBSTITUTE(B269, \"-\", \"\", 1), \"-\", \"\", 1), \"-\", \"\", 1), B269)),TACList!$B:$B,TACList!$A:$A)=0,\"Enter CAS Number w/ Dashes Here ->\",_xlfn.XLOOKUP(_xlfn.NUMBERVALUE(IFERROR(SUBSTITUTE(SUBSTITUTE(SUBSTITUTE(B269, \"-\", \"\", 1), \"-\", \"\", 1), \"-\", \"\", 1), B269)),TACList!$B:$B,TACList!$A:$A)),\"Compound Not Found, Please Remove\"))","v":""},null,null,null,null,null,null,"","","","","","","","","",""]
[{"$f":"IF(B270=\"\",\"\",_xlfn.IFNA(IF(_xlfn.XLOOKUP(_xlfn.NUMBERVALUE(IFERROR(SUBSTITUTE(SUBSTITUTE(SUBSTITUTE(B270, \"-\", \"\", 1), \"-\", \"\", 1), \"-\", \"\", 1), B270)),TACList!$B:$B,TACList!$A:$A)=0,\"Enter CAS Number w/ Dashes Here ->\",_xlfn.XLOOKUP(_xlfn.NUMBERVALUE(IFERROR(SUBSTITUTE(SUBSTITUTE(SUBSTITUTE(B270, \"-\", \"\", 1), \"-\", \"\", 1), \"-\", \"\", 1), B270)),TACList!$B:$B,TACList!$A:$A)),\"Compound Not Found, Please Remove\"))","v":""},null,null,null,null,null,null,"","","","","","","","","",""]
[{"$f":"IF(B271=\"\",\"\",_xlfn.IFNA(IF(_xlfn.XLOOKUP(_xlfn.NUMBERVALUE(IFERROR(SUBSTITUTE(SUBSTITUTE(SUBSTITUTE(B271, \"-\", \"\", 1), \"-\", \"\", 1), \"-\", \"\", 1), B271)),TACList!$B:$B,TACList!$A:$A)=0,\"Enter CAS Number w/ Dashes Here ->\",_xlfn.XLOOKUP(_xlfn.NUMBERVALUE(IFERROR(SUBSTITUTE(SUBSTITUTE(SUBSTITUTE(B271, \"-\", \"\", 1), \"-\", \"\", 1), \"-\", \"\", 1), B271)),TACList!$B:$B,TACList!$A:$A)),\"Compound Not Found, Please Remove\"))","v":""},null,null,null,null,null,null,"","","","","","","","","",""]
[{"$f":"IF(B272=\"\",\"\",_xlfn.IFNA(IF(_xlfn.XLOOKUP(_xlfn.NUMBERVALUE(IFERROR(SUBSTITUTE(SUBSTITUTE(SUBSTITUTE(B272, \"-\", \"\", 1), \"-\", \"\", 1), \"-\", \"\", 1), B272)),TACList!$B:$B,TACList!$A:$A)=0,\"Enter CAS Number w/ Dashes Here ->\",_xlfn.XLOOKUP(_xlfn.NUMBERVALUE(IFERROR(SUBSTITUTE(SUBSTITUTE(SUBSTITUTE(B272, \"-\", \"\", 1), \"-\", \"\", 1), \"-\", \"\", 1), B272)),TACList!$B:$B,TACList!$A:$A)),\"Compound Not Found, Please Remove\"))","v":""},null,null,null,null,null,null,"","","","","","","","","",""]
[{"$f":"IF(B273=\"\",\"\",_xlfn.IFNA(IF(_xlfn.XLOOKUP(_xlfn.NUMBERVALUE(IFERROR(SUBSTITUTE(SUBSTITUTE(SUBSTITUTE(B273, \"-\", \"\", 1), \"-\", \"\", 1), \"-\", \"\", 1), B273)),TACList!$B:$B,TACList!$A:$A)=0,\"Enter CAS Number w/ Dashes Here ->\",_xlfn.XLOOKUP(_xlfn.NUMBERVALUE(IFERROR(SUBSTITUTE(SUBSTITUTE(SUBSTITUTE(B273, \"-\", \"\", 1), \"-\", \"\", 1), \"-\", \"\", 1), B273)),TACList!$B:$B,TACList!$A:$A)),\"Compound Not Found, Please Remove\"))","v":""},null,null,null,null,null,null,"","","","","","","","","",""]
[{"$f":"IF(B274=\"\",\"\",_xlfn.IFNA(IF(_xlfn.XLOOKUP(_xlfn.NUMBERVALUE(IFERROR(SUBSTITUTE(SUBSTITUTE(SUBSTITUTE(B274, \"-\", \"\", 1), \"-\", \"\", 1), \"-\", \"\", 1), B274)),TACList!$B:$B,TACList!$A:$A)=0,\"Enter CAS Number w/ Dashes Here ->\",_xlfn.XLOOKUP(_xlfn.NUMBERVALUE(IFERROR(SUBSTITUTE(SUBSTITUTE(SUBSTITUTE(B274, \"-\", \"\", 1), \"-\", \"\", 1), \"-\", \"\", 1), B274)),TACList!$B:$B,TACList!$A:$A)),\"Compound Not Found, Please Remove\"))","v":""},null,null,null,null,null,null,"","","","","","","","","",""]
[{"$f":"IF(B275=\"\",\"\",_xlfn.IFNA(IF(_xlfn.XLOOKUP(_xlfn.NUMBERVALUE(IFERROR(SUBSTITUTE(SUBSTITUTE(SUBSTITUTE(B275, \"-\", \"\", 1), \"-\", \"\", 1), \"-\", \"\", 1), B275)),TACList!$B:$B,TACList!$A:$A)=0,\"Enter CAS Number w/ Dashes Here ->\",_xlfn.XLOOKUP(_xlfn.NUMBERVALUE(IFERROR(SUBSTITUTE(SUBSTITUTE(SUBSTITUTE(B275, \"-\", \"\", 1), \"-\", \"\", 1), \"-\", \"\", 1), B275)),TACList!$B:$B,TACList!$A:$A)),\"Compound Not Found, Please Remove\"))","v":""},null,null,null,null,null,null,"","","","","","","","","",""]
[{"$f":"IF(B276=\"\",\"\",_xlfn.IFNA(IF(_xlfn.XLOOKUP(_xlfn.NUMBERVALUE(IFERROR(SUBSTITUTE(SUBSTITUTE(SUBSTITUTE(B276, \"-\", \"\", 1), \"-\", \"\", 1), \"-\", \"\", 1), B276)),TACList!$B:$B,TACList!$A:$A)=0,\"Enter CAS Number w/ Dashes Here ->\",_xlfn.XLOOKUP(_xlfn.NUMBERVALUE(IFERROR(SUBSTITUTE(SUBSTITUTE(SUBSTITUTE(B276, \"-\", \"\", 1), \"-\", \"\", 1), \"-\", \"\", 1), B276)),TACList!$B:$B,TACList!$A:$A)),\"Compound Not Found, Please Remove\"))","v":""},null,null,null,null,null,null,"","","","","","","","","",""]
[{"$f":"IF(B277=\"\",\"\",_xlfn.IFNA(IF(_xlfn.XLOOKUP(_xlfn.NUMBERVALUE(IFERROR(SUBSTITUTE(SUBSTITUTE(SUBSTITUTE(B277, \"-\", \"\", 1), \"-\", \"\", 1), \"-\", \"\", 1), B277)),TACList!$B:$B,TACList!$A:$A)=0,\"Enter CAS Number w/ Dashes Here ->\",_xlfn.XLOOKUP(_xlfn.NUMBERVALUE(IFERROR(SUBSTITUTE(SUBSTITUTE(SUBSTITUTE(B277, \"-\", \"\", 1), \"-\", \"\", 1), \"-\", \"\", 1), B277)),TACList!$B:$B,TACList!$A:$A)),\"Compound Not Found, Please Remove\"))","v":""},null,null,null,null,null,null,"","","","","","","","","",""]
[{"$f":"IF(B278=\"\",\"\",_xlfn.IFNA(IF(_xlfn.XLOOKUP(_xlfn.NUMBERVALUE(IFERROR(SUBSTITUTE(SUBSTITUTE(SUBSTITUTE(B278, \"-\", \"\", 1), \"-\", \"\", 1), \"-\", \"\", 1), B278)),TACList!$B:$B,TACList!$A:$A)=0,\"Enter CAS Number w/ Dashes Here ->\",_xlfn.XLOOKUP(_xlfn.NUMBERVALUE(IFERROR(SUBSTITUTE(SUBSTITUTE(SUBSTITUTE(B278, \"-\", \"\", 1), \"-\", \"\", 1), \"-\", \"\", 1), B278)),TACList!$B:$B,TACList!$A:$A)),\"Compound Not Found, Please Remove\"))","v":""},null,null,null,null,null,null,"","","","","","","","","",""]
[{"$f":"IF(B279=\"\",\"\",_xlfn.IFNA(IF(_xlfn.XLOOKUP(_xlfn.NUMBERVALUE(IFERROR(SUBSTITUTE(SUBSTITUTE(SUBSTITUTE(B279, \"-\", \"\", 1), \"-\", \"\", 1), \"-\", \"\", 1), B279)),TACList!$B:$B,TACList!$A:$A)=0,\"Enter CAS Number w/ Dashes Here ->\",_xlfn.XLOOKUP(_xlfn.NUMBERVALUE(IFERROR(SUBSTITUTE(SUBSTITUTE(SUBSTITUTE(B279, \"-\", \"\", 1), \"-\", \"\", 1), \"-\", \"\", 1), B279)),TACList!$B:$B,TACList!$A:$A)),\"Compound Not Found, Please Remove\"))","v":""},null,null,null,null,null,null,"","","","","","","","","",""]
[{"$f":"IF(B280=\"\",\"\",_xlfn.IFNA(IF(_xlfn.XLOOKUP(_xlfn.NUMBERVALUE(IFERROR(SUBSTITUTE(SUBSTITUTE(SUBSTITUTE(B280, \"-\", \"\", 1), \"-\", \"\", 1), \"-\", \"\", 1), B280)),TACList!$B:$B,TACList!$A:$A)=0,\"Enter CAS Number w/ Dashes Here ->\",_xlfn.XLOOKUP(_xlfn.NUMBERVALUE(IFERROR(SUBSTITUTE(SUBSTITUTE(SUBSTITUTE(B280, \"-\", \"\", 1), \"-\", \"\", 1), \"-\", \"\", 1), B280)),TACList!$B:$B,TACList!$A:$A)),\"Compound Not Found, Please Remove\"))","v":""},null,null,null,null,null,null,{"$f":"IF(OR(B280=\"\",A280=\"Toxic Not Found, Please Remove\"),\"\",A280)","v":""},{"$f":"IF(H280=\"\",\"\",B280)","v":""},{"$f":"IF(H280=\"\",\"\",C280)","v":""},{"$f":"IF(H280=\"\",\"\",C280)","v":""},{"$f":"IF(H280=\"\",\"\",D280)","v":""},{"$f":"IF(K280=\"\",\"\",K280*(1-L280))","v":""},{"$f":"IF(H280=\"\",\"\",K280*$B$3*$B$4*$B$5)","v":""},{"$f":"IF(H280=\"\",\"\",M280*$B$3*$B$4*$B$5)","v":""},{"$f":"IF(H280<>\"\",K280*1000000,\"\")","v":""},{"$f":"IF(H280<>\"\",M280*1000000,\"\")","v":""}]
[{"$f":"IF(B281=\"\",\"\",_xlfn.IFNA(IF(_xlfn.XLOOKUP(_xlfn.NUMBERVALUE(IFERROR(SUBSTITUTE(SUBSTITUTE(SUBSTITUTE(B281, \"-\", \"\", 1), \"-\", \"\", 1), \"-\", \"\", 1), B281)),TACList!$B:$B,TACList!$A:$A)=0,\"Enter CAS Number w/ Dashes Here ->\",_xlfn.XLOOKUP(_xlfn.NUMBERVALUE(IFERROR(SUBSTITUTE(SUBSTITUTE(SUBSTITUTE(B281, \"-\", \"\", 1), \"-\", \"\", 1), \"-\", \"\", 1), B281)),TACList!$B:$B,TACList!$A:$A)),\"Compound Not Found, Please Remove\"))","v":""},null,null,null,null,null,null,"","","","","","","","","",""]
[{"$f":"IF(B282=\"\",\"\",_xlfn.IFNA(IF(_xlfn.XLOOKUP(_xlfn.NUMBERVALUE(IFERROR(SUBSTITUTE(SUBSTITUTE(SUBSTITUTE(B282, \"-\", \"\", 1), \"-\", \"\", 1), \"-\", \"\", 1), B282)),TACList!$B:$B,TACList!$A:$A)=0,\"Enter CAS Number w/ Dashes Here ->\",_xlfn.XLOOKUP(_xlfn.NUMBERVALUE(IFERROR(SUBSTITUTE(SUBSTITUTE(SUBSTITUTE(B282, \"-\", \"\", 1), \"-\", \"\", 1), \"-\", \"\", 1), B282)),TACList!$B:$B,TACList!$A:$A)),\"Compound Not Found, Please Remove\"))","v":""},null,null,null,null,null,null,"","","","","","","","","",""]
[{"$f":"IF(B283=\"\",\"\",_xlfn.IFNA(IF(_xlfn.XLOOKUP(_xlfn.NUMBERVALUE(IFERROR(SUBSTITUTE(SUBSTITUTE(SUBSTITUTE(B283, \"-\", \"\", 1), \"-\", \"\", 1), \"-\", \"\", 1), B283)),TACList!$B:$B,TACList!$A:$A)=0,\"Enter CAS Number w/ Dashes Here ->\",_xlfn.XLOOKUP(_xlfn.NUMBERVALUE(IFERROR(SUBSTITUTE(SUBSTITUTE(SUBSTITUTE(B283, \"-\", \"\", 1), \"-\", \"\", 1), \"-\", \"\", 1), B283)),TACList!$B:$B,TACList!$A:$A)),\"Compound Not Found, Please Remove\"))","v":""},null,null,null,null,null,null,"","","","","","","","","",""]
[{"$f":"IF(B284=\"\",\"\",_xlfn.IFNA(IF(_xlfn.XLOOKUP(_xlfn.NUMBERVALUE(IFERROR(SUBSTITUTE(SUBSTITUTE(SUBSTITUTE(B284, \"-\", \"\", 1), \"-\", \"\", 1), \"-\", \"\", 1), B284)),TACList!$B:$B,TACList!$A:$A)=0,\"Enter CAS Number w/ Dashes Here ->\",_xlfn.XLOOKUP(_xlfn.NUMBERVALUE(IFERROR(SUBSTITUTE(SUBSTITUTE(SUBSTITUTE(B284, \"-\", \"\", 1), \"-\", \"\", 1), \"-\", \"\", 1), B284)),TACList!$B:$B,TACList!$A:$A)),\"Compound Not Found, Please Remove\"))","v":""},null,null,null,null,null,null,"","","","","","","","","",""]
[{"$f":"IF(B285=\"\",\"\",_xlfn.IFNA(IF(_xlfn.XLOOKUP(_xlfn.NUMBERVALUE(IFERROR(SUBSTITUTE(SUBSTITUTE(SUBSTITUTE(B285, \"-\", \"\", 1), \"-\", \"\", 1), \"-\", \"\", 1), B285)),TACList!$B:$B,TACList!$A:$A)=0,\"Enter CAS Number w/ Dashes Here ->\",_xlfn.XLOOKUP(_xlfn.NUMBERVALUE(IFERROR(SUBSTITUTE(SUBSTITUTE(SUBSTITUTE(B285, \"-\", \"\", 1), \"-\", \"\", 1), \"-\", \"\", 1), B285)),TACList!$B:$B,TACList!$A:$A)),\"Compound Not Found, Please Remove\"))","v":""},null,null,null,null,null,null,"","","","","","","","","",""]
[{"$f":"IF(B286=\"\",\"\",_xlfn.IFNA(IF(_xlfn.XLOOKUP(_xlfn.NUMBERVALUE(IFERROR(SUBSTITUTE(SUBSTITUTE(SUBSTITUTE(B286, \"-\", \"\", 1), \"-\", \"\", 1), \"-\", \"\", 1), B286)),TACList!$B:$B,TACList!$A:$A)=0,\"Enter CAS Number w/ Dashes Here ->\",_xlfn.XLOOKUP(_xlfn.NUMBERVALUE(IFERROR(SUBSTITUTE(SUBSTITUTE(SUBSTITUTE(B286, \"-\", \"\", 1), \"-\", \"\", 1), \"-\", \"\", 1), B286)),TACList!$B:$B,TACList!$A:$A)),\"Compound Not Found, Please Remove\"))","v":""},null,null,null,null,null,null,"","","","","","","","","",""]
[{"$f":"IF(B287=\"\",\"\",_xlfn.IFNA(IF(_xlfn.XLOOKUP(_xlfn.NUMBERVALUE(IFERROR(SUBSTITUTE(SUBSTITUTE(SUBSTITUTE(B287, \"-\", \"\", 1), \"-\", \"\", 1), \"-\", \"\", 1), B287)),TACList!$B:$B,TACList!$A:$A)=0,\"Enter CAS Number w/ Dashes Here ->\",_xlfn.XLOOKUP(_xlfn.NUMBERVALUE(IFERROR(SUBSTITUTE(SUBSTITUTE(SUBSTITUTE(B287, \"-\", \"\", 1), \"-\", \"\", 1), \"-\", \"\", 1), B287)),TACList!$B:$B,TACList!$A:$A)),\"Compound Not Found, Please Remove\"))","v":""},null,null,null,null,null,null,"","","","","","","","","",""]
[{"$f":"IF(B288=\"\",\"\",_xlfn.IFNA(IF(_xlfn.XLOOKUP(_xlfn.NUMBERVALUE(IFERROR(SUBSTITUTE(SUBSTITUTE(SUBSTITUTE(B288, \"-\", \"\", 1), \"-\", \"\", 1), \"-\", \"\", 1), B288)),TACList!$B:$B,TACList!$A:$A)=0,\"Enter CAS Number w/ Dashes Here ->\",_xlfn.XLOOKUP(_xlfn.NUMBERVALUE(IFERROR(SUBSTITUTE(SUBSTITUTE(SUBSTITUTE(B288, \"-\", \"\", 1), \"-\", \"\", 1), \"-\", \"\", 1), B288)),TACList!$B:$B,TACList!$A:$A)),\"Compound Not Found, Please Remove\"))","v":""},null,null,null,null,null,null,"","","","","","","","","",""]
[{"$f":"IF(B289=\"\",\"\",_xlfn.IFNA(IF(_xlfn.XLOOKUP(_xlfn.NUMBERVALUE(IFERROR(SUBSTITUTE(SUBSTITUTE(SUBSTITUTE(B289, \"-\", \"\", 1), \"-\", \"\", 1), \"-\", \"\", 1), B289)),TACList!$B:$B,TACList!$A:$A)=0,\"Enter CAS Number w/ Dashes Here ->\",_xlfn.XLOOKUP(_xlfn.NUMBERVALUE(IFERROR(SUBSTITUTE(SUBSTITUTE(SUBSTITUTE(B289, \"-\", \"\", 1), \"-\", \"\", 1), \"-\", \"\", 1), B289)),TACList!$B:$B,TACList!$A:$A)),\"Compound Not Found, Please Remove\"))","v":""},null,null,null,null,null,null,"","","","","","","","","",""]
[{"$f":"IF(B290=\"\",\"\",_xlfn.IFNA(IF(_xlfn.XLOOKUP(_xlfn.NUMBERVALUE(IFERROR(SUBSTITUTE(SUBSTITUTE(SUBSTITUTE(B290, \"-\", \"\", 1), \"-\", \"\", 1), \"-\", \"\", 1), B290)),TACList!$B:$B,TACList!$A:$A)=0,\"Enter CAS Number w/ Dashes Here ->\",_xlfn.XLOOKUP(_xlfn.NUMBERVALUE(IFERROR(SUBSTITUTE(SUBSTITUTE(SUBSTITUTE(B290, \"-\", \"\", 1), \"-\", \"\", 1), \"-\", \"\", 1), B290)),TACList!$B:$B,TACList!$A:$A)),\"Compound Not Found, Please Remove\"))","v":""},null,null,null,null,null,null,"","","","","","","","","",""]

{"sheet":"TACList","index":1,"n_rows":315,"n_cols":2,"rows_kept":315,"cut":false,"hidden":false,"merged":[]}
["Toxic Air Contaminant","CAS No."]
["[D] Cyanide compounds [Deleted/Obsolete Emittent ID]",1073]
["1,1,2,2-Tetrachloroethane",79345]
["1,1,2-Trichloroethane",79005]
["1,1-Dichloroethane",75343]
["1,2,3,4,6,7,8,9-Octachlorodibenzofuran",39001020]
["1,2,3,4,6,7,8,9-Octachlorodibenzo-p-dioxin",3268879]
["1,2,3,4,6,7,8-Heptachlorodibenzofuran",67562394]
["1,2,3,4,6,7,8-Heptachlorodibenzo-p-dioxin",35822469]
["1,2,3,4,7,8,9-Heptachlorodibenzofuran",55673897]
["1,2,3,4,7,8-Hexachlorodibenzofuran",70648269]
["1,2,3,4,7,8-Hexachlorodibenzo-p-dioxin",39227286]
["1,2,3,6,7,8-Hexachlorodibenzofuran",57117449]
["1,2,3,6,7,8-Hexachlorodibenzo-p-dioxin",57653857]
["1,2,3,7,8,9-Hexachlorodibenzofuran",72918219]
["1,2,3,7,8,9-Hexachlorodibenzo-p-dioxin",19408743]
["1,2,3,7,8-Pentachlorodibenzofuran",57117416]
["1,2,3,7,8-Pentachlorodibenzo-p-dioxin",40321764]
["1,2,3-Trimethylbenzene",526738]
["1,2,4-Trimethylbenzene",95636]
["1,2-Dibromo-3-chloropropane",96128]
["1,2-Epoxybutane",106887]
["1,3,5-Trimethylbenzene",108678]
["1,3-Butadiene",106990]
["1,3-Propane sultone",1120714]
["1,4-Dioxane",123911]
["1,6-Dinitropyrene",42397648]
["1,8-Dinitropyrene",42397659]
["1-Chloro-4-(trifluoromethyl)benzene [PCBTF]",98566]
["1-Nitropyrene",5522430]
["1-n-Propyl Bromide {1-1-n-Propyl Bromide {1-Bromopropane}",106945]
["2,3,3',4,4',5,5'-Heptachlorobiphenyl {PCB 189}",39635319]
["2,3,3',4,4',5-Hexachlorobiphenyl {PCB 156}",38380084]
["2,3,3',4,4',5'-Hexachlorobiphenyl {PCB 157}",69782907]
["2,3,3',4,4'-Pentachlorobiphenyl {PCB 105}",32598144]
["2,3',4,4',5,5'-Hexachlorobiphenyl {PCB 167}",52663726]
["2,3',4,4',5-Pentachlorobiphenyl",31508006]
["2,3,4,4',5-Pentachlorobiphenyl {PCB 114}",74472370]
["2,3',4,4',5'-Pentachlorobiphenyl {PCB 123}",65510443]
["2,3,4,6,7,8-Hexachlorodibenzofuran",60851345]
["2,3,4,7,8-Pentachlorodibenzofuran",57117314]
["2,3,7,8-Tetrachlorodibenzofuran",51207319]
["2,3,7,8-Tetrachlorodibenzo-p-dioxin",1746016]
["2,4,6-Trichlorophenol",88062]
["2,4-Diaminoanisole",615054]
["2,4-Diaminotoluene",95807]
["2,4-Dinitrotoluene",121142]
["2,4-Dinitrotoluene, sulfurized",1326416]
["2-Aminoanthraquinone",117793]
["2-Methylcyclopentadienyl manganese tricarbonyl",12108133]
["2-Nitrofluorene",607578]
["3,3',4,4',5,5'-Hexachlorobiphenyl {PCB 169}",32774166]
["3,3',4,4',5-Pentachlorobiphenyl {PCB 126}",57465288]
["3,3',4,4'-Tetrachlorobiphenyl {PCB 77}",32598133]
["3,3'-Dichlorobenzidine",91941]
["3,3'-Dimethylbenzidine dihydrochloride",612828]
["3,4,4',5-Tetrachlorobiphenyl {PCB 81}",70362504]
["3-Methylcholanthrene",56495]
["4,4'-Methylenedianiline (and its dichloride)",101779]
["4-4-Methylene bis(2-chloroaniline) {MOCA}",101144]
["4-Chloro-o-phenylenediamine",95830]
["4-Dimethylaminoazobenzene",60117]
["4-Nitropyrene",57835924]
["5-Methylchrysene",3697243]
["5-Nitroacenaphthene",602879]
["6-Nitrochrysene",7496028]
["7,12-Dimethylbenz[a]anthracene",57976]
["7H-Dibenzo[c,g]carbazole",194592]
["Acetaldehyde",75070]
["Acetamide",60355]
["Acrolein",107028]
["Acrylamide",79061]
["Acrylic acid",79107]
["Acrylonitrile",107131]
["Actinolite",77536664]
["Allyl chloride",107051]
["alpha-Hexachlorocyclohexane",319846]
["Ammonia",7664417]
["Amosite",12172735]
["Aniline",62533]
["Aniline hydrochloride",142041]
["Anthophyllite",77536675]
["Arsenic",7440382]
["Arsenic acid",7778394]
["Arsenic compounds (inorganic)",1016]
["Arsenic pentoxide",1303282]
["Arsenic trioxide",1327533]
["Arsine",7784421]
["Asbestos",1332214]
["Barium chromate",10294403]
["Benz[a]anthracene",56553]
["Benzene",71432]
["Benzidine (and its salts)",92875]
["Benzidine-based dyes",1020]
["Benzo[a]pyrene",50328]
["Benzo[b]fluoranthene",205992]
["Benzo[j]fluoranthene",205823]
["Benzo[k]fluoranthene",207089]
["Benzyl chloride",100447]
["Beryllium",7440417]
["Beryllium oxide",1304569]
["Beryllium sulfate",13510491]
["Beryllium sulfate (tetrahydrate)",7787566]
["beta-Hexachlorocyclohexane",319857]
["Bis(2-chloroethyl) ether {DCEE}",111444]
["Bis(chloromethyl) ether",542881]
["Biuret",108190]
["Bromate",15541454]
["C.I. Direct Blue 218 [PAH-Derivative/Related, POM]",28407376]
["Cadmium",7440439]
["Cadmium chloride",10108642]
["Cadmium succinate",141004]
["Calcium arsenate",7778441]
["Calcium chromate",13765190]
["Calcium cyanide",592018]
["Caprolactam",105602]
["Carbon disulfide",75150]
["Carbon monoxide",630080]
["Carbon tetrachloride",56235]
["Carbonyl sulfide",463581]
["Chlorinated paraffins (average chain length, C12; approx. 60% Cl by weight)",108171262]
["Chlorine",7782505]
["Chlorine dioxide",10049044]
["Chlorobenzene",108907]
["Chloroform",67663]
["Chloropicrin",76062]
["Chromium (III)",16065831]
["Chromium trioxide",1333820]
["Chromium, hexavalent (& compounds)",18540299]
["Chrysene",218019]
["Chrysotile",12001295]
["Cobalt",7440484]
["Cobalt [II] oxide",1307966]
["Cobalt [III] oxide",1308061]
["Cobalt acetate (tetrahydrate)",71487]
["Cobalt carbonate",513791]
["Cobalt carbonyl",10210681]
["Cobalt chloride (hexahydrate)",7646799]
["Cobalt compounds, insoluble",1216]
["Cobalt hydrocarbonyl",16842038]
["Cobalt hydroxide",21041930]
["Cobalt nitrate (hexahydrate)",10141056]
["Cobalt octoate",136527]
["Cobalt oxalate",814891]
["Cobalt sulfate",10124433]
["Cobalt sulfate (heptahydrate)",10026241]
["Cobalt sulfate and other soluble cobalt compounds",1217]
["Cobalt sulfide",1317426]
["Copper",7440508]
["Cresols (mixtures of) {Cresylic acid}",1319773]
["Crocidolite",12001284]
["Cupferron",135206]
["Cyanide compounds (inorganic)",57125]
["Di(2-ethylhexyl) phthalate",117817]
["Dibenz[a,h]acridine",226368]
["Dibenz[a,h]anthracene",53703]
["Dibenz[a,j]acridine",224420]
["Dibenzo[a,e]pyrene",192654]
["Dibenzo[a,h]pyrene",189640]
["Dibenzo[a,i]pyrene",189559]
["Dibenzo[a,l]pyrene",191300]
["Dibenzofurans (chlorinated) {PCDFs} [Treated as 2378TCDD for HRA]",1080]
["Diesel engine exhaust, particulate matter (Diesel PM)",9901]
["Diethanolamine",111422]
["Diisocyanurate",1226]
["Dimethyl formamide",68122]
["Dioxins, total, w/o individ. isomers reported {PCDDs} [Treat as 2378TCDD for HRA",1086]
["Direct Black 38",1937377]
["Direct Blue 6",2602462]
["Direct Brown 95 (technical grade)",16071866]
["Epichlorohydrin",106898]
["Ethyl benzene",100414]
["Ethyl chloride {Chlorethane}",75003]
["Ethylene dibromide {EDB}",106934]
["Ethylene dichloride {EDC}",107062]
["Ethylene glycol",107211]
["Ethylene glycol monobutyl ether",111762]
["Ethylene glycol monoethyl ether",110805]
["Ethylene glycol monoethyl ether acetate",111159]
["Ethylene glycol monomethyl ether",109864]
["Ethylene glycol monomethyl ether acetate",110496]
["Ethylene oxide",75218]
["Ethylene thiourea",96457]
["Fluorides and compounds",1101]
["Formaldehyde",50000]
["Gallium arsenide",1303000]
["Glutaraldehyde",111308]
["HDI Prepolymer",1227]
["Hexachlorobenzene",118741]
["Hexachlorocyclohexanes (mixed or technical grade)",608731]
["Hexamethylene-1,6-diisocyanate",822060]
["Hexane",110543]
["Hydrazine",302012]
["Hydrochloric acid",7647010]
["Hydrocyanic acid",74908]
["Hydrocyanic acid",191234227]
["Hydrocyanic acid",341972314]
["Hydrogen fluoride",7664393]
["Hydrogen selenide",7783075]
["Hydrogen sulfide",7783064]
["Indeno[1,2,3-cd]pyrene",193395]
["Isocyanurate",1228]
["Isophorone",78591]
["Isopropyl alcohol",67630]
["Lead",7439921]
["Lead acetate",301042]
["Lead chromate",7758976]
["Lead compounds (inorganic)",1128]
["Lead phosphate",7446277]
["Lead subacetate",1335326]
["Lindane {gamma-Hexachlorocyclohexane}",58899]
["Maleic anhydride",108316]
["Manganese",7439965]
["Manganese cyclopentadienyl tricarbonyl",12079651]
["m-Cresol",108394]
["Mercuric chloride",7487947]
["Mercury",7439976]
["Methanol",67561]
["Methyl bromide {Bromomethane}",74839]
["Methyl chloroform {1,1,1-Trichloroethane}",71556]
["Methyl ethyl ketone {2-Butanone}",78933]
["Methyl isocyanate",624839]
["Methyl tert-butyl ether",1634044]
["Methylene chloride {Dichloromethane}",75092]
["Methylene diphenyl diisocyanate {MDI}",101688]
["Michler's ketone",90948]
["Modified Hydrogen fluoride {MHF}",1141]
["m-Xylene",108383]
["Naphthalene",91203]
["Nickel",7440020]
["Nickel acetate",373024]
["Nickel carbonate",3333673]
["Nickel carbonyl",13463393]
["Nickel chloride",7718549]
["Nickel hydroxide",12054487]
["Nickel nitrate {Nickel (II) nitrate}",13138459]
["Nickel oxide",1313991]
["Nickel refinery dust from the pyrometallurgical process",1146]
["Nickel subsulfide",12035722]
["Nickel sulfate",7786814]
["Nickelocene",1271289]
["Nitric acid",7697372]
["NITROGEN DIOXIDE",10102440]
["N-Nitrosodiethylamine",55185]
["N-Nitrosodimethylamine",62759]
["N-Nitrosodi-n-butylamine",924163]
["N-Nitrosodi-n-propylamine",621647]
["N-Nitrosodiphenylamine",86306]
["N-Nitrosomethylethylamine",10595956]
["N-Nitrosomorpholine",59892]
["N-Nitrosopiperidine",100754]
["N-Nitrosopyrrolidine",930552]
["o-Cresol",95487]
["Oleum",8014957]
["o-Xylene",95476]
["OZONE",10028156]
["PAHs, total, w/o individ. components reported [Treated as B(a)P for HRA]",1151]
["PCBs {Polychlorinated biphenyls}",1336363]
["p-Chloro-o-toluidine",95692]
["p-Cresidine",120718]
["p-Cresol",106445]
["p-Dichlorobenzene",106467]
["Pentachlorophenol",87865]
["Perchloroethylene {Tetrachloroethene}",127184]
["Perfluorooctanoic acid {PFOA} (and its salts, esters, and sulfonates)",2795393]
["Phenol",108952]
["Phosgene",75445]
["Phosphine",7803512]
["Phosphoric acid",7664382]
["Phthalic anhydride",85449]
["p-Nitrosodiphenylamine",156105]
["Polybrominated diphenyl ethers {PBDEs}",2222]
["Polymeric (Oligo) HDI",1221]
["Potassium bromate",7758012]
["Potassium cyanide",151508]
["Propylene",115071]
["Propylene glycol monomethyl ether",107982]
["Propylene oxide",75569]
["p-Xylene",106423]
["Selenium",7782492]
["Selenium hexafluoride",7783791]
["Selenium sulfide",7446346]
["Silica, crystalline (respirable)",1175]
["Silica, crystalline (respirable), in the form of cristobalite",14464461]
["Silica, crystalline (respirable), in the form of quartz",14808607]
["Sodium aluminum fluoride",15096523]
["Sodium cyanide",143339]
["Sodium dichromate",10588019]
["Sodium fluoride",7681494]
["Sodium hydroxide",1310732]
["Strontium chromate",7789062]
["Styrene",100425]
["SULFATES",9960]
["SULFUR DIOXIDE",7446095]
["Sulfur trioxide",7446719]
["Sulfuric acid",7664939]
["t-Butyl acetate",540885]
["tert-Butyl chromate(VI)",1189851]
["Thioacetamide",62555]
["Toluene",108883]
["Toluene diisocyanates",26471625]
["Toluene-2,4-diisocyanate",584849]
["Toluene-2,6-diisocyanate",91087]
["Tremolite",77536686]
["Trichloroethylene",79016]
["Triethylamine",121448]
["Trimethylbenzenes",25551137]
["Uretdione (HDI) {Uretidone}",23501817]
["Urethane",51796]
["Vanadium (fume or dust)",7440622]
["Vanadium pentoxide",1314621]
["Vinyl acetate",108054]
["Vinyl chloride",75014]
["Vinylidene chloride",75354]
["Xylenes (mixed)",1330207]

{"sheet":"Emissions Output","index":2,"n_rows":0,"n_cols":0,"rows_kept":0,"cut":false,"hidden":false,"merged":[]}

{"sheet":"Concentrations for Tier 3","index":3,"n_rows":315,"n_cols":6,"rows_kept":315,"cut":false,"hidden":false,"merged":[]}
["TAC","CAS","Receptor ID","Hourly max Concentration at receptor, ug/m3","8hr mean Concentration at receptor, ug/m3","Annual mean Concentration at receptor, ug/m3"]
["Arsenic compounds (inorganic)",1016]
["Benzidine-based dyes",1020]
["[D] Cyanide compounds [Deleted/Obsolete Emittent ID]",1073]
["Dibenzofurans (chlorinated) {PCDFs} [Treated as 2378TCDD for HRA]",1080]
["Dioxins, total, w/o individ. isomers reported {PCDDs} [Treat as 2378TCDD for HRA",1086]
["Fluorides and compounds",1101]
["Lead compounds (inorganic)",1128]
["Modified Hydrogen fluoride {MHF}",1141]
["Nickel refinery dust from the pyrometallurgical process",1146]
["PAHs, total, w/o individ. components reported [Treated as B(a)P for HRA]",1151]
["Silica, crystalline (respirable)",1175]
["Cobalt compounds, insoluble",1216]
["Cobalt sulfate and other soluble cobalt compounds",1217]
["Polymeric (Oligo) HDI",1221]
["Diisocyanurate",1226]
["HDI Prepolymer",1227]
["Isocyanurate",1228]
["Polybrominated diphenyl ethers {PBDEs}",2222]
["Diesel engine exhaust, particulate matter (Diesel PM)",9901]
["SULFATES",9960]
["Formaldehyde",50000]
["Benzo[a]pyrene",50328]
["Urethane",51796]
["Dibenz[a,h]anthracene",53703]
["N-Nitrosodiethylamine",55185]
["Carbon tetrachloride",56235]
["3-Methylcholanthrene",56495]
["Benz[a]anthracene",56553]
["Cyanide compounds (inorganic)",57125]
["7,12-Dimethylbenz[a]anthracene",57976]
["Lindane {gamma-Hexachlorocyclohexane}",58899]
["N-Nitrosomorpholine",59892]
["4-Dimethylaminoazobenzene",60117]
["Acetamide",60355]
["Aniline",62533]
["Thioacetamide",62555]
["N-Nitrosodimethylamine",62759]
["Methanol",67561]
["Isopropyl alcohol",67630]
["Chloroform",67663]
["Dimethyl formamide",68122]
["Benzene",71432]
["Cobalt acetate (tetrahydrate)",71487]
["Methyl chloroform {1,1,1-Trichloroethane}",71556]
["Methyl bromide {Bromomethane}",74839]
["Hydrocyanic acid",74908]
["Ethyl chloride {Chlorethane}",75003]
["Vinyl chloride",75014]
["Acetaldehyde",75070]
["Methylene chloride {Dichloromethane}",75092]
["Carbon disulfide",75150]
["Ethylene oxide",75218]
["1,1-Dichloroethane",75343]
["Vinylidene chloride",75354]
["Phosgene",75445]
["Propylene oxide",75569]
["Chloropicrin",76062]
["Isophorone",78591]
["Methyl ethyl ketone {2-Butanone}",78933]
["1,1,2-Trichloroethane",79005]
["Trichloroethylene",79016]
["Acrylamide",79061]
["Acrylic acid",79107]
["1,1,2,2-Tetrachloroethane",79345]
["Phthalic anhydride",85449]
["N-Nitrosodiphenylamine",86306]
["Pentachlorophenol",87865]
["2,4,6-Trichlorophenol",88062]
["Michler's ketone",90948]
["Toluene-2,6-diisocyanate",91087]
["Naphthalene",91203]
["3,3'-Dichlorobenzidine",91941]
["Benzidine (and its salts)",92875]
["o-Xylene",95476]
["o-Cresol",95487]
["1,2,4-Trimethylbenzene",95636]
["p-Chloro-o-toluidine",95692]
["2,4-Diaminotoluene",95807]
["4-Chloro-o-phenylenediamine",95830]
["1,2-Dibromo-3-chloropropane",96128]
["Ethylene thiourea",96457]
["1-Chloro-4-(trifluoromethyl)benzene [PCBTF]",98566]
["Ethyl benzene",100414]
["Styrene",100425]
["Benzyl chloride",100447]
["N-Nitrosopiperidine",100754]
["4-4-Methylene bis(2-chloroaniline) {MOCA}",101144]
["Methylene diphenyl diisocyanate {MDI}",101688]
["4,4'-Methylenedianiline (and its dichloride)",101779]
["Caprolactam",105602]
["p-Xylene",106423]
["p-Cresol",106445]
["p-Dichlorobenzene",106467]
["1,2-Epoxybutane",106887]
["Epichlorohydrin",106898]
["Ethylene dibromide {EDB}",106934]
["1-n-Propyl Bromide {1-1-n-Propyl Bromide {1-Bromopropane}",106945]
["1,3-Butadiene",106990]
["Acrolein",107028]
["Allyl chloride",107051]
["Ethylene dichloride {EDC}",107062]
["Acrylonitrile",107131]
["Ethylene glycol",107211]
["Propylene glycol monomethyl ether",107982]
["Vinyl acetate",108054]
["Biuret",108190]
["Maleic anhydride",108316]
["m-Xylene",108383]
["m-Cresol",108394]
["1,3,5-Trimethylbenzene",108678]
["Toluene",108883]
["Chlorobenzene",108907]
["Phenol",108952]
["Ethylene glycol monomethyl ether",109864]
["Ethylene glycol monomethyl ether acetate",110496]
["Hexane",110543]
["Ethylene glycol monoethyl ether",110805]
["Ethylene glycol monoethyl ether acetate",111159]
["Glutaraldehyde",111308]
["Diethanolamine",111422]
["Bis(2-chloroethyl) ether {DCEE}",111444]
["Ethylene glycol monobutyl ether",111762]
["Propylene",115071]
["2-Aminoanthraquinone",117793]
["Di(2-ethylhexyl) phthalate",117817]
["Hexachlorobenzene",118741]
["p-Cresidine",120718]
["2,4-Dinitrotoluene",121142]
["Triethylamine",121448]
["1,4-Dioxane",123911]
["Perchloroethylene {Tetrachloroethene}",127184]
["Cupferron",135206]
["Cobalt octoate",136527]
["Cadmium succinate",141004]
["Aniline hydrochloride",142041]
["Sodium cyanide",143339]
["Potassium cyanide",151508]
["p-Nitrosodiphenylamine",156105]
["Dibenzo[a,i]pyrene",189559]
["Dibenzo[a,h]pyrene",189640]
["Dibenzo[a,l]pyrene",191300]
["Dibenzo[a,e]pyrene",192654]
["Indeno[1,2,3-cd]pyrene",193395]
["7H-Dibenzo[c,g]carbazole",194592]
["Benzo[j]fluoranthene",205823]
["Benzo[b]fluoranthene",205992]
["Benzo[k]fluoranthene",207089]
["Chrysene",218019]
["Dibenz[a,j]acridine",224420]
["Dibenz[a,h]acridine",226368]
["Lead acetate",301042]
["Hydrazine",302012]
["alpha-Hexachlorocyclohexane",319846]
["beta-Hexachlorocyclohexane",319857]
["Nickel acetate",373024]
["Carbonyl sulfide",463581]
["Cobalt carbonate",513791]
["1,2,3-Trimethylbenzene",526738]
["t-Butyl acetate",540885]
["Bis(chloromethyl) ether",542881]
["Toluene-2,4-diisocyanate",584849]
["Calcium cyanide",592018]
["5-Nitroacenaphthene",602879]
["2-Nitrofluorene",607578]
["Hexachlorocyclohexanes (mixed or technical grade)",608731]
["3,3'-Dimethylbenzidine dihydrochloride",612828]
["2,4-Diaminoanisole",615054]
["N-Nitrosodi-n-propylamine",621647]
["Methyl isocyanate",624839]
["Carbon monoxide",630080]
["Cobalt oxalate",814891]
["Hexamethylene-1,6-diisocyanate",822060]
["N-Nitrosodi-n-butylamine",924163]
["N-Nitrosopyrrolidine",930552]
["1,3-Propane sultone",1120714]
["tert-Butyl chromate(VI)",1189851]
["Nickelocene",1271289]
["Gallium arsenide",1303000]
["Arsenic pentoxide",1303282]
["Beryllium oxide",1304569]
["Cobalt [II] oxide",1307966]
["Cobalt [III] oxide",1308061]
["Sodium hydroxide",1310732]
["Nickel oxide",1313991]
["Vanadium pentoxide",1314621]
["Cobalt sulfide",1317426]
["Cresols (mixtures of) {Cresylic acid}",1319773]
["2,4-Dinitrotoluene, sulfurized",1326416]
["Arsenic trioxide",1327533]
["Xylenes (mixed)",1330207]
["Asbestos",1332214]
["Chromium trioxide",1333820]
["Lead subacetate",1335326]
["PCBs {Polychlorinated biphenyls}",1336363]
["Methyl tert-butyl ether",1634044]
["2,3,7,8-Tetrachlorodibenzo-p-dioxin",1746016]
["Direct Black 38",1937377]
["Direct Blue 6",2602462]
["Perfluorooctanoic acid {PFOA} (and its salts, esters, and sulfonates)",2795393]
["1,2,3,4,6,7,8,9-Octachlorodibenzo-p-dioxin",3268879]
["Nickel carbonate",3333673]
["5-Methylchrysene",3697243]
["1-Nitropyrene",5522430]
["Lead",7439921]
["Manganese",7439965]
["Mercury",7439976]
["Nickel",7440020]
["Arsenic",7440382]
["Beryllium",7440417]
["Cadmium",7440439]
["Cobalt",7440484]
["Copper",7440508]
["Vanadium (fume or dust)",7440622]
["SULFUR DIOXIDE",7446095]
["Lead phosphate",7446277]
["Selenium sulfide",7446346]
["Sulfur trioxide",7446719]
["Mercuric chloride",7487947]
["6-Nitrochrysene",7496028]
["Cobalt chloride (hexahydrate)",7646799]
["Hydrochloric acid",7647010]
["Phosphoric acid",7664382]
["Hydrogen fluoride",7664393]
["Ammonia",7664417]
["Sulfuric acid",7664939]
["Sodium fluoride",7681494]
["Nitric acid",7697372]
["Nickel chloride",7718549]
["Potassium bromate",7758012]
["Lead chromate",7758976]
["Arsenic acid",7778394]
["Calcium arsenate",7778441]
["Selenium",7782492]
["Chlorine",7782505]
["Hydrogen sulfide",7783064]
["Hydrogen selenide",7783075]
["Selenium hexafluoride",7783791]
["Arsine",7784421]
["Nickel sulfate",7786814]
["Beryllium sulfate (tetrahydrate)",7787566]
["Strontium chromate",7789062]
["Phosphine",7803512]
["Oleum",8014957]
["Cobalt sulfate (heptahydrate)",10026241]
["OZONE",10028156]
["Chlorine dioxide",10049044]
["NITROGEN DIOXIDE",10102440]
["Cadmium chloride",10108642]
["Cobalt sulfate",10124433]
["Cobalt nitrate (hexahydrate)",10141056]
["Cobalt carbonyl",10210681]
["Barium chromate",10294403]
["Sodium dichromate",10588019]
["N-Nitrosomethylethylamine",10595956]
["Crocidolite",12001284]
["Chrysotile",12001295]
["Nickel subsulfide",12035722]
["Nickel hydroxide",12054487]
["Manganese cyclopentadienyl tricarbonyl",12079651]
["2-Methylcyclopentadienyl manganese tricarbonyl",12108133]
["Amosite",12172735]
["Nickel nitrate {Nickel (II) nitrate}",13138459]
["Nickel carbonyl",13463393]
["Beryllium sulfate",13510491]
["Calcium chromate",13765190]
["Silica, crystalline (respirable), in the form of cristobalite",14464461]
["Silica, crystalline (respirable), in the form of quartz",14808607]
["Sodium aluminum fluoride",15096523]
["Bromate",15541454]
["Chromium (III)",16065831]
["Direct Brown 95 (technical grade)",16071866]
["Cobalt hydrocarbonyl",16842038]
["Chromium, hexavalent (& compounds)",18540299]
["1,2,3,7,8,9-Hexachlorodibenzo-p-dioxin",19408743]
["Cobalt hydroxide",21041930]
["Uretdione (HDI) {Uretidone}",23501817]
["Trimethylbenzenes",25551137]
["Toluene diisocyanates",26471625]
["C.I. Direct Blue 218 [PAH-Derivative/Related, POM]",28407376]
["2,3',4,4',5-Pentachlorobiphenyl",31508006]
["3,3',4,4'-Tetrachlorobiphenyl {PCB 77}",32598133]
["2,3,3',4,4'-Pentachlorobiphenyl {PCB 105}",32598144]
["3,3',4,4',5,5'-Hexachlorobiphenyl {PCB 169}",32774166]
["1,2,3,4,6,7,8-Heptachlorodibenzo-p-dioxin",35822469]
["2,3,3',4,4',5-Hexachlorobiphenyl {PCB 156}",38380084]
["1,2,3,4,6,7,8,9-Octachlorodibenzofuran",39001020]
["1,2,3,4,7,8-Hexachlorodibenzo-p-dioxin",39227286]
["2,3,3',4,4',5,5'-Heptachlorobiphenyl {PCB 189}",39635319]
["1,2,3,7,8-Pentachlorodibenzo-p-dioxin",40321764]
["1,6-Dinitropyrene",42397648]
["1,8-Dinitropyrene",42397659]
["2,3,7,8-Tetrachlorodibenzofuran",51207319]
["2,3',4,4',5,5'-Hexachlorobiphenyl {PCB 167}",52663726]
["1,2,3,4,7,8,9-Heptachlorodibenzofuran",55673897]
["2,3,4,7,8-Pentachlorodibenzofuran",57117314]
["1,2,3,7,8-Pentachlorodibenzofuran",57117416]
["1,2,3,6,7,8-Hexachlorodibenzofuran",57117449]
["3,3',4,4',5-Pentachlorobiphenyl {PCB 126}",57465288]
["1,2,3,6,7,8-Hexachlorodibenzo-p-dioxin",57653857]
["4-Nitropyrene",57835924]
["2,3,4,6,7,8-Hexachlorodibenzofuran",60851345]
["2,3',4,4',5'-Pentachlorobiphenyl {PCB 123}",65510443]
["1,2,3,4,6,7,8-Heptachlorodibenzofuran",67562394]
["2,3,3',4,4',5'-Hexachlorobiphenyl {PCB 157}",69782907]
["3,4,4',5-Tetrachlorobiphenyl {PCB 81}",70362504]
["1,2,3,4,7,8-Hexachlorodibenzofuran",70648269]
["1,2,3,7,8,9-Hexachlorodibenzofuran",72918219]
["2,3,4,4',5-Pentachlorobiphenyl {PCB 114}",74472370]
["Actinolite",77536664]
["Anthophyllite",77536675]
["Tremolite",77536686]
["Chlorinated paraffins (average chain length, C12; approx. 60% Cl by weight)",108171262]
["Hydrocyanic acid",191234227]
["Hydrocyanic acid",341972314]

{"sheet":"Instructions for Conc. for T3","index":4,"n_rows":47,"n_cols":9,"rows_kept":47,"cut":false,"hidden":false,"merged":[[40,0,42,0],[26,7,28,7],[26,8,28,8],[29,0,31,0],[37,3,39,3],[37,4,39,4],[37,5,39,5],[37,6,39,6],[37,7,39,7],[37,8,39,8],[26,3,28,3],[26,4,28,4],[26,5,28,5],[26,6,28,6]]}
["Instructions on Using Concentrations for Tier 3 Spreadsheet"]
["The sheet \"Concentrations for Tier 3\" can be used to upload onto the HRA Web Tool large numbers of Toxic Air Contaminants, receptors, and the hourly max concentration, 8hr mean concentration and annual mean concentration at the receptor without having to enter each of them in one at a time."]
[]
["Note: The HRA Web Tool looks specifically for specific names on the TAC List and the specific CAS Number (containing no hyphens.) It is important to use only the TAC List names and CAS Numbers provided on the list."]
[]
["Scenario 1: 1 TAC at 1 Receptor"]
[]
["1.  The total # of rows required for a successful import is (# of Receptors) multiplied by (# of TACs) For 1 TAC at 1 Receptor, you will need 1*1 = 1 Row. Locate the row for the TAC you want to enter emissions for. For this example, we will use Arsenic compounds (inorganic), CAS 1016.",null,null,"TAC","CAS","Receptor ID","Hourly max Concentration at receptor, ug/m3","8hr mean Concentration at receptor, ug/m3","Annual mean Concentration at receptor, ug/m3"]
[null,null,2,"Arsenic compounds (inorganic)",1016,"Person 1",2.837998501184219E-7,6.907154558480377E-7,8.4394487235949975E-7]
["2. Type in the Receptor ID, if it is a Worker Receptor, make sure the label of the name has \"work\" in it.",null,3,"Benzidine-based dyes",1020]
[null,null,4,"[D] Cyanide compounds [Deleted/Obsolete Emittent ID]",1073]
["3. Type in the Hourly, 8hr Mean, Annual Mean concentrations at the receptor.",null,5,"Dibenzofurans (chlorinated) {PCDFs} [Treated as 2378TCDD for HRA]",1080]
[null,null,6,"Dioxins, total, w/o individ. isomers reported {PCDDs} [Treat as 2378TCDD for HRA",1086]
["4. Close the file and then import it into the Tier 3 section of the Health Risk Assessment Web Tool.",null,7,"Fluorides and compounds",1101]
[null,null,8,"Lead compounds (inorganic)",1128]
[]
["Scenario 2: 1 TAC at 3 Receptors"]
["1.  The total # of rows required for a successful import is (# of Receptors) multiplied by (# of TACs) For 1 TAC at 1 Receptor, you will need 3*1 = 3 Rows. Locate the row for the TAC you want to enter emissions for. For this example, we will use Arsenic compounds (inorganic), CAS 1016.",null,null,"TAC","CAS","Receptor ID","Hourly max Concentration at receptor, ug/m3","8hr mean Concentration at receptor, ug/m3","Annual mean Concentration at receptor, ug/m3"]
[null,null,2,"Arsenic compounds (inorganic)",1016]
["2. Once you have found the row, select the row number to highlight the whole row.",null,3,"Benzidine-based dyes",1020]
[null,null,4,"[D] Cyanide compounds [Deleted/Obsolete Emittent ID]",1073]
["3. Right-Click, Copy. (You can also use Ctrl+V.)",null,5,"Dibenzofurans (chlorinated) {PCDFs} [Treated as 2378TCDD for HRA]",1080]
[null,null,6,"Dioxins, total, w/o individ. isomers reported {PCDDs} [Treat as 2378TCDD for HRA",1086]
["4. Right-Click on the Row you highlighted. Click Insert Copied Rows from the dropdown.",null,7,"Fluorides and compounds",1101]
[null,null,8,"Lead compounds (inorganic)",1128]
[]
[null,null,null,"TAC","CAS","Receptor ID","Hourly max Concentration at receptor, ug/m3","8hr mean Concentration at receptor, ug/m3","Annual mean Concentration at receptor, ug/m3"]
[]
[]
["5. Here is an example of what it looks like after the row is inserted. Because we need 1 of the TAC for each of the receptors, repease Step 2-4 one more time to get a total of 3 rows that show Arsenic compounds (inorganic), CAS 1016.",null,2,"Arsenic compounds (inorganic)",1016]
[null,null,3,"Arsenic compounds (inorganic)",1016]
[null,null,4,"Benzidine-based dyes",1020]
[null,null,5,"[D] Cyanide compounds [Deleted/Obsolete Emittent ID]",1073]
[null,null,6,"Dibenzofurans (chlorinated) {PCDFs} [Treated as 2378TCDD for HRA]",1080]
[null,null,7,"Dioxins, total, w/o individ. isomers reported {PCDDs} [Treat as 2378TCDD for HRA",1086]
[null,null,8,"Fluorides and compounds",1101]
[]
[null,null,null,"TAC","CAS","Receptor ID","Hourly max Concentration at receptor, ug/m3","8hr mean Concentration at receptor, ug/m3","Annual mean Concentration at receptor, ug/m3"]
[]
[]
["6. Once there is 1 TAC for each Receptor, enter in the Receptor ID name (add Work in the name if it is a Worker Receptor) along with the Hourly Max, 8hr Mean and Annual Mean concentrations. Save the file and then import it into the Tier 3 section of the HRA Web Tool.",null,2,"Arsenic compounds (inorganic)",1016,"Person 1",2.837998501184219E-7,6.907154558480377E-7,8.4394487235949975E-7]
[null,null,3,"Arsenic compounds (inorganic)",1016,"Person 2",8.5503818727397524E-7,4.043951591705782E-7,4.7870995628578201E-7]
[null,null,4,"Arsenic compounds (inorganic)",1016,"Worker 1",8.5279909378999884E-7,3.716290827325319E-8,9.8930343367590017E-7]
[null,null,5,"Benzidine-based dyes",1020]
[null,null,6,"[D] Cyanide compounds [Deleted/Obsolete Emittent ID]",1073]
[null,null,7,"Dibenzofurans (chlorinated) {PCDFs} [Treated as 2378TCDD for HRA]",1080]
[null,null,8,"Dioxins, total, w/o individ. isomers reported {PCDDs} [Treat as 2378TCDD for HRA",1086]

{"sheet":"Revision History","index":5,"n_rows":29,"n_cols":3,"rows_kept":29,"cut":false,"hidden":false,"merged":[]}
["Risk Tool Release Notes",null,"For Further Questions, please contact:"]
[null,null,"Luke Lau\nAir Quality Engineer II\nEmail: llau@aqmd.gov"]
[]
["Emission Estimator for HIA V1.01 Jul 2024",null,"2024-07-01"]
["1. Initial Version"]
[]
["Emissions Calculator for HRA Tool V02",null,"2024-09-01"]
["1. Changed references from Sheet1 to Emissions Estimator in VBA script to resolve Out of Range error from renamed sheet."]
["2. Added all items from the HRA Web Tool dropdown with either linking them to similarly named equipment or with a message saying they have to manually enter in the information."]
[]
["Emissions Calculator for HRA Tool V03",null,"2024-10-23"]
["1. Switched CAS Number and Compound Name heading titles for A136 and B136 for Spray Booth and A182 and B182 in the \"Other\" Module."]
["2. Added a placeholder row to distinguish between combustion TAC emissions and TAC emissions from coating materials."]
["3. Headers have been corrected and extraneous and repetitive headers have been removed."]
["4. TACs for Spray Booth increased to 50."]
["5. Added disclaimer that the Spray Booth module only calculates Natural Gas Combustion emissions and that propane uses different ones."]
["4. Added a disclaimer that combustion emissions are calculated using the maximum operating schedule of 24/7/52 but added an option to impose a permit limt that will calculate off of that if selected by the engineer."]
["5. When selection Spray Booth or Other, the row above for Control Efficiency is hidden because it will use the in-module control efficiencies."]
["6. Added light yellow shading and table borders for Concentrations of Tier 3 sheet."]
["7. Added instructions for Concentrations for Tier 3 sheet with examples and Excel simulated screenshots."]
["8. Spray Booth and Other Module changed from \"Toxic Not Found, Please Remove\" to \"Compound Not Found, Please Remove\" when the CAS Number does not match up to something on the list."]
["9. Added a disclaimer for Spray Booth and Other Module that mentions some compounds may not be explicitly listed in the tool but are still subject to Rule 1401."]
[]
["Emissions Calculator for HRA Tool V03.01",null,"2024-10-25"]
["1. Switched CAS Number and Compound Name heading titles for A136 and B136 for Spray Booth and A182 and B182 in the \"Other\" Module."]
[]
["Emissions Calculator for HRA Tool V03.02",null,"2024-11-01"]
["1. Change Cell J33 to \"lbs/ton\" to correct emission factor."]
["2. Added \"Refresh\" on Save Function to ensure that values are correctly moved the Emissions Output file."]

{"sheet":"Reference","index":6,"n_rows":21,"n_cols":4,"rows_kept":21,"cut":false,"hidden":true,"merged":[]}
["Equipment Type","Source","Point To","Notes"]
[]
["Boiler","Old 1401 Spreadsheet","CopyBoiler"]
["Crematories","Jillian's List","CopyCrematory"]
["Diesel ICE","Old 1401 Spreadsheet","CopyDieselICE"]
["Diesel Pressure Washer","Old 1401 Spreadsheet","CopyDieselPressureWasher"]
["Diesel Reciprocating Internal Combustion Engines","Jillian's List","CopyDieselICE"]
["Ethanol 85 Underground Storage Tanks","Jillian's List","TAC emissions built into Tool"]
["Gaseous Fueled Fired (Natural Gas) Boilers","Jillian's List","CopyBoiler"]
["Gasoline Aboveground Storage Tanks","Jillian's List","TAC emissions built into Tool"]
["Gasoline Underground Storage Tanks","Jillian's List","TAC emissions built into Tool"]
["General Non-Combustion Point Source","Jillian's List","Not Supported by Tool"]
["General Non-Combustion Volume Source","Jillian's List","Not Supported by Tool"]
["Lean Burn ICE","Old 1401 Spreadsheet","CopyLeanICE"]
["Mobile Fuelers","Jillian's List","TAC emissions built into Tool"]
["Natural Gas Reciprocating Internal Combustion Engines","Jillian's List","CopyLeanICE"]
["Rich Burn ICE","Old 1401 Spreadsheet","CopyRichICE"]
["Spray Booth","Old 1401 Spreadsheet","CopySprayBooth"]
["Other","Addition","CopyOther"]
["Crematory","Old 1401 Spreadsheet","CopyCrematory","Duplicate"]
["Spray Booth","Jillian's List","CopySprayBooth","Duplicate"]